{"text_format":"3","workbook":"xlsx","n_sheets":5,"sheets":["ПОЧАТОК","ЗАПЛАНОВАНІ ВИТРАТИ","ФАКТИЧНІ ВИТРАТИ","РІЗНИЦЯ ВИТРАТ","АНАЛІЗ ВИТРАТ"],"not_rendered":{"charts":3,"images":3,"defined_names":1},"read":"whole","date_system":"1900"}

{"sheet":"ПОЧАТОК","index":0,"n_rows":8,"n_cols":2,"rows_kept":8}
[null,"ПРО ЦЕЙ ШАБЛОН"]
[null,"Відстежуйте фактичні та заплановані витрати й різницю за допомогою цієї книги бюджету бізнес-витрат."]
[null,"Введіть назву компанії та додайте емблему."]
[null,"Введіть відомості в таблиці на аркушах \"Заплановані витрати\" та \"Фактичні витрати\"."]
[null,"Таблиці на аркуші \"Різниця витрат\" і діаграми на аркуші \"Аналіз витрат\" оновлюються автоматично."]
[null,"Примітка. "]
[null,"Додаткові вказівки наведено в стовпці A на кожному аркуші. Цей текст приховано навмисно. Щоб вилучити текст, виберіть стовпець A й натисніть клавішу Delete. Щоб відобразити текст, виберіть стовпець A та змініть колір шрифту."]
[null,"Щоб переглянути докладні відомості про таблицю, натисніть у ній клавіші Shift+F10, виберіть \"Таблиця\", а потім – \"Текст заміщення\"."]

{"sheet":"ЗАПЛАНОВАНІ ВИТРАТИ","index":1,"n_rows":37,"n_cols":18,"rows_kept":37,"merged":[[1,1,2,3],[1,10,1,12],[1,13,2,14],[2,10,2,12],[3,17,12,19],[8,1,8,2],[19,1,19,2],[28,1,28,2],[33,1,33,2]]}
["Введіть заплановані витрати на працівників, офіс, маркетинг, підготовчі курси та відрядження у відповідні таблиці на цьому аркуші. Підсумки обчислюються автоматично. Корисні вказівки щодо роботи з цим аркушем наведено в клітинках у цьому стовпці. Клацніть стрілку вниз, щоб почати.",{"$nulls":14}," "]
["У клітинку праворуч введіть назва компанії та додайте емблему в клітинку N2. Заголовок цього аркуша наведено в клітинці K2.","Назва компанії",{"$nulls":8},"Докладна оцінка витрат",null,null,"Заповнювач для емблеми наведено в цій клітинці."]
["Пораду наведено в клітинці K3.",{"$nulls":9},"У затемнених клітинках наведено обчислені суми."]
["Підпис \"Заплановані витрати\" наведено в клітинці праворуч, назви місяців – у клітинках C4:N4, підпис \"Рік\" – у клітинці O4, а підпис \"Робота із шаблоном\" – у клітинці R4.","ЗАПЛАНОВАНІ ВИТРАТИ","СІЧ","ЛЮТ","БЕР","КВІ","ТРА","ЧЕР","ЛИП","СЕР","ВЕР","ЖОВ","ЛИС","ГРУ","РІК",null,null,"Порада. РОБОТА ІЗ ШАБЛОНОМ\nВведіть дані в білі клітинки на аркушах \"Заплановані витрати\" та \"Фактичні витрати\". Показники на аркушах \"Різниця фактичних витрат\" і \"Аналіз витрат\" обчислюються автоматично. Якщо додати рядок на одному аркуші, це потрібно зробити й на інших."]
["Введіть заплановані витрати на працівників у таблицю, починаючи з клітинки праворуч. Подальші вказівки наведено в клітинці A10.","Витрати на працівників","Січ","Лют","Бер","Кві","Тра","Чер","Лип","Cер","Вер","Жов","Лис","Гру","РІК"]
[null,"Заробітна плата",{"v":85000,"d":"85,000.00₴"},{"v":85000,"d":"85,000.00₴"},{"v":85000,"d":"85,000.00₴"},{"v":87500,"d":"87,500.00₴"},{"v":87500,"d":"87,500.00₴"},{"v":87500,"d":"87,500.00₴"},{"v":87500,"d":"87,500.00₴"},{"v":92400,"d":"92,400.00₴"},{"v":92400,"d":"92,400.00₴"},{"v":92400,"d":"92,400.00₴"},{"v":92400,"d":"92,400.00₴"},{"v":92400,"d":"92,400.00₴"},{"$f":"SUM(C6:N6)","v":{"v":1067000,"d":"1,067,000.00₴"}}]
[null,"Пільги",{"$f":"C6*0.27","v":{"v":22950,"d":"22,950.00₴"}},{"v":22950,"d":"22,950.00₴"},{"v":22950,"d":"22,950.00₴"},{"v":23625,"d":"23,625.00₴"},{"v":23625,"d":"23,625.00₴"},{"v":23625,"d":"23,625.00₴"},{"v":23625,"d":"23,625.00₴"},{"v":24948,"d":"24,948.00₴"},{"v":24948,"d":"24,948.00₴"},{"v":24948,"d":"24,948.00₴"},{"v":24948,"d":"24,948.00₴"},{"v":24948,"d":"24,948.00₴"},{"$f":"SUM(C7:N7)","v":{"v":288090,"d":"288,090.00₴"}}]
[null,"Проміжний підсумок",{"$f":"SUBTOTAL(109,ЗапланованіВитратиНаПрацівників[Січ])","v":{"v":107950,"d":"107,950.00₴"}},{"$f":"SUBTOTAL(109,ЗапланованіВитратиНаПрацівників[Лют])","v":{"v":107950,"d":"107,950.00₴"}},{"$f":"SUBTOTAL(109,ЗапланованіВитратиНаПрацівників[Бер])","v":{"v":107950,"d":"107,950.00₴"}},{"$f":"SUBTOTAL(109,ЗапланованіВитратиНаПрацівників[Кві])","v":{"v":111125,"d":"111,125.00₴"}},{"$f":"SUBTOTAL(109,ЗапланованіВитратиНаПрацівників[Тра])","v":{"v":111125,"d":"111,125.00₴"}},{"$f":"SUBTOTAL(109,ЗапланованіВитратиНаПрацівників[Чер])","v":{"v":111125,"d":"111,125.00₴"}},{"$f":"SUBTOTAL(109,ЗапланованіВитратиНаПрацівників[Лип])","v":{"v":111125,"d":"111,125.00₴"}},{"$f":"SUBTOTAL(109,ЗапланованіВитратиНаПрацівників[Cер])","v":{"v":117348,"d":"117,348.00₴"}},{"$f":"SUBTOTAL(109,ЗапланованіВитратиНаПрацівників[Вер])","v":{"v":117348,"d":"117,348.00₴"}},{"$f":"SUBTOTAL(109,ЗапланованіВитратиНаПрацівників[Жов])","v":{"v":117348,"d":"117,348.00₴"}},{"$f":"SUBTOTAL(109,ЗапланованіВитратиНаПрацівників[Лис])","v":{"v":117348,"d":"117,348.00₴"}},{"$f":"SUBTOTAL(109,ЗапланованіВитратиНаПрацівників[Гру])","v":{"v":117348,"d":"117,348.00₴"}},{"$f":"SUBTOTAL(109,ЗапланованіВитратиНаПрацівників[РІК])","v":{"v":1355090,"d":"1,355,090.00₴"}}]
[]
["Введіть заплановані витрати на офіс у таблицю, починаючи з клітинки праворуч. Подальші вказівки наведено в клітинці A21.","Витрати на офіс","Січ","Лют","Бер","Кві","Тра","Чер","Лип","Cер","Вер","Жов","Лис","Гру","РІК"]
[null,"Оренда офісу",{"v":9800,"d":"9,800.00₴"},{"v":9800,"d":"9,800.00₴"},{"v":9800,"d":"9,800.00₴"},{"v":9800,"d":"9,800.00₴"},{"v":9800,"d":"9,800.00₴"},{"v":9800,"d":"9,800.00₴"},{"v":9800,"d":"9,800.00₴"},{"v":9800,"d":"9,800.00₴"},{"v":9800,"d":"9,800.00₴"},{"v":9800,"d":"9,800.00₴"},{"v":9800,"d":"9,800.00₴"},{"v":9800,"d":"9,800.00₴"},{"$f":"SUM(C11:N11)","v":{"v":117600,"d":"117,600.00₴"}}]
[null,"Газ",null,{"v":400,"d":"400.00₴"},{"v":400,"d":"400.00₴"},{"v":100,"d":"100.00₴"},{"v":100,"d":"100.00₴"},{"v":100,"d":"100.00₴"},{"v":100,"d":"100.00₴"},{"v":100,"d":"100.00₴"},{"v":100,"d":"100.00₴"},{"v":100,"d":"100.00₴"},{"v":400,"d":"400.00₴"},{"v":400,"d":"400.00₴"},{"v":2300,"d":"2,300.00₴"}]
[null,"Електроенергія",{"v":300,"d":"300.00₴"},{"v":300,"d":"300.00₴"},{"v":300,"d":"300.00₴"},{"v":300,"d":"300.00₴"},{"v":300,"d":"300.00₴"},{"v":300,"d":"300.00₴"},{"v":300,"d":"300.00₴"},{"v":300,"d":"300.00₴"},{"v":300,"d":"300.00₴"},{"v":300,"d":"300.00₴"},{"v":300,"d":"300.00₴"},{"v":300,"d":"300.00₴"},{"v":3600,"d":"3,600.00₴"}]
[null,"Вода",{"v":40,"d":"40.00₴"},{"v":40,"d":"40.00₴"},{"v":40,"d":"40.00₴"},{"v":40,"d":"40.00₴"},{"v":40,"d":"40.00₴"},{"v":40,"d":"40.00₴"},{"v":40,"d":"40.00₴"},{"v":40,"d":"40.00₴"},{"v":40,"d":"40.00₴"},{"v":40,"d":"40.00₴"},{"v":40,"d":"40.00₴"},{"v":40,"d":"40.00₴"},{"v":480,"d":"480.00₴"}]
[null,"Телефон",{"v":250,"d":"250.00₴"},{"v":250,"d":"250.00₴"},{"v":250,"d":"250.00₴"},{"v":250,"d":"250.00₴"},{"v":250,"d":"250.00₴"},{"v":250,"d":"250.00₴"},{"v":250,"d":"250.00₴"},{"v":250,"d":"250.00₴"},{"v":250,"d":"250.00₴"},{"v":250,"d":"250.00₴"},{"v":250,"d":"250.00₴"},{"v":250,"d":"250.00₴"},{"v":3000,"d":"3,000.00₴"}]
[null,"Інтернет",{"v":180,"d":"180.00₴"},{"v":180,"d":"180.00₴"},{"v":180,"d":"180.00₴"},{"v":180,"d":"180.00₴"},{"v":180,"d":"180.00₴"},{"v":180,"d":"180.00₴"},{"v":180,"d":"180.00₴"},{"v":180,"d":"180.00₴"},{"v":180,"d":"180.00₴"},{"v":180,"d":"180.00₴"},{"v":180,"d":"180.00₴"},{"v":180,"d":"180.00₴"},{"v":2160,"d":"2,160.00₴"}]
[null,"Матеріально-технічне забезпечення офісу",{"v":200,"d":"200.00₴"},{"v":200,"d":"200.00₴"},{"v":200,"d":"200.00₴"},{"v":200,"d":"200.00₴"},{"v":200,"d":"200.00₴"},{"v":200,"d":"200.00₴"},{"v":200,"d":"200.00₴"},{"v":200,"d":"200.00₴"},{"v":200,"d":"200.00₴"},{"v":200,"d":"200.00₴"},{"v":200,"d":"200.00₴"},{"v":200,"d":"200.00₴"},{"v":2400,"d":"2,400.00₴"}]
[null,"Безпека",{"v":600,"d":"600.00₴"},{"v":600,"d":"600.00₴"},{"v":600,"d":"600.00₴"},{"v":600,"d":"600.00₴"},{"v":600,"d":"600.00₴"},{"v":600,"d":"600.00₴"},{"v":600,"d":"600.00₴"},{"v":600,"d":"600.00₴"},{"v":600,"d":"600.00₴"},{"v":600,"d":"600.00₴"},{"v":600,"d":"600.00₴"},{"v":600,"d":"600.00₴"},{"v":7200,"d":"7,200.00₴"}]
[null,"Проміжний підсумок",{"$f":"SUBTOTAL(109,ЗапланованіВитратиНаОфіс[Січ])","v":{"v":11370,"d":"11,370.00₴"}},{"$f":"SUBTOTAL(109,ЗапланованіВитратиНаОфіс[Лют])","v":{"v":11770,"d":"11,770.00₴"}},{"$f":"SUBTOTAL(109,ЗапланованіВитратиНаОфіс[Бер])","v":{"v":11770,"d":"11,770.00₴"}},{"$f":"SUBTOTAL(109,ЗапланованіВитратиНаОфіс[Кві])","v":{"v":11470,"d":"11,470.00₴"}},{"$f":"SUBTOTAL(109,ЗапланованіВитратиНаОфіс[Тра])","v":{"v":11470,"d":"11,470.00₴"}},{"$f":"SUBTOTAL(109,ЗапланованіВитратиНаОфіс[Чер])","v":{"v":11470,"d":"11,470.00₴"}},{"$f":"SUBTOTAL(109,ЗапланованіВитратиНаОфіс[Лип])","v":{"v":11470,"d":"11,470.00₴"}},{"$f":"SUBTOTAL(109,ЗапланованіВитратиНаОфіс[Cер])","v":{"v":11470,"d":"11,470.00₴"}},{"$f":"SUBTOTAL(109,ЗапланованіВитратиНаОфіс[Вер])","v":{"v":11470,"d":"11,470.00₴"}},{"$f":"SUBTOTAL(109,ЗапланованіВитратиНаОфіс[Жов])","v":{"v":11470,"d":"11,470.00₴"}},{"$f":"SUBTOTAL(109,ЗапланованіВитратиНаОфіс[Лис])","v":{"v":11770,"d":"11,770.00₴"}},{"$f":"SUBTOTAL(109,ЗапланованіВитратиНаОфіс[Гру])","v":{"v":11770,"d":"11,770.00₴"}},{"$f":"SUBTOTAL(109,ЗапланованіВитратиНаОфіс[РІК])","v":{"v":138740,"d":"138,740.00₴"}}]
[]
["Введіть заплановані витрати на маркетингову кампанію в таблицю, починаючи з клітинки праворуч. Подальші вказівки наведено в клітинці A30.","Витрати на маркетинг","Січ","Лют","Бер","Кві","Тра","Чер","Лип","Cер","Вер","Жов","Лис","Гру","РІК"]
[null,"Розміщення веб-сайту",{"v":500,"d":"500.00₴"},{"v":500,"d":"500.00₴"},{"v":500,"d":"500.00₴"},{"v":500,"d":"500.00₴"},{"v":500,"d":"500.00₴"},{"v":500,"d":"500.00₴"},{"v":500,"d":"500.00₴"},{"v":500,"d":"500.00₴"},{"v":500,"d":"500.00₴"},{"v":500,"d":"500.00₴"},{"v":500,"d":"500.00₴"},{"v":500,"d":"500.00₴"},{"$f":"SUM(C22:N22)","v":{"v":6000,"d":"6,000.00₴"}}]
[null,"Оновлення веб-сайту",{"v":200,"d":"200.00₴"},{"v":200,"d":"200.00₴"},{"v":200,"d":"200.00₴"},{"v":200,"d":"200.00₴"},{"v":200,"d":"200.00₴"},{"v":1000,"d":"1,000.00₴"},{"v":200,"d":"200.00₴"},{"v":200,"d":"200.00₴"},{"v":200,"d":"200.00₴"},{"v":200,"d":"200.00₴"},{"v":200,"d":"200.00₴"},{"v":1000,"d":"1,000.00₴"},{"v":4000,"d":"4,000.00₴"}]
[null,"Підготовка супровідних матеріалів",{"v":5000,"d":"5,000.00₴"},{"v":0,"d":"0.00₴"},{"v":0,"d":"0.00₴"},{"v":5000,"d":"5,000.00₴"},{"v":0,"d":"0.00₴"},{"v":0,"d":"0.00₴"},{"v":5000,"d":"5,000.00₴"},{"v":0,"d":"0.00₴"},{"v":0,"d":"0.00₴"},{"v":5000,"d":"5,000.00₴"},{"v":0,"d":"0.00₴"},{"v":0,"d":"0.00₴"},{"v":20000,"d":"20,000.00₴"}]
[null,"Друк супровідних матеріалів",{"v":200,"d":"200.00₴"},{"v":200,"d":"200.00₴"},{"v":200,"d":"200.00₴"},{"v":200,"d":"200.00₴"},{"v":200,"d":"200.00₴"},{"v":200,"d":"200.00₴"},{"v":200,"d":"200.00₴"},{"v":200,"d":"200.00₴"},{"v":200,"d":"200.00₴"},{"v":200,"d":"200.00₴"},{"v":200,"d":"200.00₴"},{"v":200,"d":"200.00₴"},{"v":2400,"d":"2,400.00₴"}]
[null,"Маркетингові заходи",{"v":2000,"d":"2,000.00₴"},{"v":2000,"d":"2,000.00₴"},{"v":2000,"d":"2,000.00₴"},{"v":5000,"d":"5,000.00₴"},{"v":2000,"d":"2,000.00₴"},{"v":2000,"d":"2,000.00₴"},{"v":2000,"d":"2,000.00₴"},{"v":5000,"d":"5,000.00₴"},{"v":2000,"d":"2,000.00₴"},{"v":2000,"d":"2,000.00₴"},{"v":2000,"d":"2,000.00₴"},{"v":5000,"d":"5,000.00₴"},{"v":33000,"d":"33,000.00₴"}]
[null,"Інші витрати",{"v":200,"d":"200.00₴"},{"v":200,"d":"200.00₴"},{"v":200,"d":"200.00₴"},{"v":200,"d":"200.00₴"},{"v":200,"d":"200.00₴"},{"v":200,"d":"200.00₴"},{"v":200,"d":"200.00₴"},{"v":200,"d":"200.00₴"},{"v":200,"d":"200.00₴"},{"v":200,"d":"200.00₴"},{"v":200,"d":"200.00₴"},{"v":200,"d":"200.00₴"},{"v":2400,"d":"2,400.00₴"}]
[null,"Проміжний підсумок",{"$f":"SUBTOTAL(109,ЗапланованіВитратиНаМаркетинг[Січ])","v":{"v":8100,"d":"8,100.00₴"}},{"$f":"SUBTOTAL(109,ЗапланованіВитратиНаМаркетинг[Лют])","v":{"v":3100,"d":"3,100.00₴"}},{"$f":"SUBTOTAL(109,ЗапланованіВитратиНаМаркетинг[Бер])","v":{"v":3100,"d":"3,100.00₴"}},{"$f":"SUBTOTAL(109,ЗапланованіВитратиНаМаркетинг[Кві])","v":{"v":11100,"d":"11,100.00₴"}},{"$f":"SUBTOTAL(109,ЗапланованіВитратиНаМаркетинг[Тра])","v":{"v":3100,"d":"3,100.00₴"}},{"$f":"SUBTOTAL(109,ЗапланованіВитратиНаМаркетинг[Чер])","v":{"v":3900,"d":"3,900.00₴"}},{"$f":"SUBTOTAL(109,ЗапланованіВитратиНаМаркетинг[Лип])","v":{"v":8100,"d":"8,100.00₴"}},{"$f":"SUBTOTAL(109,ЗапланованіВитратиНаМаркетинг[Cер])","v":{"v":6100,"d":"6,100.00₴"}},{"$f":"SUBTOTAL(109,ЗапланованіВитратиНаМаркетинг[Вер])","v":{"v":3100,"d":"3,100.00₴"}},{"$f":"SUBTOTAL(109,ЗапланованіВитратиНаМаркетинг[Жов])","v":{"v":8100,"d":"8,100.00₴"}},{"$f":"SUBTOTAL(109,ЗапланованіВитратиНаМаркетинг[Лис])","v":{"v":3100,"d":"3,100.00₴"}},{"$f":"SUBTOTAL(109,ЗапланованіВитратиНаМаркетинг[Гру])","v":{"v":6900,"d":"6,900.00₴"}},{"$f":"SUBTOTAL(109,ЗапланованіВитратиНаМаркетинг[РІК])","v":{"v":67800,"d":"67,800.00₴"}}]
[]
["Введіть заплановані витрати на підготовчі курси та відрядження в таблицю, починаючи з клітинки праворуч. Подальші вказівки наведено в клітинці A35.","Курси та відрядження","Січ","Лют","Бер","Кві","Тра","Чер","Лип","Cер","Вер","Жов","Лис","Гру","РІК"]
[null,"Підготовчі курси",{"v":2000,"d":"2,000.00₴"},{"v":2000,"d":"2,000.00₴"},{"v":2000,"d":"2,000.00₴"},{"v":2000,"d":"2,000.00₴"},{"v":2000,"d":"2,000.00₴"},{"v":2000,"d":"2,000.00₴"},{"v":2000,"d":"2,000.00₴"},{"v":2000,"d":"2,000.00₴"},{"v":2000,"d":"2,000.00₴"},{"v":2000,"d":"2,000.00₴"},{"v":2000,"d":"2,000.00₴"},{"v":2000,"d":"2,000.00₴"},{"$f":"SUM(C31:N31)","v":{"v":24000,"d":"24,000.00₴"}}]
[null,"Витрати на відрядження, пов’язані з курсами",{"v":2000,"d":"2,000.00₴"},{"v":2000,"d":"2,000.00₴"},{"v":2000,"d":"2,000.00₴"},{"v":2000,"d":"2,000.00₴"},{"v":2000,"d":"2,000.00₴"},{"v":2000,"d":"2,000.00₴"},{"v":2000,"d":"2,000.00₴"},{"v":2000,"d":"2,000.00₴"},{"v":2000,"d":"2,000.00₴"},{"v":2000,"d":"2,000.00₴"},{"v":2000,"d":"2,000.00₴"},{"v":2000,"d":"2,000.00₴"},{"$f":"SUM(C32:N32)","v":{"v":24000,"d":"24,000.00₴"}}]
[null,"Проміжний підсумок",{"$f":"SUBTOTAL(109,ЗапланованіВитратиНаКурсиТаВідрядження[Січ])","v":{"v":4000,"d":"4,000.00₴"}},{"$f":"SUBTOTAL(109,ЗапланованіВитратиНаКурсиТаВідрядження[Лют])","v":{"v":4000,"d":"4,000.00₴"}},{"$f":"SUBTOTAL(109,ЗапланованіВитратиНаКурсиТаВідрядження[Бер])","v":{"v":4000,"d":"4,000.00₴"}},{"$f":"SUBTOTAL(109,ЗапланованіВитратиНаКурсиТаВідрядження[Кві])","v":{"v":4000,"d":"4,000.00₴"}},{"$f":"SUBTOTAL(109,ЗапланованіВитратиНаКурсиТаВідрядження[Тра])","v":{"v":4000,"d":"4,000.00₴"}},{"$f":"SUBTOTAL(109,ЗапланованіВитратиНаКурсиТаВідрядження[Чер])","v":{"v":4000,"d":"4,000.00₴"}},{"$f":"SUBTOTAL(109,ЗапланованіВитратиНаКурсиТаВідрядження[Лип])","v":{"v":4000,"d":"4,000.00₴"}},{"$f":"SUBTOTAL(109,ЗапланованіВитратиНаКурсиТаВідрядження[Cер])","v":{"v":4000,"d":"4,000.00₴"}},{"$f":"SUBTOTAL(109,ЗапланованіВитратиНаКурсиТаВідрядження[Вер])","v":{"v":4000,"d":"4,000.00₴"}},{"$f":"SUBTOTAL(109,ЗапланованіВитратиНаКурсиТаВідрядження[Жов])","v":{"v":4000,"d":"4,000.00₴"}},{"$f":"SUBTOTAL(109,ЗапланованіВитратиНаКурсиТаВідрядження[Лис])","v":{"v":4000,"d":"4,000.00₴"}},{"$f":"SUBTOTAL(109,ЗапланованіВитратиНаКурсиТаВідрядження[Гру])","v":{"v":4000,"d":"4,000.00₴"}},{"$f":"SUBTOTAL(109,ЗапланованіВитратиНаКурсиТаВідрядження[РІК])","v":{"v":48000,"d":"48,000.00₴"}}]
[]
["Підсумки автоматично обчислюються в таблиці запланованих загальних витрат, починаючи з клітинки праворуч.","УСЬОГО","Січ","Лют","Бер","Кві","Тра","Чер","Лип","Cер","Вер","Жов","Лис","Гру","Рік"]
[null,"Щомісячні заплановані витрати",{"$f":"ЗапланованіВитратиНаКурсиТаВідрядження[[#Totals],[Січ]]+ЗапланованіВитратиНаМаркетинг[[#Totals],[Січ]]+ЗапланованіВитратиНаОфіс[[#Totals],[Січ]]+ЗапланованіВитратиНаПрацівників[[#Totals],[Січ]]","v":{"v":131420,"d":"131,420.00₴"}},{"$f":"ЗапланованіВитратиНаКурсиТаВідрядження[[#Totals],[Лют]]+ЗапланованіВитратиНаМаркетинг[[#Totals],[Лют]]+ЗапланованіВитратиНаОфіс[[#Totals],[Лют]]+ЗапланованіВитратиНаПрацівників[[#Totals],[Лют]]","v":{"v":126820,"d":"126,820.00₴"}},{"$f":"ЗапланованіВитратиНаКурсиТаВідрядження[[#Totals],[Бер]]+ЗапланованіВитратиНаМаркетинг[[#Totals],[Бер]]+ЗапланованіВитратиНаОфіс[[#Totals],[Бер]]+ЗапланованіВитратиНаПрацівників[[#Totals],[Бер]]","v":{"v":126820,"d":"126,820.00₴"}},{"$f":"ЗапланованіВитратиНаКурсиТаВідрядження[[#Totals],[Кві]]+ЗапланованіВитратиНаМаркетинг[[#Totals],[Кві]]+ЗапланованіВитратиНаОфіс[[#Totals],[Кві]]+ЗапланованіВитратиНаПрацівників[[#Totals],[Кві]]","v":{"v":137695,"d":"137,695.00₴"}},{"$f":"ЗапланованіВитратиНаКурсиТаВідрядження[[#Totals],[Тра]]+ЗапланованіВитратиНаМаркетинг[[#Totals],[Тра]]+ЗапланованіВитратиНаОфіс[[#Totals],[Тра]]+ЗапланованіВитратиНаПрацівників[[#Totals],[Тра]]","v":{"v":129695,"d":"129,695.00₴"}},{"$f":"ЗапланованіВитратиНаКурсиТаВідрядження[[#Totals],[Чер]]+ЗапланованіВитратиНаМаркетинг[[#Totals],[Чер]]+ЗапланованіВитратиНаОфіс[[#Totals],[Чер]]+ЗапланованіВитратиНаПрацівників[[#Totals],[Чер]]","v":{"v":130495,"d":"130,495.00₴"}},{"$f":"ЗапланованіВитратиНаКурсиТаВідрядження[[#Totals],[Лип]]+ЗапланованіВитратиНаМаркетинг[[#Totals],[Лип]]+ЗапланованіВитратиНаОфіс[[#Totals],[Лип]]+ЗапланованіВитратиНаПрацівників[[#Totals],[Лип]]","v":{"v":134695,"d":"134,695.00₴"}},{"$f":"ЗапланованіВитратиНаКурсиТаВідрядження[[#Totals],[Cер]]+ЗапланованіВитратиНаМаркетинг[[#Totals],[Cер]]+ЗапланованіВитратиНаОфіс[[#Totals],[Cер]]+ЗапланованіВитратиНаПрацівників[[#Totals],[Cер]]","v":{"v":138918,"d":"138,918.00₴"}},{"$f":"ЗапланованіВитратиНаКурсиТаВідрядження[[#Totals],[Вер]]+ЗапланованіВитратиНаМаркетинг[[#Totals],[Вер]]+ЗапланованіВитратиНаОфіс[[#Totals],[Вер]]+ЗапланованіВитратиНаПрацівників[[#Totals],[Вер]]","v":{"v":135918,"d":"135,918.00₴"}},{"$f":"ЗапланованіВитратиНаКурсиТаВідрядження[[#Totals],[Жов]]+ЗапланованіВитратиНаМаркетинг[[#Totals],[Жов]]+ЗапланованіВитратиНаОфіс[[#Totals],[Жов]]+ЗапланованіВитратиНаПрацівників[[#Totals],[Жов]]","v":{"v":140918,"d":"140,918.00₴"}},{"$f":"ЗапланованіВитратиНаКурсиТаВідрядження[[#Totals],[Лис]]+ЗапланованіВитратиНаМаркетинг[[#Totals],[Лис]]+ЗапланованіВитратиНаОфіс[[#Totals],[Лис]]+ЗапланованіВитратиНаПрацівників[[#Totals],[Лис]]","v":{"v":136218,"d":"136,218.00₴"}},{"$f":"ЗапланованіВитратиНаКурсиТаВідрядження[[#Totals],[Гру]]+ЗапланованіВитратиНаМаркетинг[[#Totals],[Гру]]+ЗапланованіВитратиНаОфіс[[#Totals],[Гру]]+ЗапланованіВитратиНаПрацівників[[#Totals],[Гру]]","v":{"v":140018,"d":"140,018.00₴"}},{"$f":"ЗапланованіВитратиНаКурсиТаВідрядження[[#Totals],[РІК]]+ЗапланованіВитратиНаМаркетинг[[#Totals],[РІК]]+ЗапланованіВитратиНаОфіс[[#Totals],[РІК]]+ЗапланованіВитратиНаПрацівників[[#Totals],[РІК]]","v":{"v":1609630,"d":"1,609,630.00₴"}}]
[null,"Загальні заплановані витрати",{"$f":"SUM($C$36:C36)","v":{"v":131420,"d":"131,420.00₴"}},{"$f":"SUM($C$36:D36)","v":{"v":258240,"d":"258,240.00₴"}},{"$f":"SUM($C$36:E36)","v":{"v":385060,"d":"385,060.00₴"}},{"$f":"SUM($C$36:F36)","v":{"v":522755,"d":"522,755.00₴"}},{"$f":"SUM($C$36:G36)","v":{"v":652450,"d":"652,450.00₴"}},{"$f":"SUM($C$36:H36)","v":{"v":782945,"d":"782,945.00₴"}},{"$f":"SUM($C$36:I36)","v":{"v":917640,"d":"917,640.00₴"}},{"$f":"SUM($C$36:J36)","v":{"v":1056558,"d":"1,056,558.00₴"}},{"$f":"SUM($C$36:K36)","v":{"v":1192476,"d":"1,192,476.00₴"}},{"$f":"SUM($C$36:L36)","v":{"v":1333394,"d":"1,333,394.00₴"}},{"$f":"SUM($C$36:M36)","v":{"v":1469612,"d":"1,469,612.00₴"}},{"$f":"SUM($C$36:N36)","v":{"v":1609630,"d":"1,609,630.00₴"}}]

{"sheet":"ФАКТИЧНІ ВИТРАТИ","index":2,"n_rows":37,"n_cols":16,"rows_kept":37,"merged":[[1,1,2,3],[1,10,1,12],[1,13,2,14],[2,10,2,12],[8,1,8,2],[19,1,19,2],[28,1,28,2],[33,1,33,2]]}
["Введіть фактичні витрати на працівників, офіс, маркетинг, підготовчі курси та відрядження у відповідні таблиці на цьому аркуші. Підсумки обчислюються автоматично. Корисні вказівки щодо роботи з цим аркушем наведено в клітинках у цьому стовпці. Клацніть стрілку вниз, щоб почати.",{"$nulls":14}," "]
["Назва компанії автоматично оновлюється в клітинці праворуч. Заголовок цього аркуша наведено в клітинці K2. Додайте емблему до клітинки N2.",{"$f":"'ЗАПЛАНОВАНІ ВИТРАТИ'!B2:D3","v":"Назва компанії"},{"$nulls":8},{"$f":"заголовок_аркуша","v":"Докладна оцінка витрат"},null,null,"Заповнювач для емблеми наведено в цій клітинці."]
["Пораду наведено в клітинці K3.",{"$nulls":9},"У затемнених клітинках наведено обчислені суми."]
["Підпис \"Фактичні витрати\" наведено в клітинці праворуч, назви місяців – у клітинках C4:N4, а підпис \"Рік\" – у клітинці O4.","ФАКТИЧНІ ВИТРАТИ","СІЧ","ЛЮТ","БЕР","КВІ","ТРА","ЧЕР","ЛИП","СЕР","ВЕР","ЖОВ","ЛИС","ГРУ","РІК"]
["Введіть фактичні витрати на працівників у таблицю, починаючи з клітинки праворуч. Подальші вказівки наведено в клітинці A10.","Витрати на працівників","Січ","Лют","Бер","Кві","Тра","Чер","Лип","Cер","Вер","Жов","Лис","Гру","РІК"]
[null,"Заробітна плата",{"v":85000,"d":"85,000.00₴"},{"v":85000,"d":"85,000.00₴"},{"v":85000,"d":"85,000.00₴"},{"v":88000,"d":"88,000.00₴"},{"v":88000,"d":"88,000.00₴"},{"v":88000,"d":"88,000.00₴"},{"$nulls":6},{"$f":"SUM(C6:N6)","v":{"v":519000,"d":"519,000.00₴"}}]
[null,"Пільги",{"$f":"C6*0.27","v":{"v":22950,"d":"22,950.00₴"}},{"v":22950,"d":"22,950.00₴"},{"v":22950,"d":"22,950.00₴"},{"v":23760,"d":"23,760.00₴"},{"v":23760,"d":"23,760.00₴"},{"v":23760,"d":"23,760.00₴"},{"v":0,"d":"0.00₴"},{"v":0,"d":"0.00₴"},{"v":0,"d":"0.00₴"},{"v":0,"d":"0.00₴"},{"v":0,"d":"0.00₴"},{"v":0,"d":"0.00₴"},{"$f":"SUM(C7:N7)","v":{"v":140130,"d":"140,130.00₴"}}]
[null,"Проміжний підсумок",{"$f":"SUBTOTAL(109,ФактичніВитратиНаПрацівників[Січ])","v":{"v":107950,"d":"107,950.00₴"}},{"$f":"SUBTOTAL(109,ФактичніВитратиНаПрацівників[Лют])","v":{"v":107950,"d":"107,950.00₴"}},{"$f":"SUBTOTAL(109,ФактичніВитратиНаПрацівників[Бер])","v":{"v":107950,"d":"107,950.00₴"}},{"$f":"SUBTOTAL(109,ФактичніВитратиНаПрацівників[Кві])","v":{"v":111760,"d":"111,760.00₴"}},{"$f":"SUBTOTAL(109,ФактичніВитратиНаПрацівників[Тра])","v":{"v":111760,"d":"111,760.00₴"}},{"$f":"SUBTOTAL(109,ФактичніВитратиНаПрацівників[Чер])","v":{"v":111760,"d":"111,760.00₴"}},{"$f":"SUBTOTAL(109,ФактичніВитратиНаПрацівників[Лип])","v":{"v":0,"d":"0.00₴"}},{"$f":"SUBTOTAL(109,ФактичніВитратиНаПрацівників[Cер])","v":{"v":0,"d":"0.00₴"}},{"$f":"SUBTOTAL(109,ФактичніВитратиНаПрацівників[Вер])","v":{"v":0,"d":"0.00₴"}},{"$f":"SUBTOTAL(109,ФактичніВитратиНаПрацівників[Жов])","v":{"v":0,"d":"0.00₴"}},{"$f":"SUBTOTAL(109,ФактичніВитратиНаПрацівників[Лис])","v":{"v":0,"d":"0.00₴"}},{"$f":"SUBTOTAL(109,ФактичніВитратиНаПрацівників[Гру])","v":{"v":0,"d":"0.00₴"}},{"$f":"SUBTOTAL(109,ФактичніВитратиНаПрацівників[РІК])","v":{"v":659130,"d":"659,130.00₴"}}]
[]
["Введіть фактичні витрати на офіс у таблицю, починаючи з клітинки праворуч. Подальші вказівки наведено в клітинці A21.","Витрати на офіс","Січ","Лют","Бер","Кві","Тра","Чер","Лип","Cер","Вер","Жов","Лис","Гру","РІК"]
[null,"Оренда офісу",{"v":9800,"d":"9,800.00₴"},{"v":9800,"d":"9,800.00₴"},{"v":9800,"d":"9,800.00₴"},{"v":9800,"d":"9,800.00₴"},{"v":9800,"d":"9,800.00₴"},{"v":9800,"d":"9,800.00₴"},{"$nulls":6},{"$f":"SUM(C11:N11)","v":{"v":58800,"d":"58,800.00₴"}}]
[null,"Газ",{"v":4,"d":"4.00₴"},{"v":430,"d":"430.00₴"},{"v":385,"d":"385.00₴"},{"v":230,"d":"230.00₴"},{"v":87,"d":"87.00₴"},{"v":88,"d":"88.00₴"},{"$nulls":6},{"v":1224,"d":"1,224.00₴"}]
[null,"Електроенергія",{"v":288,"d":"288.00₴"},{"v":278,"d":"278.00₴"},{"v":268,"d":"268.00₴"},{"v":299,"d":"299.00₴"},{"v":306,"d":"306.00₴"},{"v":290,"d":"290.00₴"},{"$nulls":6},{"v":1729,"d":"1,729.00₴"}]
[null,"Вода",{"v":35,"d":"35.00₴"},{"v":33,"d":"33.00₴"},{"v":34,"d":"34.00₴"},{"v":36,"d":"36.00₴"},{"v":34,"d":"34.00₴"},{"v":36,"d":"36.00₴"},{"$nulls":6},{"v":208,"d":"208.00₴"}]
[null,"Телефон",{"v":224,"d":"224.00₴"},{"v":235,"d":"235.00₴"},{"v":265,"d":"265.00₴"},{"v":245,"d":"245.00₴"},{"v":245,"d":"245.00₴"},{"v":220,"d":"220.00₴"},{"$nulls":6},{"v":1434,"d":"1,434.00₴"}]
[null,"Інтернет",{"v":180,"d":"180.00₴"},{"v":180,"d":"180.00₴"},{"v":180,"d":"180.00₴"},{"v":180,"d":"180.00₴"},{"v":180,"d":"180.00₴"},{"v":180,"d":"180.00₴"},{"$nulls":6},{"v":1080,"d":"1,080.00₴"}]
[null,"Матеріально-технічне забезпечення офісу",{"v":256,"d":"256.00₴"},{"v":142,"d":"142.00₴"},{"v":160,"d":"160.00₴"},{"v":221,"d":"221.00₴"},{"v":256,"d":"256.00₴"},{"v":240,"d":"240.00₴"},{"$nulls":6},{"v":1275,"d":"1,275.00₴"}]
[null,"Безпека",{"v":600,"d":"600.00₴"},{"v":600,"d":"600.00₴"},{"v":600,"d":"600.00₴"},{"v":600,"d":"600.00₴"},{"v":600,"d":"600.00₴"},{"v":600,"d":"600.00₴"},{"$nulls":6},{"v":3600,"d":"3,600.00₴"}]
[null,"Проміжний підсумок",{"$f":"SUBTOTAL(109,ФактичніВитратиНаОфіс[Січ])","v":{"v":11387,"d":"11,387.00₴"}},{"$f":"SUBTOTAL(109,ФактичніВитратиНаОфіс[Лют])","v":{"v":11698,"d":"11,698.00₴"}},{"$f":"SUBTOTAL(109,ФактичніВитратиНаОфіс[Бер])","v":{"v":11692,"d":"11,692.00₴"}},{"$f":"SUBTOTAL(109,ФактичніВитратиНаОфіс[Кві])","v":{"v":11611,"d":"11,611.00₴"}},{"$f":"SUBTOTAL(109,ФактичніВитратиНаОфіс[Тра])","v":{"v":11508,"d":"11,508.00₴"}},{"$f":"SUBTOTAL(109,ФактичніВитратиНаОфіс[Чер])","v":{"v":11454,"d":"11,454.00₴"}},{"$f":"SUBTOTAL(109,ФактичніВитратиНаОфіс[Лип])","v":{"v":0,"d":"0.00₴"}},{"$f":"SUBTOTAL(109,ФактичніВитратиНаОфіс[Cер])","v":{"v":0,"d":"0.00₴"}},{"$f":"SUBTOTAL(109,ФактичніВитратиНаОфіс[Вер])","v":{"v":0,"d":"0.00₴"}},{"$f":"SUBTOTAL(109,ФактичніВитратиНаОфіс[Жов])","v":{"v":0,"d":"0.00₴"}},{"$f":"SUBTOTAL(109,ФактичніВитратиНаОфіс[Лис])","v":{"v":0,"d":"0.00₴"}},{"$f":"SUBTOTAL(109,ФактичніВитратиНаОфіс[Гру])","v":{"v":0,"d":"0.00₴"}},{"$f":"SUBTOTAL(109,ФактичніВитратиНаОфіс[РІК])","v":{"v":69350,"d":"69,350.00₴"}}]
[]
["Введіть фактичні витрати на маркетинг кампанію в таблицю, починаючи з клітинки праворуч. Подальші вказівки наведено в клітинці A30.","Витрати на маркетинг","Січ","Лют","Бер","Кві","Тра","Чер","Лип","Cер","Вер","Жов","Лис","Гру","РІК"]
[null,"Розміщення веб-сайту",{"v":500,"d":"500.00₴"},{"v":500,"d":"500.00₴"},{"v":500,"d":"500.00₴"},{"v":500,"d":"500.00₴"},{"v":500,"d":"500.00₴"},{"v":500,"d":"500.00₴"},{"$nulls":6},{"$f":"SUM(C22:N22)","v":{"v":3000,"d":"3,000.00₴"}}]
[null,"Оновлення веб-сайту",{"v":200,"d":"200.00₴"},{"v":200,"d":"200.00₴"},{"v":200,"d":"200.00₴"},{"v":200,"d":"200.00₴"},{"v":200,"d":"200.00₴"},{"v":1500,"d":"1,500.00₴"},{"$nulls":6},{"v":2500,"d":"2,500.00₴"}]
[null,"Підготовка супровідних матеріалів",{"v":4800,"d":"4,800.00₴"},{"v":0,"d":"0.00₴"},{"v":0,"d":"0.00₴"},{"v":5500,"d":"5,500.00₴"},{"v":0,"d":"0.00₴"},{"v":0,"d":"0.00₴"},{"$nulls":6},{"v":10300,"d":"10,300.00₴"}]
[null,"Друк супровідних матеріалів",{"v":100,"d":"100.00₴"},{"v":500,"d":"500.00₴"},{"v":100,"d":"100.00₴"},{"v":100,"d":"100.00₴"},{"v":600,"d":"600.00₴"},{"v":180,"d":"180.00₴"},{"$nulls":6},{"v":1580,"d":"1,580.00₴"}]
[null,"Маркетингові заходи",{"v":1800,"d":"1,800.00₴"},{"v":2200,"d":"2,200.00₴"},{"v":2200,"d":"2,200.00₴"},{"v":4700,"d":"4,700.00₴"},{"v":1500,"d":"1,500.00₴"},{"v":2300,"d":"2,300.00₴"},{"$nulls":6},{"v":14700,"d":"14,700.00₴"}]
[null,"Інші витрати",{"v":145,"d":"145.00₴"},{"v":156,"d":"156.00₴"},{"v":123,"d":"123.00₴"},{"v":223,"d":"223.00₴"},{"v":187,"d":"187.00₴"},{"v":245,"d":"245.00₴"},{"$nulls":6},{"v":1079,"d":"1,079.00₴"}]
[null,"Проміжний підсумок",{"$f":"SUBTOTAL(109,ФактичніВитратиНаМаркетинг[Січ])","v":{"v":7545,"d":"7,545.00₴"}},{"$f":"SUBTOTAL(109,ФактичніВитратиНаМаркетинг[Лют])","v":{"v":3556,"d":"3,556.00₴"}},{"$f":"SUBTOTAL(109,ФактичніВитратиНаМаркетинг[Бер])","v":{"v":3123,"d":"3,123.00₴"}},{"$f":"SUBTOTAL(109,ФактичніВитратиНаМаркетинг[Кві])","v":{"v":11223,"d":"11,223.00₴"}},{"$f":"SUBTOTAL(109,ФактичніВитратиНаМаркетинг[Тра])","v":{"v":2987,"d":"2,987.00₴"}},{"$f":"SUBTOTAL(109,ФактичніВитратиНаМаркетинг[Чер])","v":{"v":4725,"d":"4,725.00₴"}},{"$f":"SUBTOTAL(109,ФактичніВитратиНаМаркетинг[Лип])","v":{"v":0,"d":"0.00₴"}},{"$f":"SUBTOTAL(109,ФактичніВитратиНаМаркетинг[Cер])","v":{"v":0,"d":"0.00₴"}},{"$f":"SUBTOTAL(109,ФактичніВитратиНаМаркетинг[Вер])","v":{"v":0,"d":"0.00₴"}},{"$f":"SUBTOTAL(109,ФактичніВитратиНаМаркетинг[Жов])","v":{"v":0,"d":"0.00₴"}},{"$f":"SUBTOTAL(109,ФактичніВитратиНаМаркетинг[Лис])","v":{"v":0,"d":"0.00₴"}},{"$f":"SUBTOTAL(109,ФактичніВитратиНаМаркетинг[Гру])","v":{"v":0,"d":"0.00₴"}},{"$f":"SUBTOTAL(109,ФактичніВитратиНаМаркетинг[РІК])","v":{"v":33159,"d":"33,159.00₴"}}]
[]
["Введіть фактичні витрати на підготовчі курси та відрядження в таблицю, починаючи з клітинки праворуч. Подальші вказівки наведено в клітинці A35.","Курси та відрядження","Січ","Лют","Бер","Кві","Тра","Чер","Лип","Cер","Вер","Жов","Лис","Гру","РІК"]
[null,"Підготовчі курси",{"v":1600,"d":"1,600.00₴"},{"v":2400,"d":"2,400.00₴"},{"v":1400,"d":"1,400.00₴"},{"v":1600,"d":"1,600.00₴"},{"v":1200,"d":"1,200.00₴"},{"v":2800,"d":"2,800.00₴"},{"$nulls":6},{"$f":"SUM(C31:N31)","v":{"v":11000,"d":"11,000.00₴"}}]
[null,"Витрати на відрядження, пов’язані з курсами",{"v":1200,"d":"1,200.00₴"},{"v":2200,"d":"2,200.00₴"},{"v":1400,"d":"1,400.00₴"},{"v":1200,"d":"1,200.00₴"},{"v":800,"d":"800.00₴"},{"v":3500,"d":"3,500.00₴"},{"$nulls":6},{"$f":"SUM(C32:N32)","v":{"v":10300,"d":"10,300.00₴"}}]
[null,"Проміжний підсумок",{"$f":"SUBTOTAL(109,ФактичніВитратиНаКурсиТаВідрядження[Січ])","v":{"v":2800,"d":"2,800.00₴"}},{"$f":"SUBTOTAL(109,ФактичніВитратиНаКурсиТаВідрядження[Лют])","v":{"v":4600,"d":"4,600.00₴"}},{"$f":"SUBTOTAL(109,ФактичніВитратиНаКурсиТаВідрядження[Бер])","v":{"v":2800,"d":"2,800.00₴"}},{"$f":"SUBTOTAL(109,ФактичніВитратиНаКурсиТаВідрядження[Кві])","v":{"v":2800,"d":"2,800.00₴"}},{"$f":"SUBTOTAL(109,ФактичніВитратиНаКурсиТаВідрядження[Тра])","v":{"v":2000,"d":"2,000.00₴"}},{"$f":"SUBTOTAL(109,ФактичніВитратиНаКурсиТаВідрядження[Чер])","v":{"v":6300,"d":"6,300.00₴"}},{"$f":"SUBTOTAL(109,ФактичніВитратиНаКурсиТаВідрядження[Лип])","v":{"v":0,"d":"0.00₴"}},{"$f":"SUBTOTAL(109,ФактичніВитратиНаКурсиТаВідрядження[Cер])","v":{"v":0,"d":"0.00₴"}},{"$f":"SUBTOTAL(109,ФактичніВитратиНаКурсиТаВідрядження[Вер])","v":{"v":0,"d":"0.00₴"}},{"$f":"SUBTOTAL(109,ФактичніВитратиНаКурсиТаВідрядження[Жов])","v":{"v":0,"d":"0.00₴"}},{"$f":"SUBTOTAL(109,ФактичніВитратиНаКурсиТаВідрядження[Лис])","v":{"v":0,"d":"0.00₴"}},{"$f":"SUBTOTAL(109,ФактичніВитратиНаКурсиТаВідрядження[Гру])","v":{"v":0,"d":"0.00₴"}},{"$f":"SUBTOTAL(109,ФактичніВитратиНаКурсиТаВідрядження[РІК])","v":{"v":21300,"d":"21,300.00₴"}}]
[]
["Загальні фактичні витрати автоматично обчислюються в таблиці, починаючи з клітинки праворуч.","Загальні заплановані витрати","Січ","Лют","Бер","Кві","Тра","Чер","Лип","Cер","Вер","Жов","Лис","Гру","Рік"]
[null,"Щомісячні фактичні витрати",{"$f":"ФактичніВитратиНаКурсиТаВідрядження[[#Totals],[Січ]]+ФактичніВитратиНаМаркетинг[[#Totals],[Січ]]+ФактичніВитратиНаОфіс[[#Totals],[Січ]]+ФактичніВитратиНаПрацівників[[#Totals],[Січ]]","v":{"v":129682,"d":"129,682.00₴"}},{"$f":"ФактичніВитратиНаКурсиТаВідрядження[[#Totals],[Лют]]+ФактичніВитратиНаМаркетинг[[#Totals],[Лют]]+ФактичніВитратиНаОфіс[[#Totals],[Лют]]+ФактичніВитратиНаПрацівників[[#Totals],[Лют]]","v":{"v":127804,"d":"127,804.00₴"}},{"$f":"ФактичніВитратиНаКурсиТаВідрядження[[#Totals],[Бер]]+ФактичніВитратиНаМаркетинг[[#Totals],[Бер]]+ФактичніВитратиНаОфіс[[#Totals],[Бер]]+ФактичніВитратиНаПрацівників[[#Totals],[Бер]]","v":{"v":125565,"d":"125,565.00₴"}},{"$f":"ФактичніВитратиНаКурсиТаВідрядження[[#Totals],[Кві]]+ФактичніВитратиНаМаркетинг[[#Totals],[Кві]]+ФактичніВитратиНаОфіс[[#Totals],[Кві]]+ФактичніВитратиНаПрацівників[[#Totals],[Кві]]","v":{"v":137394,"d":"137,394.00₴"}},{"$f":"ФактичніВитратиНаКурсиТаВідрядження[[#Totals],[Тра]]+ФактичніВитратиНаМаркетинг[[#Totals],[Тра]]+ФактичніВитратиНаОфіс[[#Totals],[Тра]]+ФактичніВитратиНаПрацівників[[#Totals],[Тра]]","v":{"v":128255,"d":"128,255.00₴"}},{"$f":"ФактичніВитратиНаКурсиТаВідрядження[[#Totals],[Чер]]+ФактичніВитратиНаМаркетинг[[#Totals],[Чер]]+ФактичніВитратиНаОфіс[[#Totals],[Чер]]+ФактичніВитратиНаПрацівників[[#Totals],[Чер]]","v":{"v":134239,"d":"134,239.00₴"}},{"$f":"ФактичніВитратиНаКурсиТаВідрядження[[#Totals],[Лип]]+ФактичніВитратиНаМаркетинг[[#Totals],[Лип]]+ФактичніВитратиНаОфіс[[#Totals],[Лип]]+ФактичніВитратиНаПрацівників[[#Totals],[Лип]]","v":{"v":0,"d":"0.00₴"}},{"$f":"ФактичніВитратиНаКурсиТаВідрядження[[#Totals],[Cер]]+ФактичніВитратиНаМаркетинг[[#Totals],[Cер]]+ФактичніВитратиНаОфіс[[#Totals],[Cер]]+ФактичніВитратиНаПрацівників[[#Totals],[Cер]]","v":{"v":0,"d":"0.00₴"}},{"$f":"ФактичніВитратиНаКурсиТаВідрядження[[#Totals],[Вер]]+ФактичніВитратиНаМаркетинг[[#Totals],[Вер]]+ФактичніВитратиНаОфіс[[#Totals],[Вер]]+ФактичніВитратиНаПрацівників[[#Totals],[Вер]]","v":{"v":0,"d":"0.00₴"}},{"$f":"ФактичніВитратиНаКурсиТаВідрядження[[#Totals],[Жов]]+ФактичніВитратиНаМаркетинг[[#Totals],[Жов]]+ФактичніВитратиНаОфіс[[#Totals],[Жов]]+ФактичніВитратиНаПрацівників[[#Totals],[Жов]]","v":{"v":0,"d":"0.00₴"}},{"$f":"ФактичніВитратиНаКурсиТаВідрядження[[#Totals],[Лис]]+ФактичніВитратиНаМаркетинг[[#Totals],[Лис]]+ФактичніВитратиНаОфіс[[#Totals],[Лис]]+ФактичніВитратиНаПрацівників[[#Totals],[Лис]]","v":{"v":0,"d":"0.00₴"}},{"$f":"ФактичніВитратиНаКурсиТаВідрядження[[#Totals],[Гру]]+ФактичніВитратиНаМаркетинг[[#Totals],[Гру]]+ФактичніВитратиНаОфіс[[#Totals],[Гру]]+ФактичніВитратиНаПрацівників[[#Totals],[Гру]]","v":{"v":0,"d":"0.00₴"}},{"$f":"ФактичніВитратиНаКурсиТаВідрядження[[#Totals],[РІК]]+ФактичніВитратиНаМаркетинг[[#Totals],[РІК]]+ФактичніВитратиНаОфіс[[#Totals],[РІК]]+ФактичніВитратиНаПрацівників[[#Totals],[РІК]]","v":{"v":782939,"d":"782,939.00₴"}}]
[null,"Загальні фактичні витрати",{"$f":"SUM($C$36:C36)","v":{"v":129682,"d":"129,682.00₴"}},{"$f":"SUM($C$36:D36)","v":{"v":257486,"d":"257,486.00₴"}},{"$f":"SUM($C$36:E36)","v":{"v":383051,"d":"383,051.00₴"}},{"$f":"SUM($C$36:F36)","v":{"v":520445,"d":"520,445.00₴"}},{"$f":"SUM($C$36:G36)","v":{"v":648700,"d":"648,700.00₴"}},{"$f":"SUM($C$36:H36)","v":{"v":782939,"d":"782,939.00₴"}},{"$f":"SUM($C$36:I36)","v":{"v":782939,"d":"782,939.00₴"}},{"$f":"SUM($C$36:J36)","v":{"v":782939,"d":"782,939.00₴"}},{"$f":"SUM($C$36:K36)","v":{"v":782939,"d":"782,939.00₴"}},{"$f":"SUM($C$36:L36)","v":{"v":782939,"d":"782,939.00₴"}},{"$f":"SUM($C$36:M36)","v":{"v":782939,"d":"782,939.00₴"}},{"$f":"SUM($C$36:N36)","v":{"v":782939,"d":"782,939.00₴"}}]

{"sheet":"РІЗНИЦЯ ВИТРАТ","index":3,"n_rows":37,"n_cols":16,"rows_kept":37,"merged":[[1,1,2,3],[1,10,1,12],[1,13,2,14],[2,10,2,12],[8,1,8,2],[19,1,19,2],[28,1,28,2],[33,1,33,2]]}
["Різниця витрат на працівників, офіс, маркетинг, підготовчі курси та відрядження автоматично обчислюються у відповідних таблицях на цьому аркуші. Корисні вказівки щодо роботи з цим аркушем наведено в клітинках у цьому стовпці. Клацніть стрілку вниз, щоб почати.",{"$nulls":14}," "]
["Назва компанії автоматично оновлюється в клітинці праворуч. Заголовок цього аркуша наведено в клітинці K2. Додайте емблему до клітинки N2.",{"$f":"'ЗАПЛАНОВАНІ ВИТРАТИ'!B2:D3","v":"Назва компанії"},{"$nulls":8},{"$f":"заголовок_аркуша","v":"Докладна оцінка витрат"},null,null,"Заповнювач для емблеми наведено в цій клітинці."]
["Пораду наведено в клітинці K3.",{"$nulls":9},"У затемнених клітинках наведено обчислені суми."]
["Підпис \"Різниця витрат\" наведено в клітинці праворуч, назви місяців – у клітинках C4:N4, а підпис \"Рік\" – у клітинці O4.","РІЗНИЦЯ ВИТРАТ","СІЧ","ЛЮТ","БЕР","КВІ","ТРА","ЧЕР","ЛИП","СЕР","ВЕР","ЖОВ","ЛИС","ГРУ","РІК"]
["Різниця витрат на працівників автоматично обчислюється в таблиці, починаючи з клітинки праворуч. Подальші вказівки наведено в клітинці A10.","Витрати на працівників","Січ","Лют","Бер","Кві","Тра","Чер","Лип","Cер","Вер","Жов","Лис","Гру","РІК"]
[null,"Заробітна плата",{"$f":"INDEX(ЗапланованіВитратиНаПрацівників[],MATCH(INDEX(РізницяВитратНаПрацівників[],ROW()-ROW(РізницяВитратНаПрацівників[[#Headers],[Січ]]),1),INDEX(ЗапланованіВитратиНаПрацівників[],,1),0),MATCH(РізницяВитратНаПрацівників[[#Headers],[Січ]],ЗапланованіВитратиНаПрацівників[#Headers],0))-INDEX(ФактичніВитратиНаПрацівників[],MATCH(INDEX(РізницяВитратНаПрацівників[],ROW()-ROW(РізницяВитратНаПрацівників[[#Headers],[Січ]]),1),INDEX(ЗапланованіВитратиНаПрацівників[],,1),0),MATCH(РізницяВитратНаПрацівників[[#Headers],[Січ]],ФактичніВитратиНаПрацівників[#Headers],0))","v":{"v":0,"d":"0.00₴"}},{"$f":"INDEX(ЗапланованіВитратиНаПрацівників[],MATCH(INDEX(РізницяВитратНаПрацівників[],ROW()-ROW(РізницяВитратНаПрацівників[[#Headers],[Лют]]),1),INDEX(ЗапланованіВитратиНаПрацівників[],,1),0),MATCH(РізницяВитратНаПрацівників[[#Headers],[Лют]],ЗапланованіВитратиНаПрацівників[#Headers],0))-INDEX(ФактичніВитратиНаПрацівників[],MATCH(INDEX(РізницяВитратНаПрацівників[],ROW()-ROW(РізницяВитратНаПрацівників[[#Headers],[Лют]]),1),INDEX(ЗапланованіВитратиНаПрацівників[],,1),0),MATCH(РізницяВитратНаПрацівників[[#Headers],[Лют]],ФактичніВитратиНаПрацівників[#Headers],0))","v":{"v":0,"d":"0.00₴"}},{"$f":"INDEX(ЗапланованіВитратиНаПрацівників[],MATCH(INDEX(РізницяВитратНаПрацівників[],ROW()-ROW(РізницяВитратНаПрацівників[[#Headers],[Бер]]),1),INDEX(ЗапланованіВитратиНаПрацівників[],,1),0),MATCH(РізницяВитратНаПрацівників[[#Headers],[Бер]],ЗапланованіВитратиНаПрацівників[#Headers],0))-INDEX(ФактичніВитратиНаПрацівників[],MATCH(INDEX(РізницяВитратНаПрацівників[],ROW()-ROW(РізницяВитратНаПрацівників[[#Headers],[Бер]]),1),INDEX(ЗапланованіВитратиНаПрацівників[],,1),0),MATCH(РізницяВитратНаПрацівників[[#Headers],[Бер]],ФактичніВитратиНаПрацівників[#Headers],0))","v":{"v":0,"d":"0.00₴"}},{"$f":"INDEX(ЗапланованіВитратиНаПрацівників[],MATCH(INDEX(РізницяВитратНаПрацівників[],ROW()-ROW(РізницяВитратНаПрацівників[[#Headers],[Кві]]),1),INDEX(ЗапланованіВитратиНаПрацівників[],,1),0),MATCH(РізницяВитратНаПрацівників[[#Headers],[Кві]],ЗапланованіВитратиНаПрацівників[#Headers],0))-INDEX(ФактичніВитратиНаПрацівників[],MATCH(INDEX(РізницяВитратНаПрацівників[],ROW()-ROW(РізницяВитратНаПрацівників[[#Headers],[Кві]]),1),INDEX(ЗапланованіВитратиНаПрацівників[],,1),0),MATCH(РізницяВитратНаПрацівників[[#Headers],[Кві]],ФактичніВитратиНаПрацівників[#Headers],0))","v":{"v":-500,"d":"-500.00₴"}},{"$f":"INDEX(ЗапланованіВитратиНаПрацівників[],MATCH(INDEX(РізницяВитратНаПрацівників[],ROW()-ROW(РізницяВитратНаПрацівників[[#Headers],[Тра]]),1),INDEX(ЗапланованіВитратиНаПрацівників[],,1),0),MATCH(РізницяВитратНаПрацівників[[#Headers],[Тра]],ЗапланованіВитратиНаПрацівників[#Headers],0))-INDEX(ФактичніВитратиНаПрацівників[],MATCH(INDEX(РізницяВитратНаПрацівників[],ROW()-ROW(РізницяВитратНаПрацівників[[#Headers],[Тра]]),1),INDEX(ЗапланованіВитратиНаПрацівників[],,1),0),MATCH(РізницяВитратНаПрацівників[[#Headers],[Тра]],ФактичніВитратиНаПрацівників[#Headers],0))","v":{"v":-500,"d":"-500.00₴"}},{"$f":"INDEX(ЗапланованіВитратиНаПрацівників[],MATCH(INDEX(РізницяВитратНаПрацівників[],ROW()-ROW(РізницяВитратНаПрацівників[[#Headers],[Чер]]),1),INDEX(ЗапланованіВитратиНаПрацівників[],,1),0),MATCH(РізницяВитратНаПрацівників[[#Headers],[Чер]],ЗапланованіВитратиНаПрацівників[#Headers],0))-INDEX(ФактичніВитратиНаПрацівників[],MATCH(INDEX(РізницяВитратНаПрацівників[],ROW()-ROW(РізницяВитратНаПрацівників[[#Headers],[Чер]]),1),INDEX(ЗапланованіВитратиНаПрацівників[],,1),0),MATCH(РізницяВитратНаПрацівників[[#Headers],[Чер]],ФактичніВитратиНаПрацівників[#Headers],0))","v":{"v":-500,"d":"-500.00₴"}},{"$f":"INDEX(ЗапланованіВитратиНаПрацівників[],MATCH(INDEX(РізницяВитратНаПрацівників[],ROW()-ROW(РізницяВитратНаПрацівників[[#Headers],[Лип]]),1),INDEX(ЗапланованіВитратиНаПрацівників[],,1),0),MATCH(РізницяВитратНаПрацівників[[#Headers],[Лип]],ЗапланованіВитратиНаПрацівників[#Headers],0))-INDEX(ФактичніВитратиНаПрацівників[],MATCH(INDEX(РізницяВитратНаПрацівників[],ROW()-ROW(РізницяВитратНаПрацівників[[#Headers],[Лип]]),1),INDEX(ЗапланованіВитратиНаПрацівників[],,1),0),MATCH(РізницяВитратНаПрацівників[[#Headers],[Лип]],ФактичніВитратиНаПрацівників[#Headers],0))","v":{"v":87500,"d":"87,500.00₴"}},{"$f":"INDEX(ЗапланованіВитратиНаПрацівників[],MATCH(INDEX(РізницяВитратНаПрацівників[],ROW()-ROW(РізницяВитратНаПрацівників[[#Headers],[Cер]]),1),INDEX(ЗапланованіВитратиНаПрацівників[],,1),0),MATCH(РізницяВитратНаПрацівників[[#Headers],[Cер]],ЗапланованіВитратиНаПрацівників[#Headers],0))-INDEX(ФактичніВитратиНаПрацівників[],MATCH(INDEX(РізницяВитратНаПрацівників[],ROW()-ROW(РізницяВитратНаПрацівників[[#Headers],[Cер]]),1),INDEX(ЗапланованіВитратиНаПрацівників[],,1),0),MATCH(РізницяВитратНаПрацівників[[#Headers],[Cер]],ФактичніВитратиНаПрацівників[#Headers],0))","v":{"v":92400,"d":"92,400.00₴"}},{"$f":"INDEX(ЗапланованіВитратиНаПрацівників[],MATCH(INDEX(РізницяВитратНаПрацівників[],ROW()-ROW(РізницяВитратНаПрацівників[[#Headers],[Вер]]),1),INDEX(ЗапланованіВитратиНаПрацівників[],,1),0),MATCH(РізницяВитратНаПрацівників[[#Headers],[Вер]],ЗапланованіВитратиНаПрацівників[#Headers],0))-INDEX(ФактичніВитратиНаПрацівників[],MATCH(INDEX(РізницяВитратНаПрацівників[],ROW()-ROW(РізницяВитратНаПрацівників[[#Headers],[Вер]]),1),INDEX(ЗапланованіВитратиНаПрацівників[],,1),0),MATCH(РізницяВитратНаПрацівників[[#Headers],[Вер]],ФактичніВитратиНаПрацівників[#Headers],0))","v":{"v":92400,"d":"92,400.00₴"}},{"$f":"INDEX(ЗапланованіВитратиНаПрацівників[],MATCH(INDEX(РізницяВитратНаПрацівників[],ROW()-ROW(РізницяВитратНаПрацівників[[#Headers],[Жов]]),1),INDEX(ЗапланованіВитратиНаПрацівників[],,1),0),MATCH(РізницяВитратНаПрацівників[[#Headers],[Жов]],ЗапланованіВитратиНаПрацівників[#Headers],0))-INDEX(ФактичніВитратиНаПрацівників[],MATCH(INDEX(РізницяВитратНаПрацівників[],ROW()-ROW(РізницяВитратНаПрацівників[[#Headers],[Жов]]),1),INDEX(ЗапланованіВитратиНаПрацівників[],,1),0),MATCH(РізницяВитратНаПрацівників[[#Headers],[Жов]],ФактичніВитратиНаПрацівників[#Headers],0))","v":{"v":92400,"d":"92,400.00₴"}},{"$f":"INDEX(ЗапланованіВитратиНаПрацівників[],MATCH(INDEX(РізницяВитратНаПрацівників[],ROW()-ROW(РізницяВитратНаПрацівників[[#Headers],[Лис]]),1),INDEX(ЗапланованіВитратиНаПрацівників[],,1),0),MATCH(РізницяВитратНаПрацівників[[#Headers],[Лис]],ЗапланованіВитратиНаПрацівників[#Headers],0))-INDEX(ФактичніВитратиНаПрацівників[],MATCH(INDEX(РізницяВитратНаПрацівників[],ROW()-ROW(РізницяВитратНаПрацівників[[#Headers],[Лис]]),1),INDEX(ЗапланованіВитратиНаПрацівників[],,1),0),MATCH(РізницяВитратНаПрацівників[[#Headers],[Лис]],ФактичніВитратиНаПрацівників[#Headers],0))","v":{"v":92400,"d":"92,400.00₴"}},{"$f":"INDEX(ЗапланованіВитратиНаПрацівників[],MATCH(INDEX(РізницяВитратНаПрацівників[],ROW()-ROW(РізницяВитратНаПрацівників[[#Headers],[Гру]]),1),INDEX(ЗапланованіВитратиНаПрацівників[],,1),0),MATCH(РізницяВитратНаПрацівників[[#Headers],[Гру]],ЗапланованіВитратиНаПрацівників[#Headers],0))-INDEX(ФактичніВитратиНаПрацівників[],MATCH(INDEX(РізницяВитратНаПрацівників[],ROW()-ROW(РізницяВитратНаПрацівників[[#Headers],[Гру]]),1),INDEX(ЗапланованіВитратиНаПрацівників[],,1),0),MATCH(РізницяВитратНаПрацівників[[#Headers],[Гру]],ФактичніВитратиНаПрацівників[#Headers],0))","v":{"v":92400,"d":"92,400.00₴"}},{"$f":"SUM(РізницяВитратНаПрацівників[[#This Row],[Січ]:[Гру]])","v":{"v":548000,"d":"548,000.00₴"}}]
[null,"Пільги",{"$f":"INDEX(ЗапланованіВитратиНаПрацівників[],MATCH(INDEX(РізницяВитратНаПрацівників[],ROW()-ROW(РізницяВитратНаПрацівників[[#Headers],[Січ]]),1),INDEX(ЗапланованіВитратиНаПрацівників[],,1),0),MATCH(РізницяВитратНаПрацівників[[#Headers],[Січ]],ЗапланованіВитратиНаПрацівників[#Headers],0))-INDEX(ФактичніВитратиНаПрацівників[],MATCH(INDEX(РізницяВитратНаПрацівників[],ROW()-ROW(РізницяВитратНаПрацівників[[#Headers],[Січ]]),1),INDEX(ЗапланованіВитратиНаПрацівників[],,1),0),MATCH(РізницяВитратНаПрацівників[[#Headers],[Січ]],ФактичніВитратиНаПрацівників[#Headers],0))","v":{"v":0,"d":"0.00₴"}},{"$f":"INDEX(ЗапланованіВитратиНаПрацівників[],MATCH(INDEX(РізницяВитратНаПрацівників[],ROW()-ROW(РізницяВитратНаПрацівників[[#Headers],[Лют]]),1),INDEX(ЗапланованіВитратиНаПрацівників[],,1),0),MATCH(РізницяВитратНаПрацівників[[#Headers],[Лют]],ЗапланованіВитратиНаПрацівників[#Headers],0))-INDEX(ФактичніВитратиНаПрацівників[],MATCH(INDEX(РізницяВитратНаПрацівників[],ROW()-ROW(РізницяВитратНаПрацівників[[#Headers],[Лют]]),1),INDEX(ЗапланованіВитратиНаПрацівників[],,1),0),MATCH(РізницяВитратНаПрацівників[[#Headers],[Лют]],ФактичніВитратиНаПрацівників[#Headers],0))","v":{"v":0,"d":"0.00₴"}},{"$f":"INDEX(ЗапланованіВитратиНаПрацівників[],MATCH(INDEX(РізницяВитратНаПрацівників[],ROW()-ROW(РізницяВитратНаПрацівників[[#Headers],[Бер]]),1),INDEX(ЗапланованіВитратиНаПрацівників[],,1),0),MATCH(РізницяВитратНаПрацівників[[#Headers],[Бер]],ЗапланованіВитратиНаПрацівників[#Headers],0))-INDEX(ФактичніВитратиНаПрацівників[],MATCH(INDEX(РізницяВитратНаПрацівників[],ROW()-ROW(РізницяВитратНаПрацівників[[#Headers],[Бер]]),1),INDEX(ЗапланованіВитратиНаПрацівників[],,1),0),MATCH(РізницяВитратНаПрацівників[[#Headers],[Бер]],ФактичніВитратиНаПрацівників[#Headers],0))","v":{"v":0,"d":"0.00₴"}},{"$f":"INDEX(ЗапланованіВитратиНаПрацівників[],MATCH(INDEX(РізницяВитратНаПрацівників[],ROW()-ROW(РізницяВитратНаПрацівників[[#Headers],[Кві]]),1),INDEX(ЗапланованіВитратиНаПрацівників[],,1),0),MATCH(РізницяВитратНаПрацівників[[#Headers],[Кві]],ЗапланованіВитратиНаПрацівників[#Headers],0))-INDEX(ФактичніВитратиНаПрацівників[],MATCH(INDEX(РізницяВитратНаПрацівників[],ROW()-ROW(РізницяВитратНаПрацівників[[#Headers],[Кві]]),1),INDEX(ЗапланованіВитратиНаПрацівників[],,1),0),MATCH(РізницяВитратНаПрацівників[[#Headers],[Кві]],ФактичніВитратиНаПрацівників[#Headers],0))","v":{"v":-135,"d":"-135.00₴"}},{"$f":"INDEX(ЗапланованіВитратиНаПрацівників[],MATCH(INDEX(РізницяВитратНаПрацівників[],ROW()-ROW(РізницяВитратНаПрацівників[[#Headers],[Тра]]),1),INDEX(ЗапланованіВитратиНаПрацівників[],,1),0),MATCH(РізницяВитратНаПрацівників[[#Headers],[Тра]],ЗапланованіВитратиНаПрацівників[#Headers],0))-INDEX(ФактичніВитратиНаПрацівників[],MATCH(INDEX(РізницяВитратНаПрацівників[],ROW()-ROW(РізницяВитратНаПрацівників[[#Headers],[Тра]]),1),INDEX(ЗапланованіВитратиНаПрацівників[],,1),0),MATCH(РізницяВитратНаПрацівників[[#Headers],[Тра]],ФактичніВитратиНаПрацівників[#Headers],0))","v":{"v":-135,"d":"-135.00₴"}},{"$f":"INDEX(ЗапланованіВитратиНаПрацівників[],MATCH(INDEX(РізницяВитратНаПрацівників[],ROW()-ROW(РізницяВитратНаПрацівників[[#Headers],[Чер]]),1),INDEX(ЗапланованіВитратиНаПрацівників[],,1),0),MATCH(РізницяВитратНаПрацівників[[#Headers],[Чер]],ЗапланованіВитратиНаПрацівників[#Headers],0))-INDEX(ФактичніВитратиНаПрацівників[],MATCH(INDEX(РізницяВитратНаПрацівників[],ROW()-ROW(РізницяВитратНаПрацівників[[#Headers],[Чер]]),1),INDEX(ЗапланованіВитратиНаПрацівників[],,1),0),MATCH(РізницяВитратНаПрацівників[[#Headers],[Чер]],ФактичніВитратиНаПрацівників[#Headers],0))","v":{"v":-135,"d":"-135.00₴"}},{"$f":"INDEX(ЗапланованіВитратиНаПрацівників[],MATCH(INDEX(РізницяВитратНаПрацівників[],ROW()-ROW(РізницяВитратНаПрацівників[[#Headers],[Лип]]),1),INDEX(ЗапланованіВитратиНаПрацівників[],,1),0),MATCH(РізницяВитратНаПрацівників[[#Headers],[Лип]],ЗапланованіВитратиНаПрацівників[#Headers],0))-INDEX(ФактичніВитратиНаПрацівників[],MATCH(INDEX(РізницяВитратНаПрацівників[],ROW()-ROW(РізницяВитратНаПрацівників[[#Headers],[Лип]]),1),INDEX(ЗапланованіВитратиНаПрацівників[],,1),0),MATCH(РізницяВитратНаПрацівників[[#Headers],[Лип]],ФактичніВитратиНаПрацівників[#Headers],0))","v":{"v":23625,"d":"23,625.00₴"}},{"$f":"INDEX(ЗапланованіВитратиНаПрацівників[],MATCH(INDEX(РізницяВитратНаПрацівників[],ROW()-ROW(РізницяВитратНаПрацівників[[#Headers],[Cер]]),1),INDEX(ЗапланованіВитратиНаПрацівників[],,1),0),MATCH(РізницяВитратНаПрацівників[[#Headers],[Cер]],ЗапланованіВитратиНаПрацівників[#Headers],0))-INDEX(ФактичніВитратиНаПрацівників[],MATCH(INDEX(РізницяВитратНаПрацівників[],ROW()-ROW(РізницяВитратНаПрацівників[[#Headers],[Cер]]),1),INDEX(ЗапланованіВитратиНаПрацівників[],,1),0),MATCH(РізницяВитратНаПрацівників[[#Headers],[Cер]],ФактичніВитратиНаПрацівників[#Headers],0))","v":{"v":24948,"d":"24,948.00₴"}},{"$f":"INDEX(ЗапланованіВитратиНаПрацівників[],MATCH(INDEX(РізницяВитратНаПрацівників[],ROW()-ROW(РізницяВитратНаПрацівників[[#Headers],[Вер]]),1),INDEX(ЗапланованіВитратиНаПрацівників[],,1),0),MATCH(РізницяВитратНаПрацівників[[#Headers],[Вер]],ЗапланованіВитратиНаПрацівників[#Headers],0))-INDEX(ФактичніВитратиНаПрацівників[],MATCH(INDEX(РізницяВитратНаПрацівників[],ROW()-ROW(РізницяВитратНаПрацівників[[#Headers],[Вер]]),1),INDEX(ЗапланованіВитратиНаПрацівників[],,1),0),MATCH(РізницяВитратНаПрацівників[[#Headers],[Вер]],ФактичніВитратиНаПрацівників[#Headers],0))","v":{"v":24948,"d":"24,948.00₴"}},{"$f":"INDEX(ЗапланованіВитратиНаПрацівників[],MATCH(INDEX(РізницяВитратНаПрацівників[],ROW()-ROW(РізницяВитратНаПрацівників[[#Headers],[Жов]]),1),INDEX(ЗапланованіВитратиНаПрацівників[],,1),0),MATCH(РізницяВитратНаПрацівників[[#Headers],[Жов]],ЗапланованіВитратиНаПрацівників[#Headers],0))-INDEX(ФактичніВитратиНаПрацівників[],MATCH(INDEX(РізницяВитратНаПрацівників[],ROW()-ROW(РізницяВитратНаПрацівників[[#Headers],[Жов]]),1),INDEX(ЗапланованіВитратиНаПрацівників[],,1),0),MATCH(РізницяВитратНаПрацівників[[#Headers],[Жов]],ФактичніВитратиНаПрацівників[#Headers],0))","v":{"v":24948,"d":"24,948.00₴"}},{"$f":"INDEX(ЗапланованіВитратиНаПрацівників[],MATCH(INDEX(РізницяВитратНаПрацівників[],ROW()-ROW(РізницяВитратНаПрацівників[[#Headers],[Лис]]),1),INDEX(ЗапланованіВитратиНаПрацівників[],,1),0),MATCH(РізницяВитратНаПрацівників[[#Headers],[Лис]],ЗапланованіВитратиНаПрацівників[#Headers],0))-INDEX(ФактичніВитратиНаПрацівників[],MATCH(INDEX(РізницяВитратНаПрацівників[],ROW()-ROW(РізницяВитратНаПрацівників[[#Headers],[Лис]]),1),INDEX(ЗапланованіВитратиНаПрацівників[],,1),0),MATCH(РізницяВитратНаПрацівників[[#Headers],[Лис]],ФактичніВитратиНаПрацівників[#Headers],0))","v":{"v":24948,"d":"24,948.00₴"}},{"$f":"INDEX(ЗапланованіВитратиНаПрацівників[],MATCH(INDEX(РізницяВитратНаПрацівників[],ROW()-ROW(РізницяВитратНаПрацівників[[#Headers],[Гру]]),1),INDEX(ЗапланованіВитратиНаПрацівників[],,1),0),MATCH(РізницяВитратНаПрацівників[[#Headers],[Гру]],ЗапланованіВитратиНаПрацівників[#Headers],0))-INDEX(ФактичніВитратиНаПрацівників[],MATCH(INDEX(РізницяВитратНаПрацівників[],ROW()-ROW(РізницяВитратНаПрацівників[[#Headers],[Гру]]),1),INDEX(ЗапланованіВитратиНаПрацівників[],,1),0),MATCH(РізницяВитратНаПрацівників[[#Headers],[Гру]],ФактичніВитратиНаПрацівників[#Headers],0))","v":{"v":24948,"d":"24,948.00₴"}},{"$f":"SUM(РізницяВитратНаПрацівників[[#This Row],[Січ]:[Гру]])","v":{"v":147960,"d":"147,960.00₴"}}]
[null,"Проміжний підсумок",{"$f":"SUBTOTAL(109,РізницяВитратНаПрацівників[Січ])","v":{"v":0,"d":"0.00₴"}},{"$f":"SUBTOTAL(109,РізницяВитратНаПрацівників[Лют])","v":{"v":0,"d":"0.00₴"}},{"$f":"SUBTOTAL(109,РізницяВитратНаПрацівників[Бер])","v":{"v":0,"d":"0.00₴"}},{"$f":"SUBTOTAL(109,РізницяВитратНаПрацівників[Кві])","v":{"v":-635,"d":"-635.00₴"}},{"$f":"SUBTOTAL(109,РізницяВитратНаПрацівників[Тра])","v":{"v":-635,"d":"-635.00₴"}},{"$f":"SUBTOTAL(109,РізницяВитратНаПрацівників[Чер])","v":{"v":-635,"d":"-635.00₴"}},{"$f":"SUBTOTAL(109,РізницяВитратНаПрацівників[Лип])","v":{"v":111125,"d":"111,125.00₴"}},{"$f":"SUBTOTAL(109,РізницяВитратНаПрацівників[Cер])","v":{"v":117348,"d":"117,348.00₴"}},{"$f":"SUBTOTAL(109,РізницяВитратНаПрацівників[Вер])","v":{"v":117348,"d":"117,348.00₴"}},{"$f":"SUBTOTAL(109,РізницяВитратНаПрацівників[Жов])","v":{"v":117348,"d":"117,348.00₴"}},{"$f":"SUBTOTAL(109,РізницяВитратНаПрацівників[Лис])","v":{"v":117348,"d":"117,348.00₴"}},{"$f":"SUBTOTAL(109,РізницяВитратНаПрацівників[Гру])","v":{"v":117348,"d":"117,348.00₴"}},{"$f":"SUBTOTAL(109,РізницяВитратНаПрацівників[РІК])","v":{"v":695960,"d":"695,960.00₴"}}]
[]
["Різниця витрати на офіс автоматично обчислюється в таблиці, починаючи з клітинки праворуч. Подальші вказівки наведено в клітинці A21.","Витрати на офіс","Січ","Лют","Бер","Кві","Тра","Чер","Лип","Cер","Вер","Жов","Лис","Гру","РІК"]
[null,"Оренда офісу",{"$f":"INDEX(ЗапланованіВитратиНаОфіс[],MATCH(INDEX(РізницяВитратНаОфіс[],ROW()-ROW(РізницяВитратНаОфіс[[#Headers],[Січ]]),1),INDEX(ЗапланованіВитратиНаОфіс[],,1),0),MATCH(РізницяВитратНаОфіс[[#Headers],[Січ]],ЗапланованіВитратиНаОфіс[#Headers],0))-INDEX(ФактичніВитратиНаОфіс[],MATCH(INDEX(РізницяВитратНаОфіс[],ROW()-ROW(РізницяВитратНаОфіс[[#Headers],[Січ]]),1),INDEX(ЗапланованіВитратиНаОфіс[],,1),0),MATCH(РізницяВитратНаОфіс[[#Headers],[Січ]],ФактичніВитратиНаОфіс[#Headers],0))","v":{"v":0,"d":"0.00₴"}},{"$f":"INDEX(ЗапланованіВитратиНаОфіс[],MATCH(INDEX(РізницяВитратНаОфіс[],ROW()-ROW(РізницяВитратНаОфіс[[#Headers],[Лют]]),1),INDEX(ЗапланованіВитратиНаОфіс[],,1),0),MATCH(РізницяВитратНаОфіс[[#Headers],[Лют]],ЗапланованіВитратиНаОфіс[#Headers],0))-INDEX(ФактичніВитратиНаОфіс[],MATCH(INDEX(РізницяВитратНаОфіс[],ROW()-ROW(РізницяВитратНаОфіс[[#Headers],[Лют]]),1),INDEX(ЗапланованіВитратиНаОфіс[],,1),0),MATCH(РізницяВитратНаОфіс[[#Headers],[Лют]],ФактичніВитратиНаОфіс[#Headers],0))","v":{"v":0,"d":"0.00₴"}},{"$f":"INDEX(ЗапланованіВитратиНаОфіс[],MATCH(INDEX(РізницяВитратНаОфіс[],ROW()-ROW(РізницяВитратНаОфіс[[#Headers],[Бер]]),1),INDEX(ЗапланованіВитратиНаОфіс[],,1),0),MATCH(РізницяВитратНаОфіс[[#Headers],[Бер]],ЗапланованіВитратиНаОфіс[#Headers],0))-INDEX(ФактичніВитратиНаОфіс[],MATCH(INDEX(РізницяВитратНаОфіс[],ROW()-ROW(РізницяВитратНаОфіс[[#Headers],[Бер]]),1),INDEX(ЗапланованіВитратиНаОфіс[],,1),0),MATCH(РізницяВитратНаОфіс[[#Headers],[Бер]],ФактичніВитратиНаОфіс[#Headers],0))","v":{"v":0,"d":"0.00₴"}},{"$f":"INDEX(ЗапланованіВитратиНаОфіс[],MATCH(INDEX(РізницяВитратНаОфіс[],ROW()-ROW(РізницяВитратНаОфіс[[#Headers],[Кві]]),1),INDEX(ЗапланованіВитратиНаОфіс[],,1),0),MATCH(РізницяВитратНаОфіс[[#Headers],[Кві]],ЗапланованіВитратиНаОфіс[#Headers],0))-INDEX(ФактичніВитратиНаОфіс[],MATCH(INDEX(РізницяВитратНаОфіс[],ROW()-ROW(РізницяВитратНаОфіс[[#Headers],[Кві]]),1),INDEX(ЗапланованіВитратиНаОфіс[],,1),0),MATCH(РізницяВитратНаОфіс[[#Headers],[Кві]],ФактичніВитратиНаОфіс[#Headers],0))","v":{"v":0,"d":"0.00₴"}},{"$f":"INDEX(ЗапланованіВитратиНаОфіс[],MATCH(INDEX(РізницяВитратНаОфіс[],ROW()-ROW(РізницяВитратНаОфіс[[#Headers],[Тра]]),1),INDEX(ЗапланованіВитратиНаОфіс[],,1),0),MATCH(РізницяВитратНаОфіс[[#Headers],[Тра]],ЗапланованіВитратиНаОфіс[#Headers],0))-INDEX(ФактичніВитратиНаОфіс[],MATCH(INDEX(РізницяВитратНаОфіс[],ROW()-ROW(РізницяВитратНаОфіс[[#Headers],[Тра]]),1),INDEX(ЗапланованіВитратиНаОфіс[],,1),0),MATCH(РізницяВитратНаОфіс[[#Headers],[Тра]],ФактичніВитратиНаОфіс[#Headers],0))","v":{"v":0,"d":"0.00₴"}},{"$f":"INDEX(ЗапланованіВитратиНаОфіс[],MATCH(INDEX(РізницяВитратНаОфіс[],ROW()-ROW(РізницяВитратНаОфіс[[#Headers],[Чер]]),1),INDEX(ЗапланованіВитратиНаОфіс[],,1),0),MATCH(РізницяВитратНаОфіс[[#Headers],[Чер]],ЗапланованіВитратиНаОфіс[#Headers],0))-INDEX(ФактичніВитратиНаОфіс[],MATCH(INDEX(РізницяВитратНаОфіс[],ROW()-ROW(РізницяВитратНаОфіс[[#Headers],[Чер]]),1),INDEX(ЗапланованіВитратиНаОфіс[],,1),0),MATCH(РізницяВитратНаОфіс[[#Headers],[Чер]],ФактичніВитратиНаОфіс[#Headers],0))","v":{"v":0,"d":"0.00₴"}},{"$f":"INDEX(ЗапланованіВитратиНаОфіс[],MATCH(INDEX(РізницяВитратНаОфіс[],ROW()-ROW(РізницяВитратНаОфіс[[#Headers],[Лип]]),1),INDEX(ЗапланованіВитратиНаОфіс[],,1),0),MATCH(РізницяВитратНаОфіс[[#Headers],[Лип]],ЗапланованіВитратиНаОфіс[#Headers],0))-INDEX(ФактичніВитратиНаОфіс[],MATCH(INDEX(РізницяВитратНаОфіс[],ROW()-ROW(РізницяВитратНаОфіс[[#Headers],[Лип]]),1),INDEX(ЗапланованіВитратиНаОфіс[],,1),0),MATCH(РізницяВитратНаОфіс[[#Headers],[Лип]],ФактичніВитратиНаОфіс[#Headers],0))","v":{"v":9800,"d":"9,800.00₴"}},{"$f":"INDEX(ЗапланованіВитратиНаОфіс[],MATCH(INDEX(РізницяВитратНаОфіс[],ROW()-ROW(РізницяВитратНаОфіс[[#Headers],[Cер]]),1),INDEX(ЗапланованіВитратиНаОфіс[],,1),0),MATCH(РізницяВитратНаОфіс[[#Headers],[Cер]],ЗапланованіВитратиНаОфіс[#Headers],0))-INDEX(ФактичніВитратиНаОфіс[],MATCH(INDEX(РізницяВитратНаОфіс[],ROW()-ROW(РізницяВитратНаОфіс[[#Headers],[Cер]]),1),INDEX(ЗапланованіВитратиНаОфіс[],,1),0),MATCH(РізницяВитратНаОфіс[[#Headers],[Cер]],ФактичніВитратиНаОфіс[#Headers],0))","v":{"v":9800,"d":"9,800.00₴"}},{"$f":"INDEX(ЗапланованіВитратиНаОфіс[],MATCH(INDEX(РізницяВитратНаОфіс[],ROW()-ROW(РізницяВитратНаОфіс[[#Headers],[Вер]]),1),INDEX(ЗапланованіВитратиНаОфіс[],,1),0),MATCH(РізницяВитратНаОфіс[[#Headers],[Вер]],ЗапланованіВитратиНаОфіс[#Headers],0))-INDEX(ФактичніВитратиНаОфіс[],MATCH(INDEX(РізницяВитратНаОфіс[],ROW()-ROW(РізницяВитратНаОфіс[[#Headers],[Вер]]),1),INDEX(ЗапланованіВитратиНаОфіс[],,1),0),MATCH(РізницяВитратНаОфіс[[#Headers],[Вер]],ФактичніВитратиНаОфіс[#Headers],0))","v":{"v":9800,"d":"9,800.00₴"}},{"$f":"INDEX(ЗапланованіВитратиНаОфіс[],MATCH(INDEX(РізницяВитратНаОфіс[],ROW()-ROW(РізницяВитратНаОфіс[[#Headers],[Жов]]),1),INDEX(ЗапланованіВитратиНаОфіс[],,1),0),MATCH(РізницяВитратНаОфіс[[#Headers],[Жов]],ЗапланованіВитратиНаОфіс[#Headers],0))-INDEX(ФактичніВитратиНаОфіс[],MATCH(INDEX(РізницяВитратНаОфіс[],ROW()-ROW(РізницяВитратНаОфіс[[#Headers],[Жов]]),1),INDEX(ЗапланованіВитратиНаОфіс[],,1),0),MATCH(РізницяВитратНаОфіс[[#Headers],[Жов]],ФактичніВитратиНаОфіс[#Headers],0))","v":{"v":9800,"d":"9,800.00₴"}},{"$f":"INDEX(ЗапланованіВитратиНаОфіс[],MATCH(INDEX(РізницяВитратНаОфіс[],ROW()-ROW(РізницяВитратНаОфіс[[#Headers],[Лис]]),1),INDEX(ЗапланованіВитратиНаОфіс[],,1),0),MATCH(РізницяВитратНаОфіс[[#Headers],[Лис]],ЗапланованіВитратиНаОфіс[#Headers],0))-INDEX(ФактичніВитратиНаОфіс[],MATCH(INDEX(РізницяВитратНаОфіс[],ROW()-ROW(РізницяВитратНаОфіс[[#Headers],[Лис]]),1),INDEX(ЗапланованіВитратиНаОфіс[],,1),0),MATCH(РізницяВитратНаОфіс[[#Headers],[Лис]],ФактичніВитратиНаОфіс[#Headers],0))","v":{"v":9800,"d":"9,800.00₴"}},{"$f":"INDEX(ЗапланованіВитратиНаОфіс[],MATCH(INDEX(РізницяВитратНаОфіс[],ROW()-ROW(РізницяВитратНаОфіс[[#Headers],[Гру]]),1),INDEX(ЗапланованіВитратиНаОфіс[],,1),0),MATCH(РізницяВитратНаОфіс[[#Headers],[Гру]],ЗапланованіВитратиНаОфіс[#Headers],0))-INDEX(ФактичніВитратиНаОфіс[],MATCH(INDEX(РізницяВитратНаОфіс[],ROW()-ROW(РізницяВитратНаОфіс[[#Headers],[Гру]]),1),INDEX(ЗапланованіВитратиНаОфіс[],,1),0),MATCH(РізницяВитратНаОфіс[[#Headers],[Гру]],ФактичніВитратиНаОфіс[#Headers],0))","v":{"v":9800,"d":"9,800.00₴"}},{"$f":"SUM(РізницяВитратНаОфіс[[#This Row],[Січ]:[Гру]])","v":{"v":58800,"d":"58,800.00₴"}}]
[null,"Газ",{"$f":"INDEX(ЗапланованіВитратиНаОфіс[],MATCH(INDEX(РізницяВитратНаОфіс[],ROW()-ROW(РізницяВитратНаОфіс[[#Headers],[Січ]]),1),INDEX(ЗапланованіВитратиНаОфіс[],,1),0),MATCH(РізницяВитратНаОфіс[[#Headers],[Січ]],ЗапланованіВитратиНаОфіс[#Headers],0))-INDEX(ФактичніВитратиНаОфіс[],MATCH(INDEX(РізницяВитратНаОфіс[],ROW()-ROW(РізницяВитратНаОфіс[[#Headers],[Січ]]),1),INDEX(ЗапланованіВитратиНаОфіс[],,1),0),MATCH(РізницяВитратНаОфіс[[#Headers],[Січ]],ФактичніВитратиНаОфіс[#Headers],0))","v":{"v":-4,"d":"-4.00₴"}},{"$f":"INDEX(ЗапланованіВитратиНаОфіс[],MATCH(INDEX(РізницяВитратНаОфіс[],ROW()-ROW(РізницяВитратНаОфіс[[#Headers],[Лют]]),1),INDEX(ЗапланованіВитратиНаОфіс[],,1),0),MATCH(РізницяВитратНаОфіс[[#Headers],[Лют]],ЗапланованіВитратиНаОфіс[#Headers],0))-INDEX(ФактичніВитратиНаОфіс[],MATCH(INDEX(РізницяВитратНаОфіс[],ROW()-ROW(РізницяВитратНаОфіс[[#Headers],[Лют]]),1),INDEX(ЗапланованіВитратиНаОфіс[],,1),0),MATCH(РізницяВитратНаОфіс[[#Headers],[Лют]],ФактичніВитратиНаОфіс[#Headers],0))","v":{"v":-30,"d":"-30.00₴"}},{"$f":"INDEX(ЗапланованіВитратиНаОфіс[],MATCH(INDEX(РізницяВитратНаОфіс[],ROW()-ROW(РізницяВитратНаОфіс[[#Headers],[Бер]]),1),INDEX(ЗапланованіВитратиНаОфіс[],,1),0),MATCH(РізницяВитратНаОфіс[[#Headers],[Бер]],ЗапланованіВитратиНаОфіс[#Headers],0))-INDEX(ФактичніВитратиНаОфіс[],MATCH(INDEX(РізницяВитратНаОфіс[],ROW()-ROW(РізницяВитратНаОфіс[[#Headers],[Бер]]),1),INDEX(ЗапланованіВитратиНаОфіс[],,1),0),MATCH(РізницяВитратНаОфіс[[#Headers],[Бер]],ФактичніВитратиНаОфіс[#Headers],0))","v":{"v":15,"d":"15.00₴"}},{"$f":"INDEX(ЗапланованіВитратиНаОфіс[],MATCH(INDEX(РізницяВитратНаОфіс[],ROW()-ROW(РізницяВитратНаОфіс[[#Headers],[Кві]]),1),INDEX(ЗапланованіВитратиНаОфіс[],,1),0),MATCH(РізницяВитратНаОфіс[[#Headers],[Кві]],ЗапланованіВитратиНаОфіс[#Headers],0))-INDEX(ФактичніВитратиНаОфіс[],MATCH(INDEX(РізницяВитратНаОфіс[],ROW()-ROW(РізницяВитратНаОфіс[[#Headers],[Кві]]),1),INDEX(ЗапланованіВитратиНаОфіс[],,1),0),MATCH(РізницяВитратНаОфіс[[#Headers],[Кві]],ФактичніВитратиНаОфіс[#Headers],0))","v":{"v":-130,"d":"-130.00₴"}},{"$f":"INDEX(ЗапланованіВитратиНаОфіс[],MATCH(INDEX(РізницяВитратНаОфіс[],ROW()-ROW(РізницяВитратНаОфіс[[#Headers],[Тра]]),1),INDEX(ЗапланованіВитратиНаОфіс[],,1),0),MATCH(РізницяВитратНаОфіс[[#Headers],[Тра]],ЗапланованіВитратиНаОфіс[#Headers],0))-INDEX(ФактичніВитратиНаОфіс[],MATCH(INDEX(РізницяВитратНаОфіс[],ROW()-ROW(РізницяВитратНаОфіс[[#Headers],[Тра]]),1),INDEX(ЗапланованіВитратиНаОфіс[],,1),0),MATCH(РізницяВитратНаОфіс[[#Headers],[Тра]],ФактичніВитратиНаОфіс[#Headers],0))","v":{"v":13,"d":"13.00₴"}},{"$f":"INDEX(ЗапланованіВитратиНаОфіс[],MATCH(INDEX(РізницяВитратНаОфіс[],ROW()-ROW(РізницяВитратНаОфіс[[#Headers],[Чер]]),1),INDEX(ЗапланованіВитратиНаОфіс[],,1),0),MATCH(РізницяВитратНаОфіс[[#Headers],[Чер]],ЗапланованіВитратиНаОфіс[#Headers],0))-INDEX(ФактичніВитратиНаОфіс[],MATCH(INDEX(РізницяВитратНаОфіс[],ROW()-ROW(РізницяВитратНаОфіс[[#Headers],[Чер]]),1),INDEX(ЗапланованіВитратиНаОфіс[],,1),0),MATCH(РізницяВитратНаОфіс[[#Headers],[Чер]],ФактичніВитратиНаОфіс[#Headers],0))","v":{"v":12,"d":"12.00₴"}},{"$f":"INDEX(ЗапланованіВитратиНаОфіс[],MATCH(INDEX(РізницяВитратНаОфіс[],ROW()-ROW(РізницяВитратНаОфіс[[#Headers],[Лип]]),1),INDEX(ЗапланованіВитратиНаОфіс[],,1),0),MATCH(РізницяВитратНаОфіс[[#Headers],[Лип]],ЗапланованіВитратиНаОфіс[#Headers],0))-INDEX(ФактичніВитратиНаОфіс[],MATCH(INDEX(РізницяВитратНаОфіс[],ROW()-ROW(РізницяВитратНаОфіс[[#Headers],[Лип]]),1),INDEX(ЗапланованіВитратиНаОфіс[],,1),0),MATCH(РізницяВитратНаОфіс[[#Headers],[Лип]],ФактичніВитратиНаОфіс[#Headers],0))","v":{"v":100,"d":"100.00₴"}},{"$f":"INDEX(ЗапланованіВитратиНаОфіс[],MATCH(INDEX(РізницяВитратНаОфіс[],ROW()-ROW(РізницяВитратНаОфіс[[#Headers],[Cер]]),1),INDEX(ЗапланованіВитратиНаОфіс[],,1),0),MATCH(РізницяВитратНаОфіс[[#Headers],[Cер]],ЗапланованіВитратиНаОфіс[#Headers],0))-INDEX(ФактичніВитратиНаОфіс[],MATCH(INDEX(РізницяВитратНаОфіс[],ROW()-ROW(РізницяВитратНаОфіс[[#Headers],[Cер]]),1),INDEX(ЗапланованіВитратиНаОфіс[],,1),0),MATCH(РізницяВитратНаОфіс[[#Headers],[Cер]],ФактичніВитратиНаОфіс[#Headers],0))","v":{"v":100,"d":"100.00₴"}},{"$f":"INDEX(ЗапланованіВитратиНаОфіс[],MATCH(INDEX(РізницяВитратНаОфіс[],ROW()-ROW(РізницяВитратНаОфіс[[#Headers],[Вер]]),1),INDEX(ЗапланованіВитратиНаОфіс[],,1),0),MATCH(РізницяВитратНаОфіс[[#Headers],[Вер]],ЗапланованіВитратиНаОфіс[#Headers],0))-INDEX(ФактичніВитратиНаОфіс[],MATCH(INDEX(РізницяВитратНаОфіс[],ROW()-ROW(РізницяВитратНаОфіс[[#Headers],[Вер]]),1),INDEX(ЗапланованіВитратиНаОфіс[],,1),0),MATCH(РізницяВитратНаОфіс[[#Headers],[Вер]],ФактичніВитратиНаОфіс[#Headers],0))","v":{"v":100,"d":"100.00₴"}},{"$f":"INDEX(ЗапланованіВитратиНаОфіс[],MATCH(INDEX(РізницяВитратНаОфіс[],ROW()-ROW(РізницяВитратНаОфіс[[#Headers],[Жов]]),1),INDEX(ЗапланованіВитратиНаОфіс[],,1),0),MATCH(РізницяВитратНаОфіс[[#Headers],[Жов]],ЗапланованіВитратиНаОфіс[#Headers],0))-INDEX(ФактичніВитратиНаОфіс[],MATCH(INDEX(РізницяВитратНаОфіс[],ROW()-ROW(РізницяВитратНаОфіс[[#Headers],[Жов]]),1),INDEX(ЗапланованіВитратиНаОфіс[],,1),0),MATCH(РізницяВитратНаОфіс[[#Headers],[Жов]],ФактичніВитратиНаОфіс[#Headers],0))","v":{"v":100,"d":"100.00₴"}},{"$f":"INDEX(ЗапланованіВитратиНаОфіс[],MATCH(INDEX(РізницяВитратНаОфіс[],ROW()-ROW(РізницяВитратНаОфіс[[#Headers],[Лис]]),1),INDEX(ЗапланованіВитратиНаОфіс[],,1),0),MATCH(РізницяВитратНаОфіс[[#Headers],[Лис]],ЗапланованіВитратиНаОфіс[#Headers],0))-INDEX(ФактичніВитратиНаОфіс[],MATCH(INDEX(РізницяВитратНаОфіс[],ROW()-ROW(РізницяВитратНаОфіс[[#Headers],[Лис]]),1),INDEX(ЗапланованіВитратиНаОфіс[],,1),0),MATCH(РізницяВитратНаОфіс[[#Headers],[Лис]],ФактичніВитратиНаОфіс[#Headers],0))","v":{"v":400,"d":"400.00₴"}},{"$f":"INDEX(ЗапланованіВитратиНаОфіс[],MATCH(INDEX(РізницяВитратНаОфіс[],ROW()-ROW(РізницяВитратНаОфіс[[#Headers],[Гру]]),1),INDEX(ЗапланованіВитратиНаОфіс[],,1),0),MATCH(РізницяВитратНаОфіс[[#Headers],[Гру]],ЗапланованіВитратиНаОфіс[#Headers],0))-INDEX(ФактичніВитратиНаОфіс[],MATCH(INDEX(РізницяВитратНаОфіс[],ROW()-ROW(РізницяВитратНаОфіс[[#Headers],[Гру]]),1),INDEX(ЗапланованіВитратиНаОфіс[],,1),0),MATCH(РізницяВитратНаОфіс[[#Headers],[Гру]],ФактичніВитратиНаОфіс[#Headers],0))","v":{"v":400,"d":"400.00₴"}},{"$f":"SUM(РізницяВитратНаОфіс[[#This Row],[Січ]:[Гру]])","v":{"v":1076,"d":"1,076.00₴"}}]
[null,"Електроенергія",{"$f":"INDEX(ЗапланованіВитратиНаОфіс[],MATCH(INDEX(РізницяВитратНаОфіс[],ROW()-ROW(РізницяВитратНаОфіс[[#Headers],[Січ]]),1),INDEX(ЗапланованіВитратиНаОфіс[],,1),0),MATCH(РізницяВитратНаОфіс[[#Headers],[Січ]],ЗапланованіВитратиНаОфіс[#Headers],0))-INDEX(ФактичніВитратиНаОфіс[],MATCH(INDEX(РізницяВитратНаОфіс[],ROW()-ROW(РізницяВитратНаОфіс[[#Headers],[Січ]]),1),INDEX(ЗапланованіВитратиНаОфіс[],,1),0),MATCH(РізницяВитратНаОфіс[[#Headers],[Січ]],ФактичніВитратиНаОфіс[#Headers],0))","v":{"v":12,"d":"12.00₴"}},{"$f":"INDEX(ЗапланованіВитратиНаОфіс[],MATCH(INDEX(РізницяВитратНаОфіс[],ROW()-ROW(РізницяВитратНаОфіс[[#Headers],[Лют]]),1),INDEX(ЗапланованіВитратиНаОфіс[],,1),0),MATCH(РізницяВитратНаОфіс[[#Headers],[Лют]],ЗапланованіВитратиНаОфіс[#Headers],0))-INDEX(ФактичніВитратиНаОфіс[],MATCH(INDEX(РізницяВитратНаОфіс[],ROW()-ROW(РізницяВитратНаОфіс[[#Headers],[Лют]]),1),INDEX(ЗапланованіВитратиНаОфіс[],,1),0),MATCH(РізницяВитратНаОфіс[[#Headers],[Лют]],ФактичніВитратиНаОфіс[#Headers],0))","v":{"v":22,"d":"22.00₴"}},{"$f":"INDEX(ЗапланованіВитратиНаОфіс[],MATCH(INDEX(РізницяВитратНаОфіс[],ROW()-ROW(РізницяВитратНаОфіс[[#Headers],[Бер]]),1),INDEX(ЗапланованіВитратиНаОфіс[],,1),0),MATCH(РізницяВитратНаОфіс[[#Headers],[Бер]],ЗапланованіВитратиНаОфіс[#Headers],0))-INDEX(ФактичніВитратиНаОфіс[],MATCH(INDEX(РізницяВитратНаОфіс[],ROW()-ROW(РізницяВитратНаОфіс[[#Headers],[Бер]]),1),INDEX(ЗапланованіВитратиНаОфіс[],,1),0),MATCH(РізницяВитратНаОфіс[[#Headers],[Бер]],ФактичніВитратиНаОфіс[#Headers],0))","v":{"v":32,"d":"32.00₴"}},{"$f":"INDEX(ЗапланованіВитратиНаОфіс[],MATCH(INDEX(РізницяВитратНаОфіс[],ROW()-ROW(РізницяВитратНаОфіс[[#Headers],[Кві]]),1),INDEX(ЗапланованіВитратиНаОфіс[],,1),0),MATCH(РізницяВитратНаОфіс[[#Headers],[Кві]],ЗапланованіВитратиНаОфіс[#Headers],0))-INDEX(ФактичніВитратиНаОфіс[],MATCH(INDEX(РізницяВитратНаОфіс[],ROW()-ROW(РізницяВитратНаОфіс[[#Headers],[Кві]]),1),INDEX(ЗапланованіВитратиНаОфіс[],,1),0),MATCH(РізницяВитратНаОфіс[[#Headers],[Кві]],ФактичніВитратиНаОфіс[#Headers],0))","v":{"v":1,"d":"1.00₴"}},{"$f":"INDEX(ЗапланованіВитратиНаОфіс[],MATCH(INDEX(РізницяВитратНаОфіс[],ROW()-ROW(РізницяВитратНаОфіс[[#Headers],[Тра]]),1),INDEX(ЗапланованіВитратиНаОфіс[],,1),0),MATCH(РізницяВитратНаОфіс[[#Headers],[Тра]],ЗапланованіВитратиНаОфіс[#Headers],0))-INDEX(ФактичніВитратиНаОфіс[],MATCH(INDEX(РізницяВитратНаОфіс[],ROW()-ROW(РізницяВитратНаОфіс[[#Headers],[Тра]]),1),INDEX(ЗапланованіВитратиНаОфіс[],,1),0),MATCH(РізницяВитратНаОфіс[[#Headers],[Тра]],ФактичніВитратиНаОфіс[#Headers],0))","v":{"v":-6,"d":"-6.00₴"}},{"$f":"INDEX(ЗапланованіВитратиНаОфіс[],MATCH(INDEX(РізницяВитратНаОфіс[],ROW()-ROW(РізницяВитратНаОфіс[[#Headers],[Чер]]),1),INDEX(ЗапланованіВитратиНаОфіс[],,1),0),MATCH(РізницяВитратНаОфіс[[#Headers],[Чер]],ЗапланованіВитратиНаОфіс[#Headers],0))-INDEX(ФактичніВитратиНаОфіс[],MATCH(INDEX(РізницяВитратНаОфіс[],ROW()-ROW(РізницяВитратНаОфіс[[#Headers],[Чер]]),1),INDEX(ЗапланованіВитратиНаОфіс[],,1),0),MATCH(РізницяВитратНаОфіс[[#Headers],[Чер]],ФактичніВитратиНаОфіс[#Headers],0))","v":{"v":10,"d":"10.00₴"}},{"$f":"INDEX(ЗапланованіВитратиНаОфіс[],MATCH(INDEX(РізницяВитратНаОфіс[],ROW()-ROW(РізницяВитратНаОфіс[[#Headers],[Лип]]),1),INDEX(ЗапланованіВитратиНаОфіс[],,1),0),MATCH(РізницяВитратНаОфіс[[#Headers],[Лип]],ЗапланованіВитратиНаОфіс[#Headers],0))-INDEX(ФактичніВитратиНаОфіс[],MATCH(INDEX(РізницяВитратНаОфіс[],ROW()-ROW(РізницяВитратНаОфіс[[#Headers],[Лип]]),1),INDEX(ЗапланованіВитратиНаОфіс[],,1),0),MATCH(РізницяВитратНаОфіс[[#Headers],[Лип]],ФактичніВитратиНаОфіс[#Headers],0))","v":{"v":300,"d":"300.00₴"}},{"$f":"INDEX(ЗапланованіВитратиНаОфіс[],MATCH(INDEX(РізницяВитратНаОфіс[],ROW()-ROW(РізницяВитратНаОфіс[[#Headers],[Cер]]),1),INDEX(ЗапланованіВитратиНаОфіс[],,1),0),MATCH(РізницяВитратНаОфіс[[#Headers],[Cер]],ЗапланованіВитратиНаОфіс[#Headers],0))-INDEX(ФактичніВитратиНаОфіс[],MATCH(INDEX(РізницяВитратНаОфіс[],ROW()-ROW(РізницяВитратНаОфіс[[#Headers],[Cер]]),1),INDEX(ЗапланованіВитратиНаОфіс[],,1),0),MATCH(РізницяВитратНаОфіс[[#Headers],[Cер]],ФактичніВитратиНаОфіс[#Headers],0))","v":{"v":300,"d":"300.00₴"}},{"$f":"INDEX(ЗапланованіВитратиНаОфіс[],MATCH(INDEX(РізницяВитратНаОфіс[],ROW()-ROW(РізницяВитратНаОфіс[[#Headers],[Вер]]),1),INDEX(ЗапланованіВитратиНаОфіс[],,1),0),MATCH(РізницяВитратНаОфіс[[#Headers],[Вер]],ЗапланованіВитратиНаОфіс[#Headers],0))-INDEX(ФактичніВитратиНаОфіс[],MATCH(INDEX(РізницяВитратНаОфіс[],ROW()-ROW(РізницяВитратНаОфіс[[#Headers],[Вер]]),1),INDEX(ЗапланованіВитратиНаОфіс[],,1),0),MATCH(РізницяВитратНаОфіс[[#Headers],[Вер]],ФактичніВитратиНаОфіс[#Headers],0))","v":{"v":300,"d":"300.00₴"}},{"$f":"INDEX(ЗапланованіВитратиНаОфіс[],MATCH(INDEX(РізницяВитратНаОфіс[],ROW()-ROW(РізницяВитратНаОфіс[[#Headers],[Жов]]),1),INDEX(ЗапланованіВитратиНаОфіс[],,1),0),MATCH(РізницяВитратНаОфіс[[#Headers],[Жов]],ЗапланованіВитратиНаОфіс[#Headers],0))-INDEX(ФактичніВитратиНаОфіс[],MATCH(INDEX(РізницяВитратНаОфіс[],ROW()-ROW(РізницяВитратНаОфіс[[#Headers],[Жов]]),1),INDEX(ЗапланованіВитратиНаОфіс[],,1),0),MATCH(РізницяВитратНаОфіс[[#Headers],[Жов]],ФактичніВитратиНаОфіс[#Headers],0))","v":{"v":300,"d":"300.00₴"}},{"$f":"INDEX(ЗапланованіВитратиНаОфіс[],MATCH(INDEX(РізницяВитратНаОфіс[],ROW()-ROW(РізницяВитратНаОфіс[[#Headers],[Лис]]),1),INDEX(ЗапланованіВитратиНаОфіс[],,1),0),MATCH(РізницяВитратНаОфіс[[#Headers],[Лис]],ЗапланованіВитратиНаОфіс[#Headers],0))-INDEX(ФактичніВитратиНаОфіс[],MATCH(INDEX(РізницяВитратНаОфіс[],ROW()-ROW(РізницяВитратНаОфіс[[#Headers],[Лис]]),1),INDEX(ЗапланованіВитратиНаОфіс[],,1),0),MATCH(РізницяВитратНаОфіс[[#Headers],[Лис]],ФактичніВитратиНаОфіс[#Headers],0))","v":{"v":300,"d":"300.00₴"}},{"$f":"INDEX(ЗапланованіВитратиНаОфіс[],MATCH(INDEX(РізницяВитратНаОфіс[],ROW()-ROW(РізницяВитратНаОфіс[[#Headers],[Гру]]),1),INDEX(ЗапланованіВитратиНаОфіс[],,1),0),MATCH(РізницяВитратНаОфіс[[#Headers],[Гру]],ЗапланованіВитратиНаОфіс[#Headers],0))-INDEX(ФактичніВитратиНаОфіс[],MATCH(INDEX(РізницяВитратНаОфіс[],ROW()-ROW(РізницяВитратНаОфіс[[#Headers],[Гру]]),1),INDEX(ЗапланованіВитратиНаОфіс[],,1),0),MATCH(РізницяВитратНаОфіс[[#Headers],[Гру]],ФактичніВитратиНаОфіс[#Headers],0))","v":{"v":300,"d":"300.00₴"}},{"$f":"SUM(РізницяВитратНаОфіс[[#This Row],[Січ]:[Гру]])","v":{"v":1871,"d":"1,871.00₴"}}]
[null,"Вода",{"$f":"INDEX(ЗапланованіВитратиНаОфіс[],MATCH(INDEX(РізницяВитратНаОфіс[],ROW()-ROW(РізницяВитратНаОфіс[[#Headers],[Січ]]),1),INDEX(ЗапланованіВитратиНаОфіс[],,1),0),MATCH(РізницяВитратНаОфіс[[#Headers],[Січ]],ЗапланованіВитратиНаОфіс[#Headers],0))-INDEX(ФактичніВитратиНаОфіс[],MATCH(INDEX(РізницяВитратНаОфіс[],ROW()-ROW(РізницяВитратНаОфіс[[#Headers],[Січ]]),1),INDEX(ЗапланованіВитратиНаОфіс[],,1),0),MATCH(РізницяВитратНаОфіс[[#Headers],[Січ]],ФактичніВитратиНаОфіс[#Headers],0))","v":{"v":5,"d":"5.00₴"}},{"$f":"INDEX(ЗапланованіВитратиНаОфіс[],MATCH(INDEX(РізницяВитратНаОфіс[],ROW()-ROW(РізницяВитратНаОфіс[[#Headers],[Лют]]),1),INDEX(ЗапланованіВитратиНаОфіс[],,1),0),MATCH(РізницяВитратНаОфіс[[#Headers],[Лют]],ЗапланованіВитратиНаОфіс[#Headers],0))-INDEX(ФактичніВитратиНаОфіс[],MATCH(INDEX(РізницяВитратНаОфіс[],ROW()-ROW(РізницяВитратНаОфіс[[#Headers],[Лют]]),1),INDEX(ЗапланованіВитратиНаОфіс[],,1),0),MATCH(РізницяВитратНаОфіс[[#Headers],[Лют]],ФактичніВитратиНаОфіс[#Headers],0))","v":{"v":7,"d":"7.00₴"}},{"$f":"INDEX(ЗапланованіВитратиНаОфіс[],MATCH(INDEX(РізницяВитратНаОфіс[],ROW()-ROW(РізницяВитратНаОфіс[[#Headers],[Бер]]),1),INDEX(ЗапланованіВитратиНаОфіс[],,1),0),MATCH(РізницяВитратНаОфіс[[#Headers],[Бер]],ЗапланованіВитратиНаОфіс[#Headers],0))-INDEX(ФактичніВитратиНаОфіс[],MATCH(INDEX(РізницяВитратНаОфіс[],ROW()-ROW(РізницяВитратНаОфіс[[#Headers],[Бер]]),1),INDEX(ЗапланованіВитратиНаОфіс[],,1),0),MATCH(РізницяВитратНаОфіс[[#Headers],[Бер]],ФактичніВитратиНаОфіс[#Headers],0))","v":{"v":6,"d":"6.00₴"}},{"$f":"INDEX(ЗапланованіВитратиНаОфіс[],MATCH(INDEX(РізницяВитратНаОфіс[],ROW()-ROW(РізницяВитратНаОфіс[[#Headers],[Кві]]),1),INDEX(ЗапланованіВитратиНаОфіс[],,1),0),MATCH(РізницяВитратНаОфіс[[#Headers],[Кві]],ЗапланованіВитратиНаОфіс[#Headers],0))-INDEX(ФактичніВитратиНаОфіс[],MATCH(INDEX(РізницяВитратНаОфіс[],ROW()-ROW(РізницяВитратНаОфіс[[#Headers],[Кві]]),1),INDEX(ЗапланованіВитратиНаОфіс[],,1),0),MATCH(РізницяВитратНаОфіс[[#Headers],[Кві]],ФактичніВитратиНаОфіс[#Headers],0))","v":{"v":4,"d":"4.00₴"}},{"$f":"INDEX(ЗапланованіВитратиНаОфіс[],MATCH(INDEX(РізницяВитратНаОфіс[],ROW()-ROW(РізницяВитратНаОфіс[[#Headers],[Тра]]),1),INDEX(ЗапланованіВитратиНаОфіс[],,1),0),MATCH(РізницяВитратНаОфіс[[#Headers],[Тра]],ЗапланованіВитратиНаОфіс[#Headers],0))-INDEX(ФактичніВитратиНаОфіс[],MATCH(INDEX(РізницяВитратНаОфіс[],ROW()-ROW(РізницяВитратНаОфіс[[#Headers],[Тра]]),1),INDEX(ЗапланованіВитратиНаОфіс[],,1),0),MATCH(РізницяВитратНаОфіс[[#Headers],[Тра]],ФактичніВитратиНаОфіс[#Headers],0))","v":{"v":6,"d":"6.00₴"}},{"$f":"INDEX(ЗапланованіВитратиНаОфіс[],MATCH(INDEX(РізницяВитратНаОфіс[],ROW()-ROW(РізницяВитратНаОфіс[[#Headers],[Чер]]),1),INDEX(ЗапланованіВитратиНаОфіс[],,1),0),MATCH(РізницяВитратНаОфіс[[#Headers],[Чер]],ЗапланованіВитратиНаОфіс[#Headers],0))-INDEX(ФактичніВитратиНаОфіс[],MATCH(INDEX(РізницяВитратНаОфіс[],ROW()-ROW(РізницяВитратНаОфіс[[#Headers],[Чер]]),1),INDEX(ЗапланованіВитратиНаОфіс[],,1),0),MATCH(РізницяВитратНаОфіс[[#Headers],[Чер]],ФактичніВитратиНаОфіс[#Headers],0))","v":{"v":4,"d":"4.00₴"}},{"$f":"INDEX(ЗапланованіВитратиНаОфіс[],MATCH(INDEX(РізницяВитратНаОфіс[],ROW()-ROW(РізницяВитратНаОфіс[[#Headers],[Лип]]),1),INDEX(ЗапланованіВитратиНаОфіс[],,1),0),MATCH(РізницяВитратНаОфіс[[#Headers],[Лип]],ЗапланованіВитратиНаОфіс[#Headers],0))-INDEX(ФактичніВитратиНаОфіс[],MATCH(INDEX(РізницяВитратНаОфіс[],ROW()-ROW(РізницяВитратНаОфіс[[#Headers],[Лип]]),1),INDEX(ЗапланованіВитратиНаОфіс[],,1),0),MATCH(РізницяВитратНаОфіс[[#Headers],[Лип]],ФактичніВитратиНаОфіс[#Headers],0))","v":{"v":40,"d":"40.00₴"}},{"$f":"INDEX(ЗапланованіВитратиНаОфіс[],MATCH(INDEX(РізницяВитратНаОфіс[],ROW()-ROW(РізницяВитратНаОфіс[[#Headers],[Cер]]),1),INDEX(ЗапланованіВитратиНаОфіс[],,1),0),MATCH(РізницяВитратНаОфіс[[#Headers],[Cер]],ЗапланованіВитратиНаОфіс[#Headers],0))-INDEX(ФактичніВитратиНаОфіс[],MATCH(INDEX(РізницяВитратНаОфіс[],ROW()-ROW(РізницяВитратНаОфіс[[#Headers],[Cер]]),1),INDEX(ЗапланованіВитратиНаОфіс[],,1),0),MATCH(РізницяВитратНаОфіс[[#Headers],[Cер]],ФактичніВитратиНаОфіс[#Headers],0))","v":{"v":40,"d":"40.00₴"}},{"$f":"INDEX(ЗапланованіВитратиНаОфіс[],MATCH(INDEX(РізницяВитратНаОфіс[],ROW()-ROW(РізницяВитратНаОфіс[[#Headers],[Вер]]),1),INDEX(ЗапланованіВитратиНаОфіс[],,1),0),MATCH(РізницяВитратНаОфіс[[#Headers],[Вер]],ЗапланованіВитратиНаОфіс[#Headers],0))-INDEX(ФактичніВитратиНаОфіс[],MATCH(INDEX(РізницяВитратНаОфіс[],ROW()-ROW(РізницяВитратНаОфіс[[#Headers],[Вер]]),1),INDEX(ЗапланованіВитратиНаОфіс[],,1),0),MATCH(РізницяВитратНаОфіс[[#Headers],[Вер]],ФактичніВитратиНаОфіс[#Headers],0))","v":{"v":40,"d":"40.00₴"}},{"$f":"INDEX(ЗапланованіВитратиНаОфіс[],MATCH(INDEX(РізницяВитратНаОфіс[],ROW()-ROW(РізницяВитратНаОфіс[[#Headers],[Жов]]),1),INDEX(ЗапланованіВитратиНаОфіс[],,1),0),MATCH(РізницяВитратНаОфіс[[#Headers],[Жов]],ЗапланованіВитратиНаОфіс[#Headers],0))-INDEX(ФактичніВитратиНаОфіс[],MATCH(INDEX(РізницяВитратНаОфіс[],ROW()-ROW(РізницяВитратНаОфіс[[#Headers],[Жов]]),1),INDEX(ЗапланованіВитратиНаОфіс[],,1),0),MATCH(РізницяВитратНаОфіс[[#Headers],[Жов]],ФактичніВитратиНаОфіс[#Headers],0))","v":{"v":40,"d":"40.00₴"}},{"$f":"INDEX(ЗапланованіВитратиНаОфіс[],MATCH(INDEX(РізницяВитратНаОфіс[],ROW()-ROW(РізницяВитратНаОфіс[[#Headers],[Лис]]),1),INDEX(ЗапланованіВитратиНаОфіс[],,1),0),MATCH(РізницяВитратНаОфіс[[#Headers],[Лис]],ЗапланованіВитратиНаОфіс[#Headers],0))-INDEX(ФактичніВитратиНаОфіс[],MATCH(INDEX(РізницяВитратНаОфіс[],ROW()-ROW(РізницяВитратНаОфіс[[#Headers],[Лис]]),1),INDEX(ЗапланованіВитратиНаОфіс[],,1),0),MATCH(РізницяВитратНаОфіс[[#Headers],[Лис]],ФактичніВитратиНаОфіс[#Headers],0))","v":{"v":40,"d":"40.00₴"}},{"$f":"INDEX(ЗапланованіВитратиНаОфіс[],MATCH(INDEX(РізницяВитратНаОфіс[],ROW()-ROW(РізницяВитратНаОфіс[[#Headers],[Гру]]),1),INDEX(ЗапланованіВитратиНаОфіс[],,1),0),MATCH(РізницяВитратНаОфіс[[#Headers],[Гру]],ЗапланованіВитратиНаОфіс[#Headers],0))-INDEX(ФактичніВитратиНаОфіс[],MATCH(INDEX(РізницяВитратНаОфіс[],ROW()-ROW(РізницяВитратНаОфіс[[#Headers],[Гру]]),1),INDEX(ЗапланованіВитратиНаОфіс[],,1),0),MATCH(РізницяВитратНаОфіс[[#Headers],[Гру]],ФактичніВитратиНаОфіс[#Headers],0))","v":{"v":40,"d":"40.00₴"}},{"$f":"SUM(РізницяВитратНаОфіс[[#This Row],[Січ]:[Гру]])","v":{"v":272,"d":"272.00₴"}}]
[null,"Телефон",{"$f":"INDEX(ЗапланованіВитратиНаОфіс[],MATCH(INDEX(РізницяВитратНаОфіс[],ROW()-ROW(РізницяВитратНаОфіс[[#Headers],[Січ]]),1),INDEX(ЗапланованіВитратиНаОфіс[],,1),0),MATCH(РізницяВитратНаОфіс[[#Headers],[Січ]],ЗапланованіВитратиНаОфіс[#Headers],0))-INDEX(ФактичніВитратиНаОфіс[],MATCH(INDEX(РізницяВитратНаОфіс[],ROW()-ROW(РізницяВитратНаОфіс[[#Headers],[Січ]]),1),INDEX(ЗапланованіВитратиНаОфіс[],,1),0),MATCH(РізницяВитратНаОфіс[[#Headers],[Січ]],ФактичніВитратиНаОфіс[#Headers],0))","v":{"v":26,"d":"26.00₴"}},{"$f":"INDEX(ЗапланованіВитратиНаОфіс[],MATCH(INDEX(РізницяВитратНаОфіс[],ROW()-ROW(РізницяВитратНаОфіс[[#Headers],[Лют]]),1),INDEX(ЗапланованіВитратиНаОфіс[],,1),0),MATCH(РізницяВитратНаОфіс[[#Headers],[Лют]],ЗапланованіВитратиНаОфіс[#Headers],0))-INDEX(ФактичніВитратиНаОфіс[],MATCH(INDEX(РізницяВитратНаОфіс[],ROW()-ROW(РізницяВитратНаОфіс[[#Headers],[Лют]]),1),INDEX(ЗапланованіВитратиНаОфіс[],,1),0),MATCH(РізницяВитратНаОфіс[[#Headers],[Лют]],ФактичніВитратиНаОфіс[#Headers],0))","v":{"v":15,"d":"15.00₴"}},{"$f":"INDEX(ЗапланованіВитратиНаОфіс[],MATCH(INDEX(РізницяВитратНаОфіс[],ROW()-ROW(РізницяВитратНаОфіс[[#Headers],[Бер]]),1),INDEX(ЗапланованіВитратиНаОфіс[],,1),0),MATCH(РізницяВитратНаОфіс[[#Headers],[Бер]],ЗапланованіВитратиНаОфіс[#Headers],0))-INDEX(ФактичніВитратиНаОфіс[],MATCH(INDEX(РізницяВитратНаОфіс[],ROW()-ROW(РізницяВитратНаОфіс[[#Headers],[Бер]]),1),INDEX(ЗапланованіВитратиНаОфіс[],,1),0),MATCH(РізницяВитратНаОфіс[[#Headers],[Бер]],ФактичніВитратиНаОфіс[#Headers],0))","v":{"v":-15,"d":"-15.00₴"}},{"$f":"INDEX(ЗапланованіВитратиНаОфіс[],MATCH(INDEX(РізницяВитратНаОфіс[],ROW()-ROW(РізницяВитратНаОфіс[[#Headers],[Кві]]),1),INDEX(ЗапланованіВитратиНаОфіс[],,1),0),MATCH(РізницяВитратНаОфіс[[#Headers],[Кві]],ЗапланованіВитратиНаОфіс[#Headers],0))-INDEX(ФактичніВитратиНаОфіс[],MATCH(INDEX(РізницяВитратНаОфіс[],ROW()-ROW(РізницяВитратНаОфіс[[#Headers],[Кві]]),1),INDEX(ЗапланованіВитратиНаОфіс[],,1),0),MATCH(РізницяВитратНаОфіс[[#Headers],[Кві]],ФактичніВитратиНаОфіс[#Headers],0))","v":{"v":5,"d":"5.00₴"}},{"$f":"INDEX(ЗапланованіВитратиНаОфіс[],MATCH(INDEX(РізницяВитратНаОфіс[],ROW()-ROW(РізницяВитратНаОфіс[[#Headers],[Тра]]),1),INDEX(ЗапланованіВитратиНаОфіс[],,1),0),MATCH(РізницяВитратНаОфіс[[#Headers],[Тра]],ЗапланованіВитратиНаОфіс[#Headers],0))-INDEX(ФактичніВитратиНаОфіс[],MATCH(INDEX(РізницяВитратНаОфіс[],ROW()-ROW(РізницяВитратНаОфіс[[#Headers],[Тра]]),1),INDEX(ЗапланованіВитратиНаОфіс[],,1),0),MATCH(РізницяВитратНаОфіс[[#Headers],[Тра]],ФактичніВитратиНаОфіс[#Headers],0))","v":{"v":5,"d":"5.00₴"}},{"$f":"INDEX(ЗапланованіВитратиНаОфіс[],MATCH(INDEX(РізницяВитратНаОфіс[],ROW()-ROW(РізницяВитратНаОфіс[[#Headers],[Чер]]),1),INDEX(ЗапланованіВитратиНаОфіс[],,1),0),MATCH(РізницяВитратНаОфіс[[#Headers],[Чер]],ЗапланованіВитратиНаОфіс[#Headers],0))-INDEX(ФактичніВитратиНаОфіс[],MATCH(INDEX(РізницяВитратНаОфіс[],ROW()-ROW(РізницяВитратНаОфіс[[#Headers],[Чер]]),1),INDEX(ЗапланованіВитратиНаОфіс[],,1),0),MATCH(РізницяВитратНаОфіс[[#Headers],[Чер]],ФактичніВитратиНаОфіс[#Headers],0))","v":{"v":30,"d":"30.00₴"}},{"$f":"INDEX(ЗапланованіВитратиНаОфіс[],MATCH(INDEX(РізницяВитратНаОфіс[],ROW()-ROW(РізницяВитратНаОфіс[[#Headers],[Лип]]),1),INDEX(ЗапланованіВитратиНаОфіс[],,1),0),MATCH(РізницяВитратНаОфіс[[#Headers],[Лип]],ЗапланованіВитратиНаОфіс[#Headers],0))-INDEX(ФактичніВитратиНаОфіс[],MATCH(INDEX(РізницяВитратНаОфіс[],ROW()-ROW(РізницяВитратНаОфіс[[#Headers],[Лип]]),1),INDEX(ЗапланованіВитратиНаОфіс[],,1),0),MATCH(РізницяВитратНаОфіс[[#Headers],[Лип]],ФактичніВитратиНаОфіс[#Headers],0))","v":{"v":250,"d":"250.00₴"}},{"$f":"INDEX(ЗапланованіВитратиНаОфіс[],MATCH(INDEX(РізницяВитратНаОфіс[],ROW()-ROW(РізницяВитратНаОфіс[[#Headers],[Cер]]),1),INDEX(ЗапланованіВитратиНаОфіс[],,1),0),MATCH(РізницяВитратНаОфіс[[#Headers],[Cер]],ЗапланованіВитратиНаОфіс[#Headers],0))-INDEX(ФактичніВитратиНаОфіс[],MATCH(INDEX(РізницяВитратНаОфіс[],ROW()-ROW(РізницяВитратНаОфіс[[#Headers],[Cер]]),1),INDEX(ЗапланованіВитратиНаОфіс[],,1),0),MATCH(РізницяВитратНаОфіс[[#Headers],[Cер]],ФактичніВитратиНаОфіс[#Headers],0))","v":{"v":250,"d":"250.00₴"}},{"$f":"INDEX(ЗапланованіВитратиНаОфіс[],MATCH(INDEX(РізницяВитратНаОфіс[],ROW()-ROW(РізницяВитратНаОфіс[[#Headers],[Вер]]),1),INDEX(ЗапланованіВитратиНаОфіс[],,1),0),MATCH(РізницяВитратНаОфіс[[#Headers],[Вер]],ЗапланованіВитратиНаОфіс[#Headers],0))-INDEX(ФактичніВитратиНаОфіс[],MATCH(INDEX(РізницяВитратНаОфіс[],ROW()-ROW(РізницяВитратНаОфіс[[#Headers],[Вер]]),1),INDEX(ЗапланованіВитратиНаОфіс[],,1),0),MATCH(РізницяВитратНаОфіс[[#Headers],[Вер]],ФактичніВитратиНаОфіс[#Headers],0))","v":{"v":250,"d":"250.00₴"}},{"$f":"INDEX(ЗапланованіВитратиНаОфіс[],MATCH(INDEX(РізницяВитратНаОфіс[],ROW()-ROW(РізницяВитратНаОфіс[[#Headers],[Жов]]),1),INDEX(ЗапланованіВитратиНаОфіс[],,1),0),MATCH(РізницяВитратНаОфіс[[#Headers],[Жов]],ЗапланованіВитратиНаОфіс[#Headers],0))-INDEX(ФактичніВитратиНаОфіс[],MATCH(INDEX(РізницяВитратНаОфіс[],ROW()-ROW(РізницяВитратНаОфіс[[#Headers],[Жов]]),1),INDEX(ЗапланованіВитратиНаОфіс[],,1),0),MATCH(РізницяВитратНаОфіс[[#Headers],[Жов]],ФактичніВитратиНаОфіс[#Headers],0))","v":{"v":250,"d":"250.00₴"}},{"$f":"INDEX(ЗапланованіВитратиНаОфіс[],MATCH(INDEX(РізницяВитратНаОфіс[],ROW()-ROW(РізницяВитратНаОфіс[[#Headers],[Лис]]),1),INDEX(ЗапланованіВитратиНаОфіс[],,1),0),MATCH(РізницяВитратНаОфіс[[#Headers],[Лис]],ЗапланованіВитратиНаОфіс[#Headers],0))-INDEX(ФактичніВитратиНаОфіс[],MATCH(INDEX(РізницяВитратНаОфіс[],ROW()-ROW(РізницяВитратНаОфіс[[#Headers],[Лис]]),1),INDEX(ЗапланованіВитратиНаОфіс[],,1),0),MATCH(РізницяВитратНаОфіс[[#Headers],[Лис]],ФактичніВитратиНаОфіс[#Headers],0))","v":{"v":250,"d":"250.00₴"}},{"$f":"INDEX(ЗапланованіВитратиНаОфіс[],MATCH(INDEX(РізницяВитратНаОфіс[],ROW()-ROW(РізницяВитратНаОфіс[[#Headers],[Гру]]),1),INDEX(ЗапланованіВитратиНаОфіс[],,1),0),MATCH(РізницяВитратНаОфіс[[#Headers],[Гру]],ЗапланованіВитратиНаОфіс[#Headers],0))-INDEX(ФактичніВитратиНаОфіс[],MATCH(INDEX(РізницяВитратНаОфіс[],ROW()-ROW(РізницяВитратНаОфіс[[#Headers],[Гру]]),1),INDEX(ЗапланованіВитратиНаОфіс[],,1),0),MATCH(РізницяВитратНаОфіс[[#Headers],[Гру]],ФактичніВитратиНаОфіс[#Headers],0))","v":{"v":250,"d":"250.00₴"}},{"$f":"SUM(РізницяВитратНаОфіс[[#This Row],[Січ]:[Гру]])","v":{"v":1566,"d":"1,566.00₴"}}]
[null,"Інтернет",{"$f":"INDEX(ЗапланованіВитратиНаОфіс[],MATCH(INDEX(РізницяВитратНаОфіс[],ROW()-ROW(РізницяВитратНаОфіс[[#Headers],[Січ]]),1),INDEX(ЗапланованіВитратиНаОфіс[],,1),0),MATCH(РізницяВитратНаОфіс[[#Headers],[Січ]],ЗапланованіВитратиНаОфіс[#Headers],0))-INDEX(ФактичніВитратиНаОфіс[],MATCH(INDEX(РізницяВитратНаОфіс[],ROW()-ROW(РізницяВитратНаОфіс[[#Headers],[Січ]]),1),INDEX(ЗапланованіВитратиНаОфіс[],,1),0),MATCH(РізницяВитратНаОфіс[[#Headers],[Січ]],ФактичніВитратиНаОфіс[#Headers],0))","v":{"v":0,"d":"0.00₴"}},{"$f":"INDEX(ЗапланованіВитратиНаОфіс[],MATCH(INDEX(РізницяВитратНаОфіс[],ROW()-ROW(РізницяВитратНаОфіс[[#Headers],[Лют]]),1),INDEX(ЗапланованіВитратиНаОфіс[],,1),0),MATCH(РізницяВитратНаОфіс[[#Headers],[Лют]],ЗапланованіВитратиНаОфіс[#Headers],0))-INDEX(ФактичніВитратиНаОфіс[],MATCH(INDEX(РізницяВитратНаОфіс[],ROW()-ROW(РізницяВитратНаОфіс[[#Headers],[Лют]]),1),INDEX(ЗапланованіВитратиНаОфіс[],,1),0),MATCH(РізницяВитратНаОфіс[[#Headers],[Лют]],ФактичніВитратиНаОфіс[#Headers],0))","v":{"v":0,"d":"0.00₴"}},{"$f":"INDEX(ЗапланованіВитратиНаОфіс[],MATCH(INDEX(РізницяВитратНаОфіс[],ROW()-ROW(РізницяВитратНаОфіс[[#Headers],[Бер]]),1),INDEX(ЗапланованіВитратиНаОфіс[],,1),0),MATCH(РізницяВитратНаОфіс[[#Headers],[Бер]],ЗапланованіВитратиНаОфіс[#Headers],0))-INDEX(ФактичніВитратиНаОфіс[],MATCH(INDEX(РізницяВитратНаОфіс[],ROW()-ROW(РізницяВитратНаОфіс[[#Headers],[Бер]]),1),INDEX(ЗапланованіВитратиНаОфіс[],,1),0),MATCH(РізницяВитратНаОфіс[[#Headers],[Бер]],ФактичніВитратиНаОфіс[#Headers],0))","v":{"v":0,"d":"0.00₴"}},{"$f":"INDEX(ЗапланованіВитратиНаОфіс[],MATCH(INDEX(РізницяВитратНаОфіс[],ROW()-ROW(РізницяВитратНаОфіс[[#Headers],[Кві]]),1),INDEX(ЗапланованіВитратиНаОфіс[],,1),0),MATCH(РізницяВитратНаОфіс[[#Headers],[Кві]],ЗапланованіВитратиНаОфіс[#Headers],0))-INDEX(ФактичніВитратиНаОфіс[],MATCH(INDEX(РізницяВитратНаОфіс[],ROW()-ROW(РізницяВитратНаОфіс[[#Headers],[Кві]]),1),INDEX(ЗапланованіВитратиНаОфіс[],,1),0),MATCH(РізницяВитратНаОфіс[[#Headers],[Кві]],ФактичніВитратиНаОфіс[#Headers],0))","v":{"v":0,"d":"0.00₴"}},{"$f":"INDEX(ЗапланованіВитратиНаОфіс[],MATCH(INDEX(РізницяВитратНаОфіс[],ROW()-ROW(РізницяВитратНаОфіс[[#Headers],[Тра]]),1),INDEX(ЗапланованіВитратиНаОфіс[],,1),0),MATCH(РізницяВитратНаОфіс[[#Headers],[Тра]],ЗапланованіВитратиНаОфіс[#Headers],0))-INDEX(ФактичніВитратиНаОфіс[],MATCH(INDEX(РізницяВитратНаОфіс[],ROW()-ROW(РізницяВитратНаОфіс[[#Headers],[Тра]]),1),INDEX(ЗапланованіВитратиНаОфіс[],,1),0),MATCH(РізницяВитратНаОфіс[[#Headers],[Тра]],ФактичніВитратиНаОфіс[#Headers],0))","v":{"v":0,"d":"0.00₴"}},{"$f":"INDEX(ЗапланованіВитратиНаОфіс[],MATCH(INDEX(РізницяВитратНаОфіс[],ROW()-ROW(РізницяВитратНаОфіс[[#Headers],[Чер]]),1),INDEX(ЗапланованіВитратиНаОфіс[],,1),0),MATCH(РізницяВитратНаОфіс[[#Headers],[Чер]],ЗапланованіВитратиНаОфіс[#Headers],0))-INDEX(ФактичніВитратиНаОфіс[],MATCH(INDEX(РізницяВитратНаОфіс[],ROW()-ROW(РізницяВитратНаОфіс[[#Headers],[Чер]]),1),INDEX(ЗапланованіВитратиНаОфіс[],,1),0),MATCH(РізницяВитратНаОфіс[[#Headers],[Чер]],ФактичніВитратиНаОфіс[#Headers],0))","v":{"v":0,"d":"0.00₴"}},{"$f":"INDEX(ЗапланованіВитратиНаОфіс[],MATCH(INDEX(РізницяВитратНаОфіс[],ROW()-ROW(РізницяВитратНаОфіс[[#Headers],[Лип]]),1),INDEX(ЗапланованіВитратиНаОфіс[],,1),0),MATCH(РізницяВитратНаОфіс[[#Headers],[Лип]],ЗапланованіВитратиНаОфіс[#Headers],0))-INDEX(ФактичніВитратиНаОфіс[],MATCH(INDEX(РізницяВитратНаОфіс[],ROW()-ROW(РізницяВитратНаОфіс[[#Headers],[Лип]]),1),INDEX(ЗапланованіВитратиНаОфіс[],,1),0),MATCH(РізницяВитратНаОфіс[[#Headers],[Лип]],ФактичніВитратиНаОфіс[#Headers],0))","v":{"v":180,"d":"180.00₴"}},{"$f":"INDEX(ЗапланованіВитратиНаОфіс[],MATCH(INDEX(РізницяВитратНаОфіс[],ROW()-ROW(РізницяВитратНаОфіс[[#Headers],[Cер]]),1),INDEX(ЗапланованіВитратиНаОфіс[],,1),0),MATCH(РізницяВитратНаОфіс[[#Headers],[Cер]],ЗапланованіВитратиНаОфіс[#Headers],0))-INDEX(ФактичніВитратиНаОфіс[],MATCH(INDEX(РізницяВитратНаОфіс[],ROW()-ROW(РізницяВитратНаОфіс[[#Headers],[Cер]]),1),INDEX(ЗапланованіВитратиНаОфіс[],,1),0),MATCH(РізницяВитратНаОфіс[[#Headers],[Cер]],ФактичніВитратиНаОфіс[#Headers],0))","v":{"v":180,"d":"180.00₴"}},{"$f":"INDEX(ЗапланованіВитратиНаОфіс[],MATCH(INDEX(РізницяВитратНаОфіс[],ROW()-ROW(РізницяВитратНаОфіс[[#Headers],[Вер]]),1),INDEX(ЗапланованіВитратиНаОфіс[],,1),0),MATCH(РізницяВитратНаОфіс[[#Headers],[Вер]],ЗапланованіВитратиНаОфіс[#Headers],0))-INDEX(ФактичніВитратиНаОфіс[],MATCH(INDEX(РізницяВитратНаОфіс[],ROW()-ROW(РізницяВитратНаОфіс[[#Headers],[Вер]]),1),INDEX(ЗапланованіВитратиНаОфіс[],,1),0),MATCH(РізницяВитратНаОфіс[[#Headers],[Вер]],ФактичніВитратиНаОфіс[#Headers],0))","v":{"v":180,"d":"180.00₴"}},{"$f":"INDEX(ЗапланованіВитратиНаОфіс[],MATCH(INDEX(РізницяВитратНаОфіс[],ROW()-ROW(РізницяВитратНаОфіс[[#Headers],[Жов]]),1),INDEX(ЗапланованіВитратиНаОфіс[],,1),0),MATCH(РізницяВитратНаОфіс[[#Headers],[Жов]],ЗапланованіВитратиНаОфіс[#Headers],0))-INDEX(ФактичніВитратиНаОфіс[],MATCH(INDEX(РізницяВитратНаОфіс[],ROW()-ROW(РізницяВитратНаОфіс[[#Headers],[Жов]]),1),INDEX(ЗапланованіВитратиНаОфіс[],,1),0),MATCH(РізницяВитратНаОфіс[[#Headers],[Жов]],ФактичніВитратиНаОфіс[#Headers],0))","v":{"v":180,"d":"180.00₴"}},{"$f":"INDEX(ЗапланованіВитратиНаОфіс[],MATCH(INDEX(РізницяВитратНаОфіс[],ROW()-ROW(РізницяВитратНаОфіс[[#Headers],[Лис]]),1),INDEX(ЗапланованіВитратиНаОфіс[],,1),0),MATCH(РізницяВитратНаОфіс[[#Headers],[Лис]],ЗапланованіВитратиНаОфіс[#Headers],0))-INDEX(ФактичніВитратиНаОфіс[],MATCH(INDEX(РізницяВитратНаОфіс[],ROW()-ROW(РізницяВитратНаОфіс[[#Headers],[Лис]]),1),INDEX(ЗапланованіВитратиНаОфіс[],,1),0),MATCH(РізницяВитратНаОфіс[[#Headers],[Лис]],ФактичніВитратиНаОфіс[#Headers],0))","v":{"v":180,"d":"180.00₴"}},{"$f":"INDEX(ЗапланованіВитратиНаОфіс[],MATCH(INDEX(РізницяВитратНаОфіс[],ROW()-ROW(РізницяВитратНаОфіс[[#Headers],[Гру]]),1),INDEX(ЗапланованіВитратиНаОфіс[],,1),0),MATCH(РізницяВитратНаОфіс[[#Headers],[Гру]],ЗапланованіВитратиНаОфіс[#Headers],0))-INDEX(ФактичніВитратиНаОфіс[],MATCH(INDEX(РізницяВитратНаОфіс[],ROW()-ROW(РізницяВитратНаОфіс[[#Headers],[Гру]]),1),INDEX(ЗапланованіВитратиНаОфіс[],,1),0),MATCH(РізницяВитратНаОфіс[[#Headers],[Гру]],ФактичніВитратиНаОфіс[#Headers],0))","v":{"v":180,"d":"180.00₴"}},{"$f":"SUM(РізницяВитратНаОфіс[[#This Row],[Січ]:[Гру]])","v":{"v":1080,"d":"1,080.00₴"}}]
[null,"Матеріально-технічне забезпечення офісу",{"$f":"INDEX(ЗапланованіВитратиНаОфіс[],MATCH(INDEX(РізницяВитратНаОфіс[],ROW()-ROW(РізницяВитратНаОфіс[[#Headers],[Січ]]),1),INDEX(ЗапланованіВитратиНаОфіс[],,1),0),MATCH(РізницяВитратНаОфіс[[#Headers],[Січ]],ЗапланованіВитратиНаОфіс[#Headers],0))-INDEX(ФактичніВитратиНаОфіс[],MATCH(INDEX(РізницяВитратНаОфіс[],ROW()-ROW(РізницяВитратНаОфіс[[#Headers],[Січ]]),1),INDEX(ЗапланованіВитратиНаОфіс[],,1),0),MATCH(РізницяВитратНаОфіс[[#Headers],[Січ]],ФактичніВитратиНаОфіс[#Headers],0))","v":{"v":-56,"d":"-56.00₴"}},{"$f":"INDEX(ЗапланованіВитратиНаОфіс[],MATCH(INDEX(РізницяВитратНаОфіс[],ROW()-ROW(РізницяВитратНаОфіс[[#Headers],[Лют]]),1),INDEX(ЗапланованіВитратиНаОфіс[],,1),0),MATCH(РізницяВитратНаОфіс[[#Headers],[Лют]],ЗапланованіВитратиНаОфіс[#Headers],0))-INDEX(ФактичніВитратиНаОфіс[],MATCH(INDEX(РізницяВитратНаОфіс[],ROW()-ROW(РізницяВитратНаОфіс[[#Headers],[Лют]]),1),INDEX(ЗапланованіВитратиНаОфіс[],,1),0),MATCH(РізницяВитратНаОфіс[[#Headers],[Лют]],ФактичніВитратиНаОфіс[#Headers],0))","v":{"v":58,"d":"58.00₴"}},{"$f":"INDEX(ЗапланованіВитратиНаОфіс[],MATCH(INDEX(РізницяВитратНаОфіс[],ROW()-ROW(РізницяВитратНаОфіс[[#Headers],[Бер]]),1),INDEX(ЗапланованіВитратиНаОфіс[],,1),0),MATCH(РізницяВитратНаОфіс[[#Headers],[Бер]],ЗапланованіВитратиНаОфіс[#Headers],0))-INDEX(ФактичніВитратиНаОфіс[],MATCH(INDEX(РізницяВитратНаОфіс[],ROW()-ROW(РізницяВитратНаОфіс[[#Headers],[Бер]]),1),INDEX(ЗапланованіВитратиНаОфіс[],,1),0),MATCH(РізницяВитратНаОфіс[[#Headers],[Бер]],ФактичніВитратиНаОфіс[#Headers],0))","v":{"v":40,"d":"40.00₴"}},{"$f":"INDEX(ЗапланованіВитратиНаОфіс[],MATCH(INDEX(РізницяВитратНаОфіс[],ROW()-ROW(РізницяВитратНаОфіс[[#Headers],[Кві]]),1),INDEX(ЗапланованіВитратиНаОфіс[],,1),0),MATCH(РізницяВитратНаОфіс[[#Headers],[Кві]],ЗапланованіВитратиНаОфіс[#Headers],0))-INDEX(ФактичніВитратиНаОфіс[],MATCH(INDEX(РізницяВитратНаОфіс[],ROW()-ROW(РізницяВитратНаОфіс[[#Headers],[Кві]]),1),INDEX(ЗапланованіВитратиНаОфіс[],,1),0),MATCH(РізницяВитратНаОфіс[[#Headers],[Кві]],ФактичніВитратиНаОфіс[#Headers],0))","v":{"v":-21,"d":"-21.00₴"}},{"$f":"INDEX(ЗапланованіВитратиНаОфіс[],MATCH(INDEX(РізницяВитратНаОфіс[],ROW()-ROW(РізницяВитратНаОфіс[[#Headers],[Тра]]),1),INDEX(ЗапланованіВитратиНаОфіс[],,1),0),MATCH(РізницяВитратНаОфіс[[#Headers],[Тра]],ЗапланованіВитратиНаОфіс[#Headers],0))-INDEX(ФактичніВитратиНаОфіс[],MATCH(INDEX(РізницяВитратНаОфіс[],ROW()-ROW(РізницяВитратНаОфіс[[#Headers],[Тра]]),1),INDEX(ЗапланованіВитратиНаОфіс[],,1),0),MATCH(РізницяВитратНаОфіс[[#Headers],[Тра]],ФактичніВитратиНаОфіс[#Headers],0))","v":{"v":-56,"d":"-56.00₴"}},{"$f":"INDEX(ЗапланованіВитратиНаОфіс[],MATCH(INDEX(РізницяВитратНаОфіс[],ROW()-ROW(РізницяВитратНаОфіс[[#Headers],[Чер]]),1),INDEX(ЗапланованіВитратиНаОфіс[],,1),0),MATCH(РізницяВитратНаОфіс[[#Headers],[Чер]],ЗапланованіВитратиНаОфіс[#Headers],0))-INDEX(ФактичніВитратиНаОфіс[],MATCH(INDEX(РізницяВитратНаОфіс[],ROW()-ROW(РізницяВитратНаОфіс[[#Headers],[Чер]]),1),INDEX(ЗапланованіВитратиНаОфіс[],,1),0),MATCH(РізницяВитратНаОфіс[[#Headers],[Чер]],ФактичніВитратиНаОфіс[#Headers],0))","v":{"v":-40,"d":"-40.00₴"}},{"$f":"INDEX(ЗапланованіВитратиНаОфіс[],MATCH(INDEX(РізницяВитратНаОфіс[],ROW()-ROW(РізницяВитратНаОфіс[[#Headers],[Лип]]),1),INDEX(ЗапланованіВитратиНаОфіс[],,1),0),MATCH(РізницяВитратНаОфіс[[#Headers],[Лип]],ЗапланованіВитратиНаОфіс[#Headers],0))-INDEX(ФактичніВитратиНаОфіс[],MATCH(INDEX(РізницяВитратНаОфіс[],ROW()-ROW(РізницяВитратНаОфіс[[#Headers],[Лип]]),1),INDEX(ЗапланованіВитратиНаОфіс[],,1),0),MATCH(РізницяВитратНаОфіс[[#Headers],[Лип]],ФактичніВитратиНаОфіс[#Headers],0))","v":{"v":200,"d":"200.00₴"}},{"$f":"INDEX(ЗапланованіВитратиНаОфіс[],MATCH(INDEX(РізницяВитратНаОфіс[],ROW()-ROW(РізницяВитратНаОфіс[[#Headers],[Cер]]),1),INDEX(ЗапланованіВитратиНаОфіс[],,1),0),MATCH(РізницяВитратНаОфіс[[#Headers],[Cер]],ЗапланованіВитратиНаОфіс[#Headers],0))-INDEX(ФактичніВитратиНаОфіс[],MATCH(INDEX(РізницяВитратНаОфіс[],ROW()-ROW(РізницяВитратНаОфіс[[#Headers],[Cер]]),1),INDEX(ЗапланованіВитратиНаОфіс[],,1),0),MATCH(РізницяВитратНаОфіс[[#Headers],[Cер]],ФактичніВитратиНаОфіс[#Headers],0))","v":{"v":200,"d":"200.00₴"}},{"$f":"INDEX(ЗапланованіВитратиНаОфіс[],MATCH(INDEX(РізницяВитратНаОфіс[],ROW()-ROW(РізницяВитратНаОфіс[[#Headers],[Вер]]),1),INDEX(ЗапланованіВитратиНаОфіс[],,1),0),MATCH(РізницяВитратНаОфіс[[#Headers],[Вер]],ЗапланованіВитратиНаОфіс[#Headers],0))-INDEX(ФактичніВитратиНаОфіс[],MATCH(INDEX(РізницяВитратНаОфіс[],ROW()-ROW(РізницяВитратНаОфіс[[#Headers],[Вер]]),1),INDEX(ЗапланованіВитратиНаОфіс[],,1),0),MATCH(РізницяВитратНаОфіс[[#Headers],[Вер]],ФактичніВитратиНаОфіс[#Headers],0))","v":{"v":200,"d":"200.00₴"}},{"$f":"INDEX(ЗапланованіВитратиНаОфіс[],MATCH(INDEX(РізницяВитратНаОфіс[],ROW()-ROW(РізницяВитратНаОфіс[[#Headers],[Жов]]),1),INDEX(ЗапланованіВитратиНаОфіс[],,1),0),MATCH(РізницяВитратНаОфіс[[#Headers],[Жов]],ЗапланованіВитратиНаОфіс[#Headers],0))-INDEX(ФактичніВитратиНаОфіс[],MATCH(INDEX(РізницяВитратНаОфіс[],ROW()-ROW(РізницяВитратНаОфіс[[#Headers],[Жов]]),1),INDEX(ЗапланованіВитратиНаОфіс[],,1),0),MATCH(РізницяВитратНаОфіс[[#Headers],[Жов]],ФактичніВитратиНаОфіс[#Headers],0))","v":{"v":200,"d":"200.00₴"}},{"$f":"INDEX(ЗапланованіВитратиНаОфіс[],MATCH(INDEX(РізницяВитратНаОфіс[],ROW()-ROW(РізницяВитратНаОфіс[[#Headers],[Лис]]),1),INDEX(ЗапланованіВитратиНаОфіс[],,1),0),MATCH(РізницяВитратНаОфіс[[#Headers],[Лис]],ЗапланованіВитратиНаОфіс[#Headers],0))-INDEX(ФактичніВитратиНаОфіс[],MATCH(INDEX(РізницяВитратНаОфіс[],ROW()-ROW(РізницяВитратНаОфіс[[#Headers],[Лис]]),1),INDEX(ЗапланованіВитратиНаОфіс[],,1),0),MATCH(РізницяВитратНаОфіс[[#Headers],[Лис]],ФактичніВитратиНаОфіс[#Headers],0))","v":{"v":200,"d":"200.00₴"}},{"$f":"INDEX(ЗапланованіВитратиНаОфіс[],MATCH(INDEX(РізницяВитратНаОфіс[],ROW()-ROW(РізницяВитратНаОфіс[[#Headers],[Гру]]),1),INDEX(ЗапланованіВитратиНаОфіс[],,1),0),MATCH(РізницяВитратНаОфіс[[#Headers],[Гру]],ЗапланованіВитратиНаОфіс[#Headers],0))-INDEX(ФактичніВитратиНаОфіс[],MATCH(INDEX(РізницяВитратНаОфіс[],ROW()-ROW(РізницяВитратНаОфіс[[#Headers],[Гру]]),1),INDEX(ЗапланованіВитратиНаОфіс[],,1),0),MATCH(РізницяВитратНаОфіс[[#Headers],[Гру]],ФактичніВитратиНаОфіс[#Headers],0))","v":{"v":200,"d":"200.00₴"}},{"$f":"SUM(РізницяВитратНаОфіс[[#This Row],[Січ]:[Гру]])","v":{"v":1125,"d":"1,125.00₴"}}]
[null,"Безпека",{"$f":"INDEX(ЗапланованіВитратиНаОфіс[],MATCH(INDEX(РізницяВитратНаОфіс[],ROW()-ROW(РізницяВитратНаОфіс[[#Headers],[Січ]]),1),INDEX(ЗапланованіВитратиНаОфіс[],,1),0),MATCH(РізницяВитратНаОфіс[[#Headers],[Січ]],ЗапланованіВитратиНаОфіс[#Headers],0))-INDEX(ФактичніВитратиНаОфіс[],MATCH(INDEX(РізницяВитратНаОфіс[],ROW()-ROW(РізницяВитратНаОфіс[[#Headers],[Січ]]),1),INDEX(ЗапланованіВитратиНаОфіс[],,1),0),MATCH(РізницяВитратНаОфіс[[#Headers],[Січ]],ФактичніВитратиНаОфіс[#Headers],0))","v":{"v":0,"d":"0.00₴"}},{"$f":"INDEX(ЗапланованіВитратиНаОфіс[],MATCH(INDEX(РізницяВитратНаОфіс[],ROW()-ROW(РізницяВитратНаОфіс[[#Headers],[Лют]]),1),INDEX(ЗапланованіВитратиНаОфіс[],,1),0),MATCH(РізницяВитратНаОфіс[[#Headers],[Лют]],ЗапланованіВитратиНаОфіс[#Headers],0))-INDEX(ФактичніВитратиНаОфіс[],MATCH(INDEX(РізницяВитратНаОфіс[],ROW()-ROW(РізницяВитратНаОфіс[[#Headers],[Лют]]),1),INDEX(ЗапланованіВитратиНаОфіс[],,1),0),MATCH(РізницяВитратНаОфіс[[#Headers],[Лют]],ФактичніВитратиНаОфіс[#Headers],0))","v":{"v":0,"d":"0.00₴"}},{"$f":"INDEX(ЗапланованіВитратиНаОфіс[],MATCH(INDEX(РізницяВитратНаОфіс[],ROW()-ROW(РізницяВитратНаОфіс[[#Headers],[Бер]]),1),INDEX(ЗапланованіВитратиНаОфіс[],,1),0),MATCH(РізницяВитратНаОфіс[[#Headers],[Бер]],ЗапланованіВитратиНаОфіс[#Headers],0))-INDEX(ФактичніВитратиНаОфіс[],MATCH(INDEX(РізницяВитратНаОфіс[],ROW()-ROW(РізницяВитратНаОфіс[[#Headers],[Бер]]),1),INDEX(ЗапланованіВитратиНаОфіс[],,1),0),MATCH(РізницяВитратНаОфіс[[#Headers],[Бер]],ФактичніВитратиНаОфіс[#Headers],0))","v":{"v":0,"d":"0.00₴"}},{"$f":"INDEX(ЗапланованіВитратиНаОфіс[],MATCH(INDEX(РізницяВитратНаОфіс[],ROW()-ROW(РізницяВитратНаОфіс[[#Headers],[Кві]]),1),INDEX(ЗапланованіВитратиНаОфіс[],,1),0),MATCH(РізницяВитратНаОфіс[[#Headers],[Кві]],ЗапланованіВитратиНаОфіс[#Headers],0))-INDEX(ФактичніВитратиНаОфіс[],MATCH(INDEX(РізницяВитратНаОфіс[],ROW()-ROW(РізницяВитратНаОфіс[[#Headers],[Кві]]),1),INDEX(ЗапланованіВитратиНаОфіс[],,1),0),MATCH(РізницяВитратНаОфіс[[#Headers],[Кві]],ФактичніВитратиНаОфіс[#Headers],0))","v":{"v":0,"d":"0.00₴"}},{"$f":"INDEX(ЗапланованіВитратиНаОфіс[],MATCH(INDEX(РізницяВитратНаОфіс[],ROW()-ROW(РізницяВитратНаОфіс[[#Headers],[Тра]]),1),INDEX(ЗапланованіВитратиНаОфіс[],,1),0),MATCH(РізницяВитратНаОфіс[[#Headers],[Тра]],ЗапланованіВитратиНаОфіс[#Headers],0))-INDEX(ФактичніВитратиНаОфіс[],MATCH(INDEX(РізницяВитратНаОфіс[],ROW()-ROW(РізницяВитратНаОфіс[[#Headers],[Тра]]),1),INDEX(ЗапланованіВитратиНаОфіс[],,1),0),MATCH(РізницяВитратНаОфіс[[#Headers],[Тра]],ФактичніВитратиНаОфіс[#Headers],0))","v":{"v":0,"d":"0.00₴"}},{"$f":"INDEX(ЗапланованіВитратиНаОфіс[],MATCH(INDEX(РізницяВитратНаОфіс[],ROW()-ROW(РізницяВитратНаОфіс[[#Headers],[Чер]]),1),INDEX(ЗапланованіВитратиНаОфіс[],,1),0),MATCH(РізницяВитратНаОфіс[[#Headers],[Чер]],ЗапланованіВитратиНаОфіс[#Headers],0))-INDEX(ФактичніВитратиНаОфіс[],MATCH(INDEX(РізницяВитратНаОфіс[],ROW()-ROW(РізницяВитратНаОфіс[[#Headers],[Чер]]),1),INDEX(ЗапланованіВитратиНаОфіс[],,1),0),MATCH(РізницяВитратНаОфіс[[#Headers],[Чер]],ФактичніВитратиНаОфіс[#Headers],0))","v":{"v":0,"d":"0.00₴"}},{"$f":"INDEX(ЗапланованіВитратиНаОфіс[],MATCH(INDEX(РізницяВитратНаОфіс[],ROW()-ROW(РізницяВитратНаОфіс[[#Headers],[Лип]]),1),INDEX(ЗапланованіВитратиНаОфіс[],,1),0),MATCH(РізницяВитратНаОфіс[[#Headers],[Лип]],ЗапланованіВитратиНаОфіс[#Headers],0))-INDEX(ФактичніВитратиНаОфіс[],MATCH(INDEX(РізницяВитратНаОфіс[],ROW()-ROW(РізницяВитратНаОфіс[[#Headers],[Лип]]),1),INDEX(ЗапланованіВитратиНаОфіс[],,1),0),MATCH(РізницяВитратНаОфіс[[#Headers],[Лип]],ФактичніВитратиНаОфіс[#Headers],0))","v":{"v":600,"d":"600.00₴"}},{"$f":"INDEX(ЗапланованіВитратиНаОфіс[],MATCH(INDEX(РізницяВитратНаОфіс[],ROW()-ROW(РізницяВитратНаОфіс[[#Headers],[Cер]]),1),INDEX(ЗапланованіВитратиНаОфіс[],,1),0),MATCH(РізницяВитратНаОфіс[[#Headers],[Cер]],ЗапланованіВитратиНаОфіс[#Headers],0))-INDEX(ФактичніВитратиНаОфіс[],MATCH(INDEX(РізницяВитратНаОфіс[],ROW()-ROW(РізницяВитратНаОфіс[[#Headers],[Cер]]),1),INDEX(ЗапланованіВитратиНаОфіс[],,1),0),MATCH(РізницяВитратНаОфіс[[#Headers],[Cер]],ФактичніВитратиНаОфіс[#Headers],0))","v":{"v":600,"d":"600.00₴"}},{"$f":"INDEX(ЗапланованіВитратиНаОфіс[],MATCH(INDEX(РізницяВитратНаОфіс[],ROW()-ROW(РізницяВитратНаОфіс[[#Headers],[Вер]]),1),INDEX(ЗапланованіВитратиНаОфіс[],,1),0),MATCH(РізницяВитратНаОфіс[[#Headers],[Вер]],ЗапланованіВитратиНаОфіс[#Headers],0))-INDEX(ФактичніВитратиНаОфіс[],MATCH(INDEX(РізницяВитратНаОфіс[],ROW()-ROW(РізницяВитратНаОфіс[[#Headers],[Вер]]),1),INDEX(ЗапланованіВитратиНаОфіс[],,1),0),MATCH(РізницяВитратНаОфіс[[#Headers],[Вер]],ФактичніВитратиНаОфіс[#Headers],0))","v":{"v":600,"d":"600.00₴"}},{"$f":"INDEX(ЗапланованіВитратиНаОфіс[],MATCH(INDEX(РізницяВитратНаОфіс[],ROW()-ROW(РізницяВитратНаОфіс[[#Headers],[Жов]]),1),INDEX(ЗапланованіВитратиНаОфіс[],,1),0),MATCH(РізницяВитратНаОфіс[[#Headers],[Жов]],ЗапланованіВитратиНаОфіс[#Headers],0))-INDEX(ФактичніВитратиНаОфіс[],MATCH(INDEX(РізницяВитратНаОфіс[],ROW()-ROW(РізницяВитратНаОфіс[[#Headers],[Жов]]),1),INDEX(ЗапланованіВитратиНаОфіс[],,1),0),MATCH(РізницяВитратНаОфіс[[#Headers],[Жов]],ФактичніВитратиНаОфіс[#Headers],0))","v":{"v":600,"d":"600.00₴"}},{"$f":"INDEX(ЗапланованіВитратиНаОфіс[],MATCH(INDEX(РізницяВитратНаОфіс[],ROW()-ROW(РізницяВитратНаОфіс[[#Headers],[Лис]]),1),INDEX(ЗапланованіВитратиНаОфіс[],,1),0),MATCH(РізницяВитратНаОфіс[[#Headers],[Лис]],ЗапланованіВитратиНаОфіс[#Headers],0))-INDEX(ФактичніВитратиНаОфіс[],MATCH(INDEX(РізницяВитратНаОфіс[],ROW()-ROW(РізницяВитратНаОфіс[[#Headers],[Лис]]),1),INDEX(ЗапланованіВитратиНаОфіс[],,1),0),MATCH(РізницяВитратНаОфіс[[#Headers],[Лис]],ФактичніВитратиНаОфіс[#Headers],0))","v":{"v":600,"d":"600.00₴"}},{"$f":"INDEX(ЗапланованіВитратиНаОфіс[],MATCH(INDEX(РізницяВитратНаОфіс[],ROW()-ROW(РізницяВитратНаОфіс[[#Headers],[Гру]]),1),INDEX(ЗапланованіВитратиНаОфіс[],,1),0),MATCH(РізницяВитратНаОфіс[[#Headers],[Гру]],ЗапланованіВитратиНаОфіс[#Headers],0))-INDEX(ФактичніВитратиНаОфіс[],MATCH(INDEX(РізницяВитратНаОфіс[],ROW()-ROW(РізницяВитратНаОфіс[[#Headers],[Гру]]),1),INDEX(ЗапланованіВитратиНаОфіс[],,1),0),MATCH(РізницяВитратНаОфіс[[#Headers],[Гру]],ФактичніВитратиНаОфіс[#Headers],0))","v":{"v":600,"d":"600.00₴"}},{"$f":"SUM(РізницяВитратНаОфіс[[#This Row],[Січ]:[Гру]])","v":{"v":3600,"d":"3,600.00₴"}}]
[null,"Проміжний підсумок",{"$f":"SUBTOTAL(109,РізницяВитратНаОфіс[Січ])","v":{"v":-17,"d":"-17.00₴"}},{"$f":"SUBTOTAL(109,РізницяВитратНаОфіс[Лют])","v":{"v":72,"d":"72.00₴"}},{"$f":"SUBTOTAL(109,РізницяВитратНаОфіс[Бер])","v":{"v":78,"d":"78.00₴"}},{"$f":"SUBTOTAL(109,РізницяВитратНаОфіс[Кві])","v":{"v":-141,"d":"-141.00₴"}},{"$f":"SUBTOTAL(109,РізницяВитратНаОфіс[Тра])","v":{"v":-38,"d":"-38.00₴"}},{"$f":"SUBTOTAL(109,РізницяВитратНаОфіс[Чер])","v":{"v":16,"d":"16.00₴"}},{"$f":"SUBTOTAL(109,РізницяВитратНаОфіс[Лип])","v":{"v":11470,"d":"11,470.00₴"}},{"$f":"SUBTOTAL(109,РізницяВитратНаОфіс[Cер])","v":{"v":11470,"d":"11,470.00₴"}},{"$f":"SUBTOTAL(109,РізницяВитратНаОфіс[Вер])","v":{"v":11470,"d":"11,470.00₴"}},{"$f":"SUBTOTAL(109,РізницяВитратНаОфіс[Жов])","v":{"v":11470,"d":"11,470.00₴"}},{"$f":"SUBTOTAL(109,РізницяВитратНаОфіс[Лис])","v":{"v":11770,"d":"11,770.00₴"}},{"$f":"SUBTOTAL(109,РізницяВитратНаОфіс[Гру])","v":{"v":11770,"d":"11,770.00₴"}},{"$f":"SUBTOTAL(109,РізницяВитратНаОфіс[РІК])","v":{"v":69390,"d":"69,390.00₴"}}]
[]
["Різниця витрати на маркетинг автоматично обчислюється в таблиці, починаючи з клітинки праворуч. Подальші вказівки наведено в клітинці A30.","Витрати на маркетинг","Січ","Лют","Бер","Кві","Тра","Чер","Лип","Cер","Вер","Жов","Лис","Гру","РІК"]
[null,"Розміщення веб-сайту",{"$f":"INDEX(ЗапланованіВитратиНаМаркетинг[],MATCH(INDEX(РізницяВитратНаМаркетинг[],ROW()-ROW(РізницяВитратНаМаркетинг[[#Headers],[Січ]]),1),INDEX(ЗапланованіВитратиНаМаркетинг[],,1),0),MATCH(РізницяВитратНаМаркетинг[[#Headers],[Січ]],ЗапланованіВитратиНаМаркетинг[#Headers],0))-INDEX(ФактичніВитратиНаМаркетинг[],MATCH(INDEX(РізницяВитратНаМаркетинг[],ROW()-ROW(РізницяВитратНаМаркетинг[[#Headers],[Січ]]),1),INDEX(ЗапланованіВитратиНаМаркетинг[],,1),0),MATCH(РізницяВитратНаМаркетинг[[#Headers],[Січ]],ФактичніВитратиНаМаркетинг[#Headers],0))","v":{"v":0,"d":"0.00₴"}},{"$f":"INDEX(ЗапланованіВитратиНаМаркетинг[],MATCH(INDEX(РізницяВитратНаМаркетинг[],ROW()-ROW(РізницяВитратНаМаркетинг[[#Headers],[Лют]]),1),INDEX(ЗапланованіВитратиНаМаркетинг[],,1),0),MATCH(РізницяВитратНаМаркетинг[[#Headers],[Лют]],ЗапланованіВитратиНаМаркетинг[#Headers],0))-INDEX(ФактичніВитратиНаМаркетинг[],MATCH(INDEX(РізницяВитратНаМаркетинг[],ROW()-ROW(РізницяВитратНаМаркетинг[[#Headers],[Лют]]),1),INDEX(ЗапланованіВитратиНаМаркетинг[],,1),0),MATCH(РізницяВитратНаМаркетинг[[#Headers],[Лют]],ФактичніВитратиНаМаркетинг[#Headers],0))","v":{"v":0,"d":"0.00₴"}},{"$f":"INDEX(ЗапланованіВитратиНаМаркетинг[],MATCH(INDEX(РізницяВитратНаМаркетинг[],ROW()-ROW(РізницяВитратНаМаркетинг[[#Headers],[Бер]]),1),INDEX(ЗапланованіВитратиНаМаркетинг[],,1),0),MATCH(РізницяВитратНаМаркетинг[[#Headers],[Бер]],ЗапланованіВитратиНаМаркетинг[#Headers],0))-INDEX(ФактичніВитратиНаМаркетинг[],MATCH(INDEX(РізницяВитратНаМаркетинг[],ROW()-ROW(РізницяВитратНаМаркетинг[[#Headers],[Бер]]),1),INDEX(ЗапланованіВитратиНаМаркетинг[],,1),0),MATCH(РізницяВитратНаМаркетинг[[#Headers],[Бер]],ФактичніВитратиНаМаркетинг[#Headers],0))","v":{"v":0,"d":"0.00₴"}},{"$f":"INDEX(ЗапланованіВитратиНаМаркетинг[],MATCH(INDEX(РізницяВитратНаМаркетинг[],ROW()-ROW(РізницяВитратНаМаркетинг[[#Headers],[Кві]]),1),INDEX(ЗапланованіВитратиНаМаркетинг[],,1),0),MATCH(РізницяВитратНаМаркетинг[[#Headers],[Кві]],ЗапланованіВитратиНаМаркетинг[#Headers],0))-INDEX(ФактичніВитратиНаМаркетинг[],MATCH(INDEX(РізницяВитратНаМаркетинг[],ROW()-ROW(РізницяВитратНаМаркетинг[[#Headers],[Кві]]),1),INDEX(ЗапланованіВитратиНаМаркетинг[],,1),0),MATCH(РізницяВитратНаМаркетинг[[#Headers],[Кві]],ФактичніВитратиНаМаркетинг[#Headers],0))","v":{"v":0,"d":"0.00₴"}},{"$f":"INDEX(ЗапланованіВитратиНаМаркетинг[],MATCH(INDEX(РізницяВитратНаМаркетинг[],ROW()-ROW(РізницяВитратНаМаркетинг[[#Headers],[Тра]]),1),INDEX(ЗапланованіВитратиНаМаркетинг[],,1),0),MATCH(РізницяВитратНаМаркетинг[[#Headers],[Тра]],ЗапланованіВитратиНаМаркетинг[#Headers],0))-INDEX(ФактичніВитратиНаМаркетинг[],MATCH(INDEX(РізницяВитратНаМаркетинг[],ROW()-ROW(РізницяВитратНаМаркетинг[[#Headers],[Тра]]),1),INDEX(ЗапланованіВитратиНаМаркетинг[],,1),0),MATCH(РізницяВитратНаМаркетинг[[#Headers],[Тра]],ФактичніВитратиНаМаркетинг[#Headers],0))","v":{"v":0,"d":"0.00₴"}},{"$f":"INDEX(ЗапланованіВитратиНаМаркетинг[],MATCH(INDEX(РізницяВитратНаМаркетинг[],ROW()-ROW(РізницяВитратНаМаркетинг[[#Headers],[Чер]]),1),INDEX(ЗапланованіВитратиНаМаркетинг[],,1),0),MATCH(РізницяВитратНаМаркетинг[[#Headers],[Чер]],ЗапланованіВитратиНаМаркетинг[#Headers],0))-INDEX(ФактичніВитратиНаМаркетинг[],MATCH(INDEX(РізницяВитратНаМаркетинг[],ROW()-ROW(РізницяВитратНаМаркетинг[[#Headers],[Чер]]),1),INDEX(ЗапланованіВитратиНаМаркетинг[],,1),0),MATCH(РізницяВитратНаМаркетинг[[#Headers],[Чер]],ФактичніВитратиНаМаркетинг[#Headers],0))","v":{"v":0,"d":"0.00₴"}},{"$f":"INDEX(ЗапланованіВитратиНаМаркетинг[],MATCH(INDEX(РізницяВитратНаМаркетинг[],ROW()-ROW(РізницяВитратНаМаркетинг[[#Headers],[Лип]]),1),INDEX(ЗапланованіВитратиНаМаркетинг[],,1),0),MATCH(РізницяВитратНаМаркетинг[[#Headers],[Лип]],ЗапланованіВитратиНаМаркетинг[#Headers],0))-INDEX(ФактичніВитратиНаМаркетинг[],MATCH(INDEX(РізницяВитратНаМаркетинг[],ROW()-ROW(РізницяВитратНаМаркетинг[[#Headers],[Лип]]),1),INDEX(ЗапланованіВитратиНаМаркетинг[],,1),0),MATCH(РізницяВитратНаМаркетинг[[#Headers],[Лип]],ФактичніВитратиНаМаркетинг[#Headers],0))","v":{"v":500,"d":"500.00₴"}},{"$f":"INDEX(ЗапланованіВитратиНаМаркетинг[],MATCH(INDEX(РізницяВитратНаМаркетинг[],ROW()-ROW(РізницяВитратНаМаркетинг[[#Headers],[Cер]]),1),INDEX(ЗапланованіВитратиНаМаркетинг[],,1),0),MATCH(РізницяВитратНаМаркетинг[[#Headers],[Cер]],ЗапланованіВитратиНаМаркетинг[#Headers],0))-INDEX(ФактичніВитратиНаМаркетинг[],MATCH(INDEX(РізницяВитратНаМаркетинг[],ROW()-ROW(РізницяВитратНаМаркетинг[[#Headers],[Cер]]),1),INDEX(ЗапланованіВитратиНаМаркетинг[],,1),0),MATCH(РізницяВитратНаМаркетинг[[#Headers],[Cер]],ФактичніВитратиНаМаркетинг[#Headers],0))","v":{"v":500,"d":"500.00₴"}},{"$f":"INDEX(ЗапланованіВитратиНаМаркетинг[],MATCH(INDEX(РізницяВитратНаМаркетинг[],ROW()-ROW(РізницяВитратНаМаркетинг[[#Headers],[Вер]]),1),INDEX(ЗапланованіВитратиНаМаркетинг[],,1),0),MATCH(РізницяВитратНаМаркетинг[[#Headers],[Вер]],ЗапланованіВитратиНаМаркетинг[#Headers],0))-INDEX(ФактичніВитратиНаМаркетинг[],MATCH(INDEX(РізницяВитратНаМаркетинг[],ROW()-ROW(РізницяВитратНаМаркетинг[[#Headers],[Вер]]),1),INDEX(ЗапланованіВитратиНаМаркетинг[],,1),0),MATCH(РізницяВитратНаМаркетинг[[#Headers],[Вер]],ФактичніВитратиНаМаркетинг[#Headers],0))","v":{"v":500,"d":"500.00₴"}},{"$f":"INDEX(ЗапланованіВитратиНаМаркетинг[],MATCH(INDEX(РізницяВитратНаМаркетинг[],ROW()-ROW(РізницяВитратНаМаркетинг[[#Headers],[Жов]]),1),INDEX(ЗапланованіВитратиНаМаркетинг[],,1),0),MATCH(РізницяВитратНаМаркетинг[[#Headers],[Жов]],ЗапланованіВитратиНаМаркетинг[#Headers],0))-INDEX(ФактичніВитратиНаМаркетинг[],MATCH(INDEX(РізницяВитратНаМаркетинг[],ROW()-ROW(РізницяВитратНаМаркетинг[[#Headers],[Жов]]),1),INDEX(ЗапланованіВитратиНаМаркетинг[],,1),0),MATCH(РізницяВитратНаМаркетинг[[#Headers],[Жов]],ФактичніВитратиНаМаркетинг[#Headers],0))","v":{"v":500,"d":"500.00₴"}},{"$f":"INDEX(ЗапланованіВитратиНаМаркетинг[],MATCH(INDEX(РізницяВитратНаМаркетинг[],ROW()-ROW(РізницяВитратНаМаркетинг[[#Headers],[Лис]]),1),INDEX(ЗапланованіВитратиНаМаркетинг[],,1),0),MATCH(РізницяВитратНаМаркетинг[[#Headers],[Лис]],ЗапланованіВитратиНаМаркетинг[#Headers],0))-INDEX(ФактичніВитратиНаМаркетинг[],MATCH(INDEX(РізницяВитратНаМаркетинг[],ROW()-ROW(РізницяВитратНаМаркетинг[[#Headers],[Лис]]),1),INDEX(ЗапланованіВитратиНаМаркетинг[],,1),0),MATCH(РізницяВитратНаМаркетинг[[#Headers],[Лис]],ФактичніВитратиНаМаркетинг[#Headers],0))","v":{"v":500,"d":"500.00₴"}},{"$f":"INDEX(ЗапланованіВитратиНаМаркетинг[],MATCH(INDEX(РізницяВитратНаМаркетинг[],ROW()-ROW(РізницяВитратНаМаркетинг[[#Headers],[Гру]]),1),INDEX(ЗапланованіВитратиНаМаркетинг[],,1),0),MATCH(РізницяВитратНаМаркетинг[[#Headers],[Гру]],ЗапланованіВитратиНаМаркетинг[#Headers],0))-INDEX(ФактичніВитратиНаМаркетинг[],MATCH(INDEX(РізницяВитратНаМаркетинг[],ROW()-ROW(РізницяВитратНаМаркетинг[[#Headers],[Гру]]),1),INDEX(ЗапланованіВитратиНаМаркетинг[],,1),0),MATCH(РізницяВитратНаМаркетинг[[#Headers],[Гру]],ФактичніВитратиНаМаркетинг[#Headers],0))","v":{"v":500,"d":"500.00₴"}},{"$f":"SUM(РізницяВитратНаМаркетинг[[#This Row],[Січ]:[Гру]])","v":{"v":3000,"d":"3,000.00₴"}}]
[null,"Оновлення веб-сайту",{"$f":"INDEX(ЗапланованіВитратиНаМаркетинг[],MATCH(INDEX(РізницяВитратНаМаркетинг[],ROW()-ROW(РізницяВитратНаМаркетинг[[#Headers],[Січ]]),1),INDEX(ЗапланованіВитратиНаМаркетинг[],,1),0),MATCH(РізницяВитратНаМаркетинг[[#Headers],[Січ]],ЗапланованіВитратиНаМаркетинг[#Headers],0))-INDEX(ФактичніВитратиНаМаркетинг[],MATCH(INDEX(РізницяВитратНаМаркетинг[],ROW()-ROW(РізницяВитратНаМаркетинг[[#Headers],[Січ]]),1),INDEX(ЗапланованіВитратиНаМаркетинг[],,1),0),MATCH(РізницяВитратНаМаркетинг[[#Headers],[Січ]],ФактичніВитратиНаМаркетинг[#Headers],0))","v":{"v":0,"d":"0.00₴"}},{"$f":"INDEX(ЗапланованіВитратиНаМаркетинг[],MATCH(INDEX(РізницяВитратНаМаркетинг[],ROW()-ROW(РізницяВитратНаМаркетинг[[#Headers],[Лют]]),1),INDEX(ЗапланованіВитратиНаМаркетинг[],,1),0),MATCH(РізницяВитратНаМаркетинг[[#Headers],[Лют]],ЗапланованіВитратиНаМаркетинг[#Headers],0))-INDEX(ФактичніВитратиНаМаркетинг[],MATCH(INDEX(РізницяВитратНаМаркетинг[],ROW()-ROW(РізницяВитратНаМаркетинг[[#Headers],[Лют]]),1),INDEX(ЗапланованіВитратиНаМаркетинг[],,1),0),MATCH(РізницяВитратНаМаркетинг[[#Headers],[Лют]],ФактичніВитратиНаМаркетинг[#Headers],0))","v":{"v":0,"d":"0.00₴"}},{"$f":"INDEX(ЗапланованіВитратиНаМаркетинг[],MATCH(INDEX(РізницяВитратНаМаркетинг[],ROW()-ROW(РізницяВитратНаМаркетинг[[#Headers],[Бер]]),1),INDEX(ЗапланованіВитратиНаМаркетинг[],,1),0),MATCH(РізницяВитратНаМаркетинг[[#Headers],[Бер]],ЗапланованіВитратиНаМаркетинг[#Headers],0))-INDEX(ФактичніВитратиНаМаркетинг[],MATCH(INDEX(РізницяВитратНаМаркетинг[],ROW()-ROW(РізницяВитратНаМаркетинг[[#Headers],[Бер]]),1),INDEX(ЗапланованіВитратиНаМаркетинг[],,1),0),MATCH(РізницяВитратНаМаркетинг[[#Headers],[Бер]],ФактичніВитратиНаМаркетинг[#Headers],0))","v":{"v":0,"d":"0.00₴"}},{"$f":"INDEX(ЗапланованіВитратиНаМаркетинг[],MATCH(INDEX(РізницяВитратНаМаркетинг[],ROW()-ROW(РізницяВитратНаМаркетинг[[#Headers],[Кві]]),1),INDEX(ЗапланованіВитратиНаМаркетинг[],,1),0),MATCH(РізницяВитратНаМаркетинг[[#Headers],[Кві]],ЗапланованіВитратиНаМаркетинг[#Headers],0))-INDEX(ФактичніВитратиНаМаркетинг[],MATCH(INDEX(РізницяВитратНаМаркетинг[],ROW()-ROW(РізницяВитратНаМаркетинг[[#Headers],[Кві]]),1),INDEX(ЗапланованіВитратиНаМаркетинг[],,1),0),MATCH(РізницяВитратНаМаркетинг[[#Headers],[Кві]],ФактичніВитратиНаМаркетинг[#Headers],0))","v":{"v":0,"d":"0.00₴"}},{"$f":"INDEX(ЗапланованіВитратиНаМаркетинг[],MATCH(INDEX(РізницяВитратНаМаркетинг[],ROW()-ROW(РізницяВитратНаМаркетинг[[#Headers],[Тра]]),1),INDEX(ЗапланованіВитратиНаМаркетинг[],,1),0),MATCH(РізницяВитратНаМаркетинг[[#Headers],[Тра]],ЗапланованіВитратиНаМаркетинг[#Headers],0))-INDEX(ФактичніВитратиНаМаркетинг[],MATCH(INDEX(РізницяВитратНаМаркетинг[],ROW()-ROW(РізницяВитратНаМаркетинг[[#Headers],[Тра]]),1),INDEX(ЗапланованіВитратиНаМаркетинг[],,1),0),MATCH(РізницяВитратНаМаркетинг[[#Headers],[Тра]],ФактичніВитратиНаМаркетинг[#Headers],0))","v":{"v":0,"d":"0.00₴"}},{"$f":"INDEX(ЗапланованіВитратиНаМаркетинг[],MATCH(INDEX(РізницяВитратНаМаркетинг[],ROW()-ROW(РізницяВитратНаМаркетинг[[#Headers],[Чер]]),1),INDEX(ЗапланованіВитратиНаМаркетинг[],,1),0),MATCH(РізницяВитратНаМаркетинг[[#Headers],[Чер]],ЗапланованіВитратиНаМаркетинг[#Headers],0))-INDEX(ФактичніВитратиНаМаркетинг[],MATCH(INDEX(РізницяВитратНаМаркетинг[],ROW()-ROW(РізницяВитратНаМаркетинг[[#Headers],[Чер]]),1),INDEX(ЗапланованіВитратиНаМаркетинг[],,1),0),MATCH(РізницяВитратНаМаркетинг[[#Headers],[Чер]],ФактичніВитратиНаМаркетинг[#Headers],0))","v":{"v":-500,"d":"-500.00₴"}},{"$f":"INDEX(ЗапланованіВитратиНаМаркетинг[],MATCH(INDEX(РізницяВитратНаМаркетинг[],ROW()-ROW(РізницяВитратНаМаркетинг[[#Headers],[Лип]]),1),INDEX(ЗапланованіВитратиНаМаркетинг[],,1),0),MATCH(РізницяВитратНаМаркетинг[[#Headers],[Лип]],ЗапланованіВитратиНаМаркетинг[#Headers],0))-INDEX(ФактичніВитратиНаМаркетинг[],MATCH(INDEX(РізницяВитратНаМаркетинг[],ROW()-ROW(РізницяВитратНаМаркетинг[[#Headers],[Лип]]),1),INDEX(ЗапланованіВитратиНаМаркетинг[],,1),0),MATCH(РізницяВитратНаМаркетинг[[#Headers],[Лип]],ФактичніВитратиНаМаркетинг[#Headers],0))","v":{"v":200,"d":"200.00₴"}},{"$f":"INDEX(ЗапланованіВитратиНаМаркетинг[],MATCH(INDEX(РізницяВитратНаМаркетинг[],ROW()-ROW(РізницяВитратНаМаркетинг[[#Headers],[Cер]]),1),INDEX(ЗапланованіВитратиНаМаркетинг[],,1),0),MATCH(РізницяВитратНаМаркетинг[[#Headers],[Cер]],ЗапланованіВитратиНаМаркетинг[#Headers],0))-INDEX(ФактичніВитратиНаМаркетинг[],MATCH(INDEX(РізницяВитратНаМаркетинг[],ROW()-ROW(РізницяВитратНаМаркетинг[[#Headers],[Cер]]),1),INDEX(ЗапланованіВитратиНаМаркетинг[],,1),0),MATCH(РізницяВитратНаМаркетинг[[#Headers],[Cер]],ФактичніВитратиНаМаркетинг[#Headers],0))","v":{"v":200,"d":"200.00₴"}},{"$f":"INDEX(ЗапланованіВитратиНаМаркетинг[],MATCH(INDEX(РізницяВитратНаМаркетинг[],ROW()-ROW(РізницяВитратНаМаркетинг[[#Headers],[Вер]]),1),INDEX(ЗапланованіВитратиНаМаркетинг[],,1),0),MATCH(РізницяВитратНаМаркетинг[[#Headers],[Вер]],ЗапланованіВитратиНаМаркетинг[#Headers],0))-INDEX(ФактичніВитратиНаМаркетинг[],MATCH(INDEX(РізницяВитратНаМаркетинг[],ROW()-ROW(РізницяВитратНаМаркетинг[[#Headers],[Вер]]),1),INDEX(ЗапланованіВитратиНаМаркетинг[],,1),0),MATCH(РізницяВитратНаМаркетинг[[#Headers],[Вер]],ФактичніВитратиНаМаркетинг[#Headers],0))","v":{"v":200,"d":"200.00₴"}},{"$f":"INDEX(ЗапланованіВитратиНаМаркетинг[],MATCH(INDEX(РізницяВитратНаМаркетинг[],ROW()-ROW(РізницяВитратНаМаркетинг[[#Headers],[Жов]]),1),INDEX(ЗапланованіВитратиНаМаркетинг[],,1),0),MATCH(РізницяВитратНаМаркетинг[[#Headers],[Жов]],ЗапланованіВитратиНаМаркетинг[#Headers],0))-INDEX(ФактичніВитратиНаМаркетинг[],MATCH(INDEX(РізницяВитратНаМаркетинг[],ROW()-ROW(РізницяВитратНаМаркетинг[[#Headers],[Жов]]),1),INDEX(ЗапланованіВитратиНаМаркетинг[],,1),0),MATCH(РізницяВитратНаМаркетинг[[#Headers],[Жов]],ФактичніВитратиНаМаркетинг[#Headers],0))","v":{"v":200,"d":"200.00₴"}},{"$f":"INDEX(ЗапланованіВитратиНаМаркетинг[],MATCH(INDEX(РізницяВитратНаМаркетинг[],ROW()-ROW(РізницяВитратНаМаркетинг[[#Headers],[Лис]]),1),INDEX(ЗапланованіВитратиНаМаркетинг[],,1),0),MATCH(РізницяВитратНаМаркетинг[[#Headers],[Лис]],ЗапланованіВитратиНаМаркетинг[#Headers],0))-INDEX(ФактичніВитратиНаМаркетинг[],MATCH(INDEX(РізницяВитратНаМаркетинг[],ROW()-ROW(РізницяВитратНаМаркетинг[[#Headers],[Лис]]),1),INDEX(ЗапланованіВитратиНаМаркетинг[],,1),0),MATCH(РізницяВитратНаМаркетинг[[#Headers],[Лис]],ФактичніВитратиНаМаркетинг[#Headers],0))","v":{"v":200,"d":"200.00₴"}},{"$f":"INDEX(ЗапланованіВитратиНаМаркетинг[],MATCH(INDEX(РізницяВитратНаМаркетинг[],ROW()-ROW(РізницяВитратНаМаркетинг[[#Headers],[Гру]]),1),INDEX(ЗапланованіВитратиНаМаркетинг[],,1),0),MATCH(РізницяВитратНаМаркетинг[[#Headers],[Гру]],ЗапланованіВитратиНаМаркетинг[#Headers],0))-INDEX(ФактичніВитратиНаМаркетинг[],MATCH(INDEX(РізницяВитратНаМаркетинг[],ROW()-ROW(РізницяВитратНаМаркетинг[[#Headers],[Гру]]),1),INDEX(ЗапланованіВитратиНаМаркетинг[],,1),0),MATCH(РізницяВитратНаМаркетинг[[#Headers],[Гру]],ФактичніВитратиНаМаркетинг[#Headers],0))","v":{"v":1000,"d":"1,000.00₴"}},{"$f":"SUM(РізницяВитратНаМаркетинг[[#This Row],[Січ]:[Гру]])","v":{"v":1500,"d":"1,500.00₴"}}]
[null,"Підготовка супровідних матеріалів",{"$f":"INDEX(ЗапланованіВитратиНаМаркетинг[],MATCH(INDEX(РізницяВитратНаМаркетинг[],ROW()-ROW(РізницяВитратНаМаркетинг[[#Headers],[Січ]]),1),INDEX(ЗапланованіВитратиНаМаркетинг[],,1),0),MATCH(РізницяВитратНаМаркетинг[[#Headers],[Січ]],ЗапланованіВитратиНаМаркетинг[#Headers],0))-INDEX(ФактичніВитратиНаМаркетинг[],MATCH(INDEX(РізницяВитратНаМаркетинг[],ROW()-ROW(РізницяВитратНаМаркетинг[[#Headers],[Січ]]),1),INDEX(ЗапланованіВитратиНаМаркетинг[],,1),0),MATCH(РізницяВитратНаМаркетинг[[#Headers],[Січ]],ФактичніВитратиНаМаркетинг[#Headers],0))","v":{"v":200,"d":"200.00₴"}},{"$f":"INDEX(ЗапланованіВитратиНаМаркетинг[],MATCH(INDEX(РізницяВитратНаМаркетинг[],ROW()-ROW(РізницяВитратНаМаркетинг[[#Headers],[Лют]]),1),INDEX(ЗапланованіВитратиНаМаркетинг[],,1),0),MATCH(РізницяВитратНаМаркетинг[[#Headers],[Лют]],ЗапланованіВитратиНаМаркетинг[#Headers],0))-INDEX(ФактичніВитратиНаМаркетинг[],MATCH(INDEX(РізницяВитратНаМаркетинг[],ROW()-ROW(РізницяВитратНаМаркетинг[[#Headers],[Лют]]),1),INDEX(ЗапланованіВитратиНаМаркетинг[],,1),0),MATCH(РізницяВитратНаМаркетинг[[#Headers],[Лют]],ФактичніВитратиНаМаркетинг[#Headers],0))","v":{"v":0,"d":"0.00₴"}},{"$f":"INDEX(ЗапланованіВитратиНаМаркетинг[],MATCH(INDEX(РізницяВитратНаМаркетинг[],ROW()-ROW(РізницяВитратНаМаркетинг[[#Headers],[Бер]]),1),INDEX(ЗапланованіВитратиНаМаркетинг[],,1),0),MATCH(РізницяВитратНаМаркетинг[[#Headers],[Бер]],ЗапланованіВитратиНаМаркетинг[#Headers],0))-INDEX(ФактичніВитратиНаМаркетинг[],MATCH(INDEX(РізницяВитратНаМаркетинг[],ROW()-ROW(РізницяВитратНаМаркетинг[[#Headers],[Бер]]),1),INDEX(ЗапланованіВитратиНаМаркетинг[],,1),0),MATCH(РізницяВитратНаМаркетинг[[#Headers],[Бер]],ФактичніВитратиНаМаркетинг[#Headers],0))","v":{"v":0,"d":"0.00₴"}},{"$f":"INDEX(ЗапланованіВитратиНаМаркетинг[],MATCH(INDEX(РізницяВитратНаМаркетинг[],ROW()-ROW(РізницяВитратНаМаркетинг[[#Headers],[Кві]]),1),INDEX(ЗапланованіВитратиНаМаркетинг[],,1),0),MATCH(РізницяВитратНаМаркетинг[[#Headers],[Кві]],ЗапланованіВитратиНаМаркетинг[#Headers],0))-INDEX(ФактичніВитратиНаМаркетинг[],MATCH(INDEX(РізницяВитратНаМаркетинг[],ROW()-ROW(РізницяВитратНаМаркетинг[[#Headers],[Кві]]),1),INDEX(ЗапланованіВитратиНаМаркетинг[],,1),0),MATCH(РізницяВитратНаМаркетинг[[#Headers],[Кві]],ФактичніВитратиНаМаркетинг[#Headers],0))","v":{"v":-500,"d":"-500.00₴"}},{"$f":"INDEX(ЗапланованіВитратиНаМаркетинг[],MATCH(INDEX(РізницяВитратНаМаркетинг[],ROW()-ROW(РізницяВитратНаМаркетинг[[#Headers],[Тра]]),1),INDEX(ЗапланованіВитратиНаМаркетинг[],,1),0),MATCH(РізницяВитратНаМаркетинг[[#Headers],[Тра]],ЗапланованіВитратиНаМаркетинг[#Headers],0))-INDEX(ФактичніВитратиНаМаркетинг[],MATCH(INDEX(РізницяВитратНаМаркетинг[],ROW()-ROW(РізницяВитратНаМаркетинг[[#Headers],[Тра]]),1),INDEX(ЗапланованіВитратиНаМаркетинг[],,1),0),MATCH(РізницяВитратНаМаркетинг[[#Headers],[Тра]],ФактичніВитратиНаМаркетинг[#Headers],0))","v":{"v":0,"d":"0.00₴"}},{"$f":"INDEX(ЗапланованіВитратиНаМаркетинг[],MATCH(INDEX(РізницяВитратНаМаркетинг[],ROW()-ROW(РізницяВитратНаМаркетинг[[#Headers],[Чер]]),1),INDEX(ЗапланованіВитратиНаМаркетинг[],,1),0),MATCH(РізницяВитратНаМаркетинг[[#Headers],[Чер]],ЗапланованіВитратиНаМаркетинг[#Headers],0))-INDEX(ФактичніВитратиНаМаркетинг[],MATCH(INDEX(РізницяВитратНаМаркетинг[],ROW()-ROW(РізницяВитратНаМаркетинг[[#Headers],[Чер]]),1),INDEX(ЗапланованіВитратиНаМаркетинг[],,1),0),MATCH(РізницяВитратНаМаркетинг[[#Headers],[Чер]],ФактичніВитратиНаМаркетинг[#Headers],0))","v":{"v":0,"d":"0.00₴"}},{"$f":"INDEX(ЗапланованіВитратиНаМаркетинг[],MATCH(INDEX(РізницяВитратНаМаркетинг[],ROW()-ROW(РізницяВитратНаМаркетинг[[#Headers],[Лип]]),1),INDEX(ЗапланованіВитратиНаМаркетинг[],,1),0),MATCH(РізницяВитратНаМаркетинг[[#Headers],[Лип]],ЗапланованіВитратиНаМаркетинг[#Headers],0))-INDEX(ФактичніВитратиНаМаркетинг[],MATCH(INDEX(РізницяВитратНаМаркетинг[],ROW()-ROW(РізницяВитратНаМаркетинг[[#Headers],[Лип]]),1),INDEX(ЗапланованіВитратиНаМаркетинг[],,1),0),MATCH(РізницяВитратНаМаркетинг[[#Headers],[Лип]],ФактичніВитратиНаМаркетинг[#Headers],0))","v":{"v":5000,"d":"5,000.00₴"}},{"$f":"INDEX(ЗапланованіВитратиНаМаркетинг[],MATCH(INDEX(РізницяВитратНаМаркетинг[],ROW()-ROW(РізницяВитратНаМаркетинг[[#Headers],[Cер]]),1),INDEX(ЗапланованіВитратиНаМаркетинг[],,1),0),MATCH(РізницяВитратНаМаркетинг[[#Headers],[Cер]],ЗапланованіВитратиНаМаркетинг[#Headers],0))-INDEX(ФактичніВитратиНаМаркетинг[],MATCH(INDEX(РізницяВитратНаМаркетинг[],ROW()-ROW(РізницяВитратНаМаркетинг[[#Headers],[Cер]]),1),INDEX(ЗапланованіВитратиНаМаркетинг[],,1),0),MATCH(РізницяВитратНаМаркетинг[[#Headers],[Cер]],ФактичніВитратиНаМаркетинг[#Headers],0))","v":{"v":0,"d":"0.00₴"}},{"$f":"INDEX(ЗапланованіВитратиНаМаркетинг[],MATCH(INDEX(РізницяВитратНаМаркетинг[],ROW()-ROW(РізницяВитратНаМаркетинг[[#Headers],[Вер]]),1),INDEX(ЗапланованіВитратиНаМаркетинг[],,1),0),MATCH(РізницяВитратНаМаркетинг[[#Headers],[Вер]],ЗапланованіВитратиНаМаркетинг[#Headers],0))-INDEX(ФактичніВитратиНаМаркетинг[],MATCH(INDEX(РізницяВитратНаМаркетинг[],ROW()-ROW(РізницяВитратНаМаркетинг[[#Headers],[Вер]]),1),INDEX(ЗапланованіВитратиНаМаркетинг[],,1),0),MATCH(РізницяВитратНаМаркетинг[[#Headers],[Вер]],ФактичніВитратиНаМаркетинг[#Headers],0))","v":{"v":0,"d":"0.00₴"}},{"$f":"INDEX(ЗапланованіВитратиНаМаркетинг[],MATCH(INDEX(РізницяВитратНаМаркетинг[],ROW()-ROW(РізницяВитратНаМаркетинг[[#Headers],[Жов]]),1),INDEX(ЗапланованіВитратиНаМаркетинг[],,1),0),MATCH(РізницяВитратНаМаркетинг[[#Headers],[Жов]],ЗапланованіВитратиНаМаркетинг[#Headers],0))-INDEX(ФактичніВитратиНаМаркетинг[],MATCH(INDEX(РізницяВитратНаМаркетинг[],ROW()-ROW(РізницяВитратНаМаркетинг[[#Headers],[Жов]]),1),INDEX(ЗапланованіВитратиНаМаркетинг[],,1),0),MATCH(РізницяВитратНаМаркетинг[[#Headers],[Жов]],ФактичніВитратиНаМаркетинг[#Headers],0))","v":{"v":5000,"d":"5,000.00₴"}},{"$f":"INDEX(ЗапланованіВитратиНаМаркетинг[],MATCH(INDEX(РізницяВитратНаМаркетинг[],ROW()-ROW(РізницяВитратНаМаркетинг[[#Headers],[Лис]]),1),INDEX(ЗапланованіВитратиНаМаркетинг[],,1),0),MATCH(РізницяВитратНаМаркетинг[[#Headers],[Лис]],ЗапланованіВитратиНаМаркетинг[#Headers],0))-INDEX(ФактичніВитратиНаМаркетинг[],MATCH(INDEX(РізницяВитратНаМаркетинг[],ROW()-ROW(РізницяВитратНаМаркетинг[[#Headers],[Лис]]),1),INDEX(ЗапланованіВитратиНаМаркетинг[],,1),0),MATCH(РізницяВитратНаМаркетинг[[#Headers],[Лис]],ФактичніВитратиНаМаркетинг[#Headers],0))","v":{"v":0,"d":"0.00₴"}},{"$f":"INDEX(ЗапланованіВитратиНаМаркетинг[],MATCH(INDEX(РізницяВитратНаМаркетинг[],ROW()-ROW(РізницяВитратНаМаркетинг[[#Headers],[Гру]]),1),INDEX(ЗапланованіВитратиНаМаркетинг[],,1),0),MATCH(РізницяВитратНаМаркетинг[[#Headers],[Гру]],ЗапланованіВитратиНаМаркетинг[#Headers],0))-INDEX(ФактичніВитратиНаМаркетинг[],MATCH(INDEX(РізницяВитратНаМаркетинг[],ROW()-ROW(РізницяВитратНаМаркетинг[[#Headers],[Гру]]),1),INDEX(ЗапланованіВитратиНаМаркетинг[],,1),0),MATCH(РізницяВитратНаМаркетинг[[#Headers],[Гру]],ФактичніВитратиНаМаркетинг[#Headers],0))","v":{"v":0,"d":"0.00₴"}},{"$f":"SUM(РізницяВитратНаМаркетинг[[#This Row],[Січ]:[Гру]])","v":{"v":9700,"d":"9,700.00₴"}}]
[null,"Друк супровідних матеріалів",{"$f":"INDEX(ЗапланованіВитратиНаМаркетинг[],MATCH(INDEX(РізницяВитратНаМаркетинг[],ROW()-ROW(РізницяВитратНаМаркетинг[[#Headers],[Січ]]),1),INDEX(ЗапланованіВитратиНаМаркетинг[],,1),0),MATCH(РізницяВитратНаМаркетинг[[#Headers],[Січ]],ЗапланованіВитратиНаМаркетинг[#Headers],0))-INDEX(ФактичніВитратиНаМаркетинг[],MATCH(INDEX(РізницяВитратНаМаркетинг[],ROW()-ROW(РізницяВитратНаМаркетинг[[#Headers],[Січ]]),1),INDEX(ЗапланованіВитратиНаМаркетинг[],,1),0),MATCH(РізницяВитратНаМаркетинг[[#Headers],[Січ]],ФактичніВитратиНаМаркетинг[#Headers],0))","v":{"v":100,"d":"100.00₴"}},{"$f":"INDEX(ЗапланованіВитратиНаМаркетинг[],MATCH(INDEX(РізницяВитратНаМаркетинг[],ROW()-ROW(РізницяВитратНаМаркетинг[[#Headers],[Лют]]),1),INDEX(ЗапланованіВитратиНаМаркетинг[],,1),0),MATCH(РізницяВитратНаМаркетинг[[#Headers],[Лют]],ЗапланованіВитратиНаМаркетинг[#Headers],0))-INDEX(ФактичніВитратиНаМаркетинг[],MATCH(INDEX(РізницяВитратНаМаркетинг[],ROW()-ROW(РізницяВитратНаМаркетинг[[#Headers],[Лют]]),1),INDEX(ЗапланованіВитратиНаМаркетинг[],,1),0),MATCH(РізницяВитратНаМаркетинг[[#Headers],[Лют]],ФактичніВитратиНаМаркетинг[#Headers],0))","v":{"v":-300,"d":"-300.00₴"}},{"$f":"INDEX(ЗапланованіВитратиНаМаркетинг[],MATCH(INDEX(РізницяВитратНаМаркетинг[],ROW()-ROW(РізницяВитратНаМаркетинг[[#Headers],[Бер]]),1),INDEX(ЗапланованіВитратиНаМаркетинг[],,1),0),MATCH(РізницяВитратНаМаркетинг[[#Headers],[Бер]],ЗапланованіВитратиНаМаркетинг[#Headers],0))-INDEX(ФактичніВитратиНаМаркетинг[],MATCH(INDEX(РізницяВитратНаМаркетинг[],ROW()-ROW(РізницяВитратНаМаркетинг[[#Headers],[Бер]]),1),INDEX(ЗапланованіВитратиНаМаркетинг[],,1),0),MATCH(РізницяВитратНаМаркетинг[[#Headers],[Бер]],ФактичніВитратиНаМаркетинг[#Headers],0))","v":{"v":100,"d":"100.00₴"}},{"$f":"INDEX(ЗапланованіВитратиНаМаркетинг[],MATCH(INDEX(РізницяВитратНаМаркетинг[],ROW()-ROW(РізницяВитратНаМаркетинг[[#Headers],[Кві]]),1),INDEX(ЗапланованіВитратиНаМаркетинг[],,1),0),MATCH(РізницяВитратНаМаркетинг[[#Headers],[Кві]],ЗапланованіВитратиНаМаркетинг[#Headers],0))-INDEX(ФактичніВитратиНаМаркетинг[],MATCH(INDEX(РізницяВитратНаМаркетинг[],ROW()-ROW(РізницяВитратНаМаркетинг[[#Headers],[Кві]]),1),INDEX(ЗапланованіВитратиНаМаркетинг[],,1),0),MATCH(РізницяВитратНаМаркетинг[[#Headers],[Кві]],ФактичніВитратиНаМаркетинг[#Headers],0))","v":{"v":100,"d":"100.00₴"}},{"$f":"INDEX(ЗапланованіВитратиНаМаркетинг[],MATCH(INDEX(РізницяВитратНаМаркетинг[],ROW()-ROW(РізницяВитратНаМаркетинг[[#Headers],[Тра]]),1),INDEX(ЗапланованіВитратиНаМаркетинг[],,1),0),MATCH(РізницяВитратНаМаркетинг[[#Headers],[Тра]],ЗапланованіВитратиНаМаркетинг[#Headers],0))-INDEX(ФактичніВитратиНаМаркетинг[],MATCH(INDEX(РізницяВитратНаМаркетинг[],ROW()-ROW(РізницяВитратНаМаркетинг[[#Headers],[Тра]]),1),INDEX(ЗапланованіВитратиНаМаркетинг[],,1),0),MATCH(РізницяВитратНаМаркетинг[[#Headers],[Тра]],ФактичніВитратиНаМаркетинг[#Headers],0))","v":{"v":-400,"d":"-400.00₴"}},{"$f":"INDEX(ЗапланованіВитратиНаМаркетинг[],MATCH(INDEX(РізницяВитратНаМаркетинг[],ROW()-ROW(РізницяВитратНаМаркетинг[[#Headers],[Чер]]),1),INDEX(ЗапланованіВитратиНаМаркетинг[],,1),0),MATCH(РізницяВитратНаМаркетинг[[#Headers],[Чер]],ЗапланованіВитратиНаМаркетинг[#Headers],0))-INDEX(ФактичніВитратиНаМаркетинг[],MATCH(INDEX(РізницяВитратНаМаркетинг[],ROW()-ROW(РізницяВитратНаМаркетинг[[#Headers],[Чер]]),1),INDEX(ЗапланованіВитратиНаМаркетинг[],,1),0),MATCH(РізницяВитратНаМаркетинг[[#Headers],[Чер]],ФактичніВитратиНаМаркетинг[#Headers],0))","v":{"v":20,"d":"20.00₴"}},{"$f":"INDEX(ЗапланованіВитратиНаМаркетинг[],MATCH(INDEX(РізницяВитратНаМаркетинг[],ROW()-ROW(РізницяВитратНаМаркетинг[[#Headers],[Лип]]),1),INDEX(ЗапланованіВитратиНаМаркетинг[],,1),0),MATCH(РізницяВитратНаМаркетинг[[#Headers],[Лип]],ЗапланованіВитратиНаМаркетинг[#Headers],0))-INDEX(ФактичніВитратиНаМаркетинг[],MATCH(INDEX(РізницяВитратНаМаркетинг[],ROW()-ROW(РізницяВитратНаМаркетинг[[#Headers],[Лип]]),1),INDEX(ЗапланованіВитратиНаМаркетинг[],,1),0),MATCH(РізницяВитратНаМаркетинг[[#Headers],[Лип]],ФактичніВитратиНаМаркетинг[#Headers],0))","v":{"v":200,"d":"200.00₴"}},{"$f":"INDEX(ЗапланованіВитратиНаМаркетинг[],MATCH(INDEX(РізницяВитратНаМаркетинг[],ROW()-ROW(РізницяВитратНаМаркетинг[[#Headers],[Cер]]),1),INDEX(ЗапланованіВитратиНаМаркетинг[],,1),0),MATCH(РізницяВитратНаМаркетинг[[#Headers],[Cер]],ЗапланованіВитратиНаМаркетинг[#Headers],0))-INDEX(ФактичніВитратиНаМаркетинг[],MATCH(INDEX(РізницяВитратНаМаркетинг[],ROW()-ROW(РізницяВитратНаМаркетинг[[#Headers],[Cер]]),1),INDEX(ЗапланованіВитратиНаМаркетинг[],,1),0),MATCH(РізницяВитратНаМаркетинг[[#Headers],[Cер]],ФактичніВитратиНаМаркетинг[#Headers],0))","v":{"v":200,"d":"200.00₴"}},{"$f":"INDEX(ЗапланованіВитратиНаМаркетинг[],MATCH(INDEX(РізницяВитратНаМаркетинг[],ROW()-ROW(РізницяВитратНаМаркетинг[[#Headers],[Вер]]),1),INDEX(ЗапланованіВитратиНаМаркетинг[],,1),0),MATCH(РізницяВитратНаМаркетинг[[#Headers],[Вер]],ЗапланованіВитратиНаМаркетинг[#Headers],0))-INDEX(ФактичніВитратиНаМаркетинг[],MATCH(INDEX(РізницяВитратНаМаркетинг[],ROW()-ROW(РізницяВитратНаМаркетинг[[#Headers],[Вер]]),1),INDEX(ЗапланованіВитратиНаМаркетинг[],,1),0),MATCH(РізницяВитратНаМаркетинг[[#Headers],[Вер]],ФактичніВитратиНаМаркетинг[#Headers],0))","v":{"v":200,"d":"200.00₴"}},{"$f":"INDEX(ЗапланованіВитратиНаМаркетинг[],MATCH(INDEX(РізницяВитратНаМаркетинг[],ROW()-ROW(РізницяВитратНаМаркетинг[[#Headers],[Жов]]),1),INDEX(ЗапланованіВитратиНаМаркетинг[],,1),0),MATCH(РізницяВитратНаМаркетинг[[#Headers],[Жов]],ЗапланованіВитратиНаМаркетинг[#Headers],0))-INDEX(ФактичніВитратиНаМаркетинг[],MATCH(INDEX(РізницяВитратНаМаркетинг[],ROW()-ROW(РізницяВитратНаМаркетинг[[#Headers],[Жов]]),1),INDEX(ЗапланованіВитратиНаМаркетинг[],,1),0),MATCH(РізницяВитратНаМаркетинг[[#Headers],[Жов]],ФактичніВитратиНаМаркетинг[#Headers],0))","v":{"v":200,"d":"200.00₴"}},{"$f":"INDEX(ЗапланованіВитратиНаМаркетинг[],MATCH(INDEX(РізницяВитратНаМаркетинг[],ROW()-ROW(РізницяВитратНаМаркетинг[[#Headers],[Лис]]),1),INDEX(ЗапланованіВитратиНаМаркетинг[],,1),0),MATCH(РізницяВитратНаМаркетинг[[#Headers],[Лис]],ЗапланованіВитратиНаМаркетинг[#Headers],0))-INDEX(ФактичніВитратиНаМаркетинг[],MATCH(INDEX(РізницяВитратНаМаркетинг[],ROW()-ROW(РізницяВитратНаМаркетинг[[#Headers],[Лис]]),1),INDEX(ЗапланованіВитратиНаМаркетинг[],,1),0),MATCH(РізницяВитратНаМаркетинг[[#Headers],[Лис]],ФактичніВитратиНаМаркетинг[#Headers],0))","v":{"v":200,"d":"200.00₴"}},{"$f":"INDEX(ЗапланованіВитратиНаМаркетинг[],MATCH(INDEX(РізницяВитратНаМаркетинг[],ROW()-ROW(РізницяВитратНаМаркетинг[[#Headers],[Гру]]),1),INDEX(ЗапланованіВитратиНаМаркетинг[],,1),0),MATCH(РізницяВитратНаМаркетинг[[#Headers],[Гру]],ЗапланованіВитратиНаМаркетинг[#Headers],0))-INDEX(ФактичніВитратиНаМаркетинг[],MATCH(INDEX(РізницяВитратНаМаркетинг[],ROW()-ROW(РізницяВитратНаМаркетинг[[#Headers],[Гру]]),1),INDEX(ЗапланованіВитратиНаМаркетинг[],,1),0),MATCH(РізницяВитратНаМаркетинг[[#Headers],[Гру]],ФактичніВитратиНаМаркетинг[#Headers],0))","v":{"v":200,"d":"200.00₴"}},{"$f":"SUM(РізницяВитратНаМаркетинг[[#This Row],[Січ]:[Гру]])","v":{"v":820,"d":"820.00₴"}}]
[null,"Маркетингові заходи",{"$f":"INDEX(ЗапланованіВитратиНаМаркетинг[],MATCH(INDEX(РізницяВитратНаМаркетинг[],ROW()-ROW(РізницяВитратНаМаркетинг[[#Headers],[Січ]]),1),INDEX(ЗапланованіВитратиНаМаркетинг[],,1),0),MATCH(РізницяВитратНаМаркетинг[[#Headers],[Січ]],ЗапланованіВитратиНаМаркетинг[#Headers],0))-INDEX(ФактичніВитратиНаМаркетинг[],MATCH(INDEX(РізницяВитратНаМаркетинг[],ROW()-ROW(РізницяВитратНаМаркетинг[[#Headers],[Січ]]),1),INDEX(ЗапланованіВитратиНаМаркетинг[],,1),0),MATCH(РізницяВитратНаМаркетинг[[#Headers],[Січ]],ФактичніВитратиНаМаркетинг[#Headers],0))","v":{"v":200,"d":"200.00₴"}},{"$f":"INDEX(ЗапланованіВитратиНаМаркетинг[],MATCH(INDEX(РізницяВитратНаМаркетинг[],ROW()-ROW(РізницяВитратНаМаркетинг[[#Headers],[Лют]]),1),INDEX(ЗапланованіВитратиНаМаркетинг[],,1),0),MATCH(РізницяВитратНаМаркетинг[[#Headers],[Лют]],ЗапланованіВитратиНаМаркетинг[#Headers],0))-INDEX(ФактичніВитратиНаМаркетинг[],MATCH(INDEX(РізницяВитратНаМаркетинг[],ROW()-ROW(РізницяВитратНаМаркетинг[[#Headers],[Лют]]),1),INDEX(ЗапланованіВитратиНаМаркетинг[],,1),0),MATCH(РізницяВитратНаМаркетинг[[#Headers],[Лют]],ФактичніВитратиНаМаркетинг[#Headers],0))","v":{"v":-200,"d":"-200.00₴"}},{"$f":"INDEX(ЗапланованіВитратиНаМаркетинг[],MATCH(INDEX(РізницяВитратНаМаркетинг[],ROW()-ROW(РізницяВитратНаМаркетинг[[#Headers],[Бер]]),1),INDEX(ЗапланованіВитратиНаМаркетинг[],,1),0),MATCH(РізницяВитратНаМаркетинг[[#Headers],[Бер]],ЗапланованіВитратиНаМаркетинг[#Headers],0))-INDEX(ФактичніВитратиНаМаркетинг[],MATCH(INDEX(РізницяВитратНаМаркетинг[],ROW()-ROW(РізницяВитратНаМаркетинг[[#Headers],[Бер]]),1),INDEX(ЗапланованіВитратиНаМаркетинг[],,1),0),MATCH(РізницяВитратНаМаркетинг[[#Headers],[Бер]],ФактичніВитратиНаМаркетинг[#Headers],0))","v":{"v":-200,"d":"-200.00₴"}},{"$f":"INDEX(ЗапланованіВитратиНаМаркетинг[],MATCH(INDEX(РізницяВитратНаМаркетинг[],ROW()-ROW(РізницяВитратНаМаркетинг[[#Headers],[Кві]]),1),INDEX(ЗапланованіВитратиНаМаркетинг[],,1),0),MATCH(РізницяВитратНаМаркетинг[[#Headers],[Кві]],ЗапланованіВитратиНаМаркетинг[#Headers],0))-INDEX(ФактичніВитратиНаМаркетинг[],MATCH(INDEX(РізницяВитратНаМаркетинг[],ROW()-ROW(РізницяВитратНаМаркетинг[[#Headers],[Кві]]),1),INDEX(ЗапланованіВитратиНаМаркетинг[],,1),0),MATCH(РізницяВитратНаМаркетинг[[#Headers],[Кві]],ФактичніВитратиНаМаркетинг[#Headers],0))","v":{"v":300,"d":"300.00₴"}},{"$f":"INDEX(ЗапланованіВитратиНаМаркетинг[],MATCH(INDEX(РізницяВитратНаМаркетинг[],ROW()-ROW(РізницяВитратНаМаркетинг[[#Headers],[Тра]]),1),INDEX(ЗапланованіВитратиНаМаркетинг[],,1),0),MATCH(РізницяВитратНаМаркетинг[[#Headers],[Тра]],ЗапланованіВитратиНаМаркетинг[#Headers],0))-INDEX(ФактичніВитратиНаМаркетинг[],MATCH(INDEX(РізницяВитратНаМаркетинг[],ROW()-ROW(РізницяВитратНаМаркетинг[[#Headers],[Тра]]),1),INDEX(ЗапланованіВитратиНаМаркетинг[],,1),0),MATCH(РізницяВитратНаМаркетинг[[#Headers],[Тра]],ФактичніВитратиНаМаркетинг[#Headers],0))","v":{"v":500,"d":"500.00₴"}},{"$f":"INDEX(ЗапланованіВитратиНаМаркетинг[],MATCH(INDEX(РізницяВитратНаМаркетинг[],ROW()-ROW(РізницяВитратНаМаркетинг[[#Headers],[Чер]]),1),INDEX(ЗапланованіВитратиНаМаркетинг[],,1),0),MATCH(РізницяВитратНаМаркетинг[[#Headers],[Чер]],ЗапланованіВитратиНаМаркетинг[#Headers],0))-INDEX(ФактичніВитратиНаМаркетинг[],MATCH(INDEX(РізницяВитратНаМаркетинг[],ROW()-ROW(РізницяВитратНаМаркетинг[[#Headers],[Чер]]),1),INDEX(ЗапланованіВитратиНаМаркетинг[],,1),0),MATCH(РізницяВитратНаМаркетинг[[#Headers],[Чер]],ФактичніВитратиНаМаркетинг[#Headers],0))","v":{"v":-300,"d":"-300.00₴"}},{"$f":"INDEX(ЗапланованіВитратиНаМаркетинг[],MATCH(INDEX(РізницяВитратНаМаркетинг[],ROW()-ROW(РізницяВитратНаМаркетинг[[#Headers],[Лип]]),1),INDEX(ЗапланованіВитратиНаМаркетинг[],,1),0),MATCH(РізницяВитратНаМаркетинг[[#Headers],[Лип]],ЗапланованіВитратиНаМаркетинг[#Headers],0))-INDEX(ФактичніВитратиНаМаркетинг[],MATCH(INDEX(РізницяВитратНаМаркетинг[],ROW()-ROW(РізницяВитратНаМаркетинг[[#Headers],[Лип]]),1),INDEX(ЗапланованіВитратиНаМаркетинг[],,1),0),MATCH(РізницяВитратНаМаркетинг[[#Headers],[Лип]],ФактичніВитратиНаМаркетинг[#Headers],0))","v":{"v":2000,"d":"2,000.00₴"}},{"$f":"INDEX(ЗапланованіВитратиНаМаркетинг[],MATCH(INDEX(РізницяВитратНаМаркетинг[],ROW()-ROW(РізницяВитратНаМаркетинг[[#Headers],[Cер]]),1),INDEX(ЗапланованіВитратиНаМаркетинг[],,1),0),MATCH(РізницяВитратНаМаркетинг[[#Headers],[Cер]],ЗапланованіВитратиНаМаркетинг[#Headers],0))-INDEX(ФактичніВитратиНаМаркетинг[],MATCH(INDEX(РізницяВитратНаМаркетинг[],ROW()-ROW(РізницяВитратНаМаркетинг[[#Headers],[Cер]]),1),INDEX(ЗапланованіВитратиНаМаркетинг[],,1),0),MATCH(РізницяВитратНаМаркетинг[[#Headers],[Cер]],ФактичніВитратиНаМаркетинг[#Headers],0))","v":{"v":5000,"d":"5,000.00₴"}},{"$f":"INDEX(ЗапланованіВитратиНаМаркетинг[],MATCH(INDEX(РізницяВитратНаМаркетинг[],ROW()-ROW(РізницяВитратНаМаркетинг[[#Headers],[Вер]]),1),INDEX(ЗапланованіВитратиНаМаркетинг[],,1),0),MATCH(РізницяВитратНаМаркетинг[[#Headers],[Вер]],ЗапланованіВитратиНаМаркетинг[#Headers],0))-INDEX(ФактичніВитратиНаМаркетинг[],MATCH(INDEX(РізницяВитратНаМаркетинг[],ROW()-ROW(РізницяВитратНаМаркетинг[[#Headers],[Вер]]),1),INDEX(ЗапланованіВитратиНаМаркетинг[],,1),0),MATCH(РізницяВитратНаМаркетинг[[#Headers],[Вер]],ФактичніВитратиНаМаркетинг[#Headers],0))","v":{"v":2000,"d":"2,000.00₴"}},{"$f":"INDEX(ЗапланованіВитратиНаМаркетинг[],MATCH(INDEX(РізницяВитратНаМаркетинг[],ROW()-ROW(РізницяВитратНаМаркетинг[[#Headers],[Жов]]),1),INDEX(ЗапланованіВитратиНаМаркетинг[],,1),0),MATCH(РізницяВитратНаМаркетинг[[#Headers],[Жов]],ЗапланованіВитратиНаМаркетинг[#Headers],0))-INDEX(ФактичніВитратиНаМаркетинг[],MATCH(INDEX(РізницяВитратНаМаркетинг[],ROW()-ROW(РізницяВитратНаМаркетинг[[#Headers],[Жов]]),1),INDEX(ЗапланованіВитратиНаМаркетинг[],,1),0),MATCH(РізницяВитратНаМаркетинг[[#Headers],[Жов]],ФактичніВитратиНаМаркетинг[#Headers],0))","v":{"v":2000,"d":"2,000.00₴"}},{"$f":"INDEX(ЗапланованіВитратиНаМаркетинг[],MATCH(INDEX(РізницяВитратНаМаркетинг[],ROW()-ROW(РізницяВитратНаМаркетинг[[#Headers],[Лис]]),1),INDEX(ЗапланованіВитратиНаМаркетинг[],,1),0),MATCH(РізницяВитратНаМаркетинг[[#Headers],[Лис]],ЗапланованіВитратиНаМаркетинг[#Headers],0))-INDEX(ФактичніВитратиНаМаркетинг[],MATCH(INDEX(РізницяВитратНаМаркетинг[],ROW()-ROW(РізницяВитратНаМаркетинг[[#Headers],[Лис]]),1),INDEX(ЗапланованіВитратиНаМаркетинг[],,1),0),MATCH(РізницяВитратНаМаркетинг[[#Headers],[Лис]],ФактичніВитратиНаМаркетинг[#Headers],0))","v":{"v":2000,"d":"2,000.00₴"}},{"$f":"INDEX(ЗапланованіВитратиНаМаркетинг[],MATCH(INDEX(РізницяВитратНаМаркетинг[],ROW()-ROW(РізницяВитратНаМаркетинг[[#Headers],[Гру]]),1),INDEX(ЗапланованіВитратиНаМаркетинг[],,1),0),MATCH(РізницяВитратНаМаркетинг[[#Headers],[Гру]],ЗапланованіВитратиНаМаркетинг[#Headers],0))-INDEX(ФактичніВитратиНаМаркетинг[],MATCH(INDEX(РізницяВитратНаМаркетинг[],ROW()-ROW(РізницяВитратНаМаркетинг[[#Headers],[Гру]]),1),INDEX(ЗапланованіВитратиНаМаркетинг[],,1),0),MATCH(РізницяВитратНаМаркетинг[[#Headers],[Гру]],ФактичніВитратиНаМаркетинг[#Headers],0))","v":{"v":5000,"d":"5,000.00₴"}},{"$f":"SUM(РізницяВитратНаМаркетинг[[#This Row],[Січ]:[Гру]])","v":{"v":18300,"d":"18,300.00₴"}}]
[null,"Інші витрати",{"$f":"INDEX(ЗапланованіВитратиНаМаркетинг[],MATCH(INDEX(РізницяВитратНаМаркетинг[],ROW()-ROW(РізницяВитратНаМаркетинг[[#Headers],[Січ]]),1),INDEX(ЗапланованіВитратиНаМаркетинг[],,1),0),MATCH(РізницяВитратНаМаркетинг[[#Headers],[Січ]],ЗапланованіВитратиНаМаркетинг[#Headers],0))-INDEX(ФактичніВитратиНаМаркетинг[],MATCH(INDEX(РізницяВитратНаМаркетинг[],ROW()-ROW(РізницяВитратНаМаркетинг[[#Headers],[Січ]]),1),INDEX(ЗапланованіВитратиНаМаркетинг[],,1),0),MATCH(РізницяВитратНаМаркетинг[[#Headers],[Січ]],ФактичніВитратиНаМаркетинг[#Headers],0))","v":{"v":55,"d":"55.00₴"}},{"$f":"INDEX(ЗапланованіВитратиНаМаркетинг[],MATCH(INDEX(РізницяВитратНаМаркетинг[],ROW()-ROW(РізницяВитратНаМаркетинг[[#Headers],[Лют]]),1),INDEX(ЗапланованіВитратиНаМаркетинг[],,1),0),MATCH(РізницяВитратНаМаркетинг[[#Headers],[Лют]],ЗапланованіВитратиНаМаркетинг[#Headers],0))-INDEX(ФактичніВитратиНаМаркетинг[],MATCH(INDEX(РізницяВитратНаМаркетинг[],ROW()-ROW(РізницяВитратНаМаркетинг[[#Headers],[Лют]]),1),INDEX(ЗапланованіВитратиНаМаркетинг[],,1),0),MATCH(РізницяВитратНаМаркетинг[[#Headers],[Лют]],ФактичніВитратиНаМаркетинг[#Headers],0))","v":{"v":44,"d":"44.00₴"}},{"$f":"INDEX(ЗапланованіВитратиНаМаркетинг[],MATCH(INDEX(РізницяВитратНаМаркетинг[],ROW()-ROW(РізницяВитратНаМаркетинг[[#Headers],[Бер]]),1),INDEX(ЗапланованіВитратиНаМаркетинг[],,1),0),MATCH(РізницяВитратНаМаркетинг[[#Headers],[Бер]],ЗапланованіВитратиНаМаркетинг[#Headers],0))-INDEX(ФактичніВитратиНаМаркетинг[],MATCH(INDEX(РізницяВитратНаМаркетинг[],ROW()-ROW(РізницяВитратНаМаркетинг[[#Headers],[Бер]]),1),INDEX(ЗапланованіВитратиНаМаркетинг[],,1),0),MATCH(РізницяВитратНаМаркетинг[[#Headers],[Бер]],ФактичніВитратиНаМаркетинг[#Headers],0))","v":{"v":77,"d":"77.00₴"}},{"$f":"INDEX(ЗапланованіВитратиНаМаркетинг[],MATCH(INDEX(РізницяВитратНаМаркетинг[],ROW()-ROW(РізницяВитратНаМаркетинг[[#Headers],[Кві]]),1),INDEX(ЗапланованіВитратиНаМаркетинг[],,1),0),MATCH(РізницяВитратНаМаркетинг[[#Headers],[Кві]],ЗапланованіВитратиНаМаркетинг[#Headers],0))-INDEX(ФактичніВитратиНаМаркетинг[],MATCH(INDEX(РізницяВитратНаМаркетинг[],ROW()-ROW(РізницяВитратНаМаркетинг[[#Headers],[Кві]]),1),INDEX(ЗапланованіВитратиНаМаркетинг[],,1),0),MATCH(РізницяВитратНаМаркетинг[[#Headers],[Кві]],ФактичніВитратиНаМаркетинг[#Headers],0))","v":{"v":-23,"d":"-23.00₴"}},{"$f":"INDEX(ЗапланованіВитратиНаМаркетинг[],MATCH(INDEX(РізницяВитратНаМаркетинг[],ROW()-ROW(РізницяВитратНаМаркетинг[[#Headers],[Тра]]),1),INDEX(ЗапланованіВитратиНаМаркетинг[],,1),0),MATCH(РізницяВитратНаМаркетинг[[#Headers],[Тра]],ЗапланованіВитратиНаМаркетинг[#Headers],0))-INDEX(ФактичніВитратиНаМаркетинг[],MATCH(INDEX(РізницяВитратНаМаркетинг[],ROW()-ROW(РізницяВитратНаМаркетинг[[#Headers],[Тра]]),1),INDEX(ЗапланованіВитратиНаМаркетинг[],,1),0),MATCH(РізницяВитратНаМаркетинг[[#Headers],[Тра]],ФактичніВитратиНаМаркетинг[#Headers],0))","v":{"v":13,"d":"13.00₴"}},{"$f":"INDEX(ЗапланованіВитратиНаМаркетинг[],MATCH(INDEX(РізницяВитратНаМаркетинг[],ROW()-ROW(РізницяВитратНаМаркетинг[[#Headers],[Чер]]),1),INDEX(ЗапланованіВитратиНаМаркетинг[],,1),0),MATCH(РізницяВитратНаМаркетинг[[#Headers],[Чер]],ЗапланованіВитратиНаМаркетинг[#Headers],0))-INDEX(ФактичніВитратиНаМаркетинг[],MATCH(INDEX(РізницяВитратНаМаркетинг[],ROW()-ROW(РізницяВитратНаМаркетинг[[#Headers],[Чер]]),1),INDEX(ЗапланованіВитратиНаМаркетинг[],,1),0),MATCH(РізницяВитратНаМаркетинг[[#Headers],[Чер]],ФактичніВитратиНаМаркетинг[#Headers],0))","v":{"v":-45,"d":"-45.00₴"}},{"$f":"INDEX(ЗапланованіВитратиНаМаркетинг[],MATCH(INDEX(РізницяВитратНаМаркетинг[],ROW()-ROW(РізницяВитратНаМаркетинг[[#Headers],[Лип]]),1),INDEX(ЗапланованіВитратиНаМаркетинг[],,1),0),MATCH(РізницяВитратНаМаркетинг[[#Headers],[Лип]],ЗапланованіВитратиНаМаркетинг[#Headers],0))-INDEX(ФактичніВитратиНаМаркетинг[],MATCH(INDEX(РізницяВитратНаМаркетинг[],ROW()-ROW(РізницяВитратНаМаркетинг[[#Headers],[Лип]]),1),INDEX(ЗапланованіВитратиНаМаркетинг[],,1),0),MATCH(РізницяВитратНаМаркетинг[[#Headers],[Лип]],ФактичніВитратиНаМаркетинг[#Headers],0))","v":{"v":200,"d":"200.00₴"}},{"$f":"INDEX(ЗапланованіВитратиНаМаркетинг[],MATCH(INDEX(РізницяВитратНаМаркетинг[],ROW()-ROW(РізницяВитратНаМаркетинг[[#Headers],[Cер]]),1),INDEX(ЗапланованіВитратиНаМаркетинг[],,1),0),MATCH(РізницяВитратНаМаркетинг[[#Headers],[Cер]],ЗапланованіВитратиНаМаркетинг[#Headers],0))-INDEX(ФактичніВитратиНаМаркетинг[],MATCH(INDEX(РізницяВитратНаМаркетинг[],ROW()-ROW(РізницяВитратНаМаркетинг[[#Headers],[Cер]]),1),INDEX(ЗапланованіВитратиНаМаркетинг[],,1),0),MATCH(РізницяВитратНаМаркетинг[[#Headers],[Cер]],ФактичніВитратиНаМаркетинг[#Headers],0))","v":{"v":200,"d":"200.00₴"}},{"$f":"INDEX(ЗапланованіВитратиНаМаркетинг[],MATCH(INDEX(РізницяВитратНаМаркетинг[],ROW()-ROW(РізницяВитратНаМаркетинг[[#Headers],[Вер]]),1),INDEX(ЗапланованіВитратиНаМаркетинг[],,1),0),MATCH(РізницяВитратНаМаркетинг[[#Headers],[Вер]],ЗапланованіВитратиНаМаркетинг[#Headers],0))-INDEX(ФактичніВитратиНаМаркетинг[],MATCH(INDEX(РізницяВитратНаМаркетинг[],ROW()-ROW(РізницяВитратНаМаркетинг[[#Headers],[Вер]]),1),INDEX(ЗапланованіВитратиНаМаркетинг[],,1),0),MATCH(РізницяВитратНаМаркетинг[[#Headers],[Вер]],ФактичніВитратиНаМаркетинг[#Headers],0))","v":{"v":200,"d":"200.00₴"}},{"$f":"INDEX(ЗапланованіВитратиНаМаркетинг[],MATCH(INDEX(РізницяВитратНаМаркетинг[],ROW()-ROW(РізницяВитратНаМаркетинг[[#Headers],[Жов]]),1),INDEX(ЗапланованіВитратиНаМаркетинг[],,1),0),MATCH(РізницяВитратНаМаркетинг[[#Headers],[Жов]],ЗапланованіВитратиНаМаркетинг[#Headers],0))-INDEX(ФактичніВитратиНаМаркетинг[],MATCH(INDEX(РізницяВитратНаМаркетинг[],ROW()-ROW(РізницяВитратНаМаркетинг[[#Headers],[Жов]]),1),INDEX(ЗапланованіВитратиНаМаркетинг[],,1),0),MATCH(РізницяВитратНаМаркетинг[[#Headers],[Жов]],ФактичніВитратиНаМаркетинг[#Headers],0))","v":{"v":200,"d":"200.00₴"}},{"$f":"INDEX(ЗапланованіВитратиНаМаркетинг[],MATCH(INDEX(РізницяВитратНаМаркетинг[],ROW()-ROW(РізницяВитратНаМаркетинг[[#Headers],[Лис]]),1),INDEX(ЗапланованіВитратиНаМаркетинг[],,1),0),MATCH(РізницяВитратНаМаркетинг[[#Headers],[Лис]],ЗапланованіВитратиНаМаркетинг[#Headers],0))-INDEX(ФактичніВитратиНаМаркетинг[],MATCH(INDEX(РізницяВитратНаМаркетинг[],ROW()-ROW(РізницяВитратНаМаркетинг[[#Headers],[Лис]]),1),INDEX(ЗапланованіВитратиНаМаркетинг[],,1),0),MATCH(РізницяВитратНаМаркетинг[[#Headers],[Лис]],ФактичніВитратиНаМаркетинг[#Headers],0))","v":{"v":200,"d":"200.00₴"}},{"$f":"INDEX(ЗапланованіВитратиНаМаркетинг[],MATCH(INDEX(РізницяВитратНаМаркетинг[],ROW()-ROW(РізницяВитратНаМаркетинг[[#Headers],[Гру]]),1),INDEX(ЗапланованіВитратиНаМаркетинг[],,1),0),MATCH(РізницяВитратНаМаркетинг[[#Headers],[Гру]],ЗапланованіВитратиНаМаркетинг[#Headers],0))-INDEX(ФактичніВитратиНаМаркетинг[],MATCH(INDEX(РізницяВитратНаМаркетинг[],ROW()-ROW(РізницяВитратНаМаркетинг[[#Headers],[Гру]]),1),INDEX(ЗапланованіВитратиНаМаркетинг[],,1),0),MATCH(РізницяВитратНаМаркетинг[[#Headers],[Гру]],ФактичніВитратиНаМаркетинг[#Headers],0))","v":{"v":200,"d":"200.00₴"}},{"$f":"SUM(РізницяВитратНаМаркетинг[[#This Row],[Січ]:[Гру]])","v":{"v":1321,"d":"1,321.00₴"}}]
[null,"Проміжний підсумок",{"$f":"SUBTOTAL(109,РізницяВитратНаМаркетинг[Січ])","v":{"v":555,"d":"555.00₴"}},{"$f":"SUBTOTAL(109,РізницяВитратНаМаркетинг[Лют])","v":{"v":-456,"d":"-456.00₴"}},{"$f":"SUBTOTAL(109,РізницяВитратНаМаркетинг[Бер])","v":{"v":-23,"d":"-23.00₴"}},{"$f":"SUBTOTAL(109,РізницяВитратНаМаркетинг[Кві])","v":{"v":-123,"d":"-123.00₴"}},{"$f":"SUBTOTAL(109,РізницяВитратНаМаркетинг[Тра])","v":{"v":113,"d":"113.00₴"}},{"$f":"SUBTOTAL(109,РізницяВитратНаМаркетинг[Чер])","v":{"v":-825,"d":"-825.00₴"}},{"$f":"SUBTOTAL(109,РізницяВитратНаМаркетинг[Лип])","v":{"v":8100,"d":"8,100.00₴"}},{"$f":"SUBTOTAL(109,РізницяВитратНаМаркетинг[Cер])","v":{"v":6100,"d":"6,100.00₴"}},{"$f":"SUBTOTAL(109,РізницяВитратНаМаркетинг[Вер])","v":{"v":3100,"d":"3,100.00₴"}},{"$f":"SUBTOTAL(109,РізницяВитратНаМаркетинг[Жов])","v":{"v":8100,"d":"8,100.00₴"}},{"$f":"SUBTOTAL(109,РізницяВитратНаМаркетинг[Лис])","v":{"v":3100,"d":"3,100.00₴"}},{"$f":"SUBTOTAL(109,РізницяВитратНаМаркетинг[Гру])","v":{"v":6900,"d":"6,900.00₴"}},{"$f":"SUBTOTAL(109,РізницяВитратНаМаркетинг[РІК])","v":{"v":34641,"d":"34,641.00₴"}}]
[]
["Різниця витрат на підготовчі курси та відрядження автоматично обчислюється в таблиці, починаючи з клітинки праворуч. Подальші вказівки наведено в клітинці A35.","Курси та відрядження","Січ","Лют","Бер","Кві","Тра","Чер","Лип","Cер","Вер","Жов","Лис","Гру","РІК"]
[null,"Підготовчі курси",{"$f":"INDEX(ЗапланованіВитратиНаКурсиТаВідрядження[],MATCH(INDEX(РізницяВитратНаКурсиТаВідрядження[],ROW()-ROW(РізницяВитратНаКурсиТаВідрядження[[#Headers],[Січ]]),1),INDEX(ЗапланованіВитратиНаКурсиТаВідрядження[],,1),0),MATCH(РізницяВитратНаКурсиТаВідрядження[[#Headers],[Січ]],ЗапланованіВитратиНаКурсиТаВідрядження[#Headers],0))-INDEX(ФактичніВитратиНаКурсиТаВідрядження[],MATCH(INDEX(РізницяВитратНаКурсиТаВідрядження[],ROW()-ROW(РізницяВитратНаКурсиТаВідрядження[[#Headers],[Січ]]),1),INDEX(ЗапланованіВитратиНаКурсиТаВідрядження[],,1),0),MATCH(РізницяВитратНаКурсиТаВідрядження[[#Headers],[Січ]],ФактичніВитратиНаКурсиТаВідрядження[#Headers],0))","v":{"v":400,"d":"400.00₴"}},{"$f":"INDEX(ЗапланованіВитратиНаКурсиТаВідрядження[],MATCH(INDEX(РізницяВитратНаКурсиТаВідрядження[],ROW()-ROW(РізницяВитратНаКурсиТаВідрядження[[#Headers],[Лют]]),1),INDEX(ЗапланованіВитратиНаКурсиТаВідрядження[],,1),0),MATCH(РізницяВитратНаКурсиТаВідрядження[[#Headers],[Лют]],ЗапланованіВитратиНаКурсиТаВідрядження[#Headers],0))-INDEX(ФактичніВитратиНаКурсиТаВідрядження[],MATCH(INDEX(РізницяВитратНаКурсиТаВідрядження[],ROW()-ROW(РізницяВитратНаКурсиТаВідрядження[[#Headers],[Лют]]),1),INDEX(ЗапланованіВитратиНаКурсиТаВідрядження[],,1),0),MATCH(РізницяВитратНаКурсиТаВідрядження[[#Headers],[Лют]],ФактичніВитратиНаКурсиТаВідрядження[#Headers],0))","v":{"v":-400,"d":"-400.00₴"}},{"$f":"INDEX(ЗапланованіВитратиНаКурсиТаВідрядження[],MATCH(INDEX(РізницяВитратНаКурсиТаВідрядження[],ROW()-ROW(РізницяВитратНаКурсиТаВідрядження[[#Headers],[Бер]]),1),INDEX(ЗапланованіВитратиНаКурсиТаВідрядження[],,1),0),MATCH(РізницяВитратНаКурсиТаВідрядження[[#Headers],[Бер]],ЗапланованіВитратиНаКурсиТаВідрядження[#Headers],0))-INDEX(ФактичніВитратиНаКурсиТаВідрядження[],MATCH(INDEX(РізницяВитратНаКурсиТаВідрядження[],ROW()-ROW(РізницяВитратНаКурсиТаВідрядження[[#Headers],[Бер]]),1),INDEX(ЗапланованіВитратиНаКурсиТаВідрядження[],,1),0),MATCH(РізницяВитратНаКурсиТаВідрядження[[#Headers],[Бер]],ФактичніВитратиНаКурсиТаВідрядження[#Headers],0))","v":{"v":600,"d":"600.00₴"}},{"$f":"INDEX(ЗапланованіВитратиНаКурсиТаВідрядження[],MATCH(INDEX(РізницяВитратНаКурсиТаВідрядження[],ROW()-ROW(РізницяВитратНаКурсиТаВідрядження[[#Headers],[Кві]]),1),INDEX(ЗапланованіВитратиНаКурсиТаВідрядження[],,1),0),MATCH(РізницяВитратНаКурсиТаВідрядження[[#Headers],[Кві]],ЗапланованіВитратиНаКурсиТаВідрядження[#Headers],0))-INDEX(ФактичніВитратиНаКурсиТаВідрядження[],MATCH(INDEX(РізницяВитратНаКурсиТаВідрядження[],ROW()-ROW(РізницяВитратНаКурсиТаВідрядження[[#Headers],[Кві]]),1),INDEX(ЗапланованіВитратиНаКурсиТаВідрядження[],,1),0),MATCH(РізницяВитратНаКурсиТаВідрядження[[#Headers],[Кві]],ФактичніВитратиНаКурсиТаВідрядження[#Headers],0))","v":{"v":400,"d":"400.00₴"}},{"$f":"INDEX(ЗапланованіВитратиНаКурсиТаВідрядження[],MATCH(INDEX(РізницяВитратНаКурсиТаВідрядження[],ROW()-ROW(РізницяВитратНаКурсиТаВідрядження[[#Headers],[Тра]]),1),INDEX(ЗапланованіВитратиНаКурсиТаВідрядження[],,1),0),MATCH(РізницяВитратНаКурсиТаВідрядження[[#Headers],[Тра]],ЗапланованіВитратиНаКурсиТаВідрядження[#Headers],0))-INDEX(ФактичніВитратиНаКурсиТаВідрядження[],MATCH(INDEX(РізницяВитратНаКурсиТаВідрядження[],ROW()-ROW(РізницяВитратНаКурсиТаВідрядження[[#Headers],[Тра]]),1),INDEX(ЗапланованіВитратиНаКурсиТаВідрядження[],,1),0),MATCH(РізницяВитратНаКурсиТаВідрядження[[#Headers],[Тра]],ФактичніВитратиНаКурсиТаВідрядження[#Headers],0))","v":{"v":800,"d":"800.00₴"}},{"$f":"INDEX(ЗапланованіВитратиНаКурсиТаВідрядження[],MATCH(INDEX(РізницяВитратНаКурсиТаВідрядження[],ROW()-ROW(РізницяВитратНаКурсиТаВідрядження[[#Headers],[Чер]]),1),INDEX(ЗапланованіВитратиНаКурсиТаВідрядження[],,1),0),MATCH(РізницяВитратНаКурсиТаВідрядження[[#Headers],[Чер]],ЗапланованіВитратиНаКурсиТаВідрядження[#Headers],0))-INDEX(ФактичніВитратиНаКурсиТаВідрядження[],MATCH(INDEX(РізницяВитратНаКурсиТаВідрядження[],ROW()-ROW(РізницяВитратНаКурсиТаВідрядження[[#Headers],[Чер]]),1),INDEX(ЗапланованіВитратиНаКурсиТаВідрядження[],,1),0),MATCH(РізницяВитратНаКурсиТаВідрядження[[#Headers],[Чер]],ФактичніВитратиНаКурсиТаВідрядження[#Headers],0))","v":{"v":-800,"d":"-800.00₴"}},{"$f":"INDEX(ЗапланованіВитратиНаКурсиТаВідрядження[],MATCH(INDEX(РізницяВитратНаКурсиТаВідрядження[],ROW()-ROW(РізницяВитратНаКурсиТаВідрядження[[#Headers],[Лип]]),1),INDEX(ЗапланованіВитратиНаКурсиТаВідрядження[],,1),0),MATCH(РізницяВитратНаКурсиТаВідрядження[[#Headers],[Лип]],ЗапланованіВитратиНаКурсиТаВідрядження[#Headers],0))-INDEX(ФактичніВитратиНаКурсиТаВідрядження[],MATCH(INDEX(РізницяВитратНаКурсиТаВідрядження[],ROW()-ROW(РізницяВитратНаКурсиТаВідрядження[[#Headers],[Лип]]),1),INDEX(ЗапланованіВитратиНаКурсиТаВідрядження[],,1),0),MATCH(РізницяВитратНаКурсиТаВідрядження[[#Headers],[Лип]],ФактичніВитратиНаКурсиТаВідрядження[#Headers],0))","v":{"v":2000,"d":"2,000.00₴"}},{"$f":"INDEX(ЗапланованіВитратиНаКурсиТаВідрядження[],MATCH(INDEX(РізницяВитратНаКурсиТаВідрядження[],ROW()-ROW(РізницяВитратНаКурсиТаВідрядження[[#Headers],[Cер]]),1),INDEX(ЗапланованіВитратиНаКурсиТаВідрядження[],,1),0),MATCH(РізницяВитратНаКурсиТаВідрядження[[#Headers],[Cер]],ЗапланованіВитратиНаКурсиТаВідрядження[#Headers],0))-INDEX(ФактичніВитратиНаКурсиТаВідрядження[],MATCH(INDEX(РізницяВитратНаКурсиТаВідрядження[],ROW()-ROW(РізницяВитратНаКурсиТаВідрядження[[#Headers],[Cер]]),1),INDEX(ЗапланованіВитратиНаКурсиТаВідрядження[],,1),0),MATCH(РізницяВитратНаКурсиТаВідрядження[[#Headers],[Cер]],ФактичніВитратиНаКурсиТаВідрядження[#Headers],0))","v":{"v":2000,"d":"2,000.00₴"}},{"$f":"INDEX(ЗапланованіВитратиНаКурсиТаВідрядження[],MATCH(INDEX(РізницяВитратНаКурсиТаВідрядження[],ROW()-ROW(РізницяВитратНаКурсиТаВідрядження[[#Headers],[Вер]]),1),INDEX(ЗапланованіВитратиНаКурсиТаВідрядження[],,1),0),MATCH(РізницяВитратНаКурсиТаВідрядження[[#Headers],[Вер]],ЗапланованіВитратиНаКурсиТаВідрядження[#Headers],0))-INDEX(ФактичніВитратиНаКурсиТаВідрядження[],MATCH(INDEX(РізницяВитратНаКурсиТаВідрядження[],ROW()-ROW(РізницяВитратНаКурсиТаВідрядження[[#Headers],[Вер]]),1),INDEX(ЗапланованіВитратиНаКурсиТаВідрядження[],,1),0),MATCH(РізницяВитратНаКурсиТаВідрядження[[#Headers],[Вер]],ФактичніВитратиНаКурсиТаВідрядження[#Headers],0))","v":{"v":2000,"d":"2,000.00₴"}},{"$f":"INDEX(ЗапланованіВитратиНаКурсиТаВідрядження[],MATCH(INDEX(РізницяВитратНаКурсиТаВідрядження[],ROW()-ROW(РізницяВитратНаКурсиТаВідрядження[[#Headers],[Жов]]),1),INDEX(ЗапланованіВитратиНаКурсиТаВідрядження[],,1),0),MATCH(РізницяВитратНаКурсиТаВідрядження[[#Headers],[Жов]],ЗапланованіВитратиНаКурсиТаВідрядження[#Headers],0))-INDEX(ФактичніВитратиНаКурсиТаВідрядження[],MATCH(INDEX(РізницяВитратНаКурсиТаВідрядження[],ROW()-ROW(РізницяВитратНаКурсиТаВідрядження[[#Headers],[Жов]]),1),INDEX(ЗапланованіВитратиНаКурсиТаВідрядження[],,1),0),MATCH(РізницяВитратНаКурсиТаВідрядження[[#Headers],[Жов]],ФактичніВитратиНаКурсиТаВідрядження[#Headers],0))","v":{"v":2000,"d":"2,000.00₴"}},{"$f":"INDEX(ЗапланованіВитратиНаКурсиТаВідрядження[],MATCH(INDEX(РізницяВитратНаКурсиТаВідрядження[],ROW()-ROW(РізницяВитратНаКурсиТаВідрядження[[#Headers],[Лис]]),1),INDEX(ЗапланованіВитратиНаКурсиТаВідрядження[],,1),0),MATCH(РізницяВитратНаКурсиТаВідрядження[[#Headers],[Лис]],ЗапланованіВитратиНаКурсиТаВідрядження[#Headers],0))-INDEX(ФактичніВитратиНаКурсиТаВідрядження[],MATCH(INDEX(РізницяВитратНаКурсиТаВідрядження[],ROW()-ROW(РізницяВитратНаКурсиТаВідрядження[[#Headers],[Лис]]),1),INDEX(ЗапланованіВитратиНаКурсиТаВідрядження[],,1),0),MATCH(РізницяВитратНаКурсиТаВідрядження[[#Headers],[Лис]],ФактичніВитратиНаКурсиТаВідрядження[#Headers],0))","v":{"v":2000,"d":"2,000.00₴"}},{"$f":"INDEX(ЗапланованіВитратиНаКурсиТаВідрядження[],MATCH(INDEX(РізницяВитратНаКурсиТаВідрядження[],ROW()-ROW(РізницяВитратНаКурсиТаВідрядження[[#Headers],[Гру]]),1),INDEX(ЗапланованіВитратиНаКурсиТаВідрядження[],,1),0),MATCH(РізницяВитратНаКурсиТаВідрядження[[#Headers],[Гру]],ЗапланованіВитратиНаКурсиТаВідрядження[#Headers],0))-INDEX(ФактичніВитратиНаКурсиТаВідрядження[],MATCH(INDEX(РізницяВитратНаКурсиТаВідрядження[],ROW()-ROW(РізницяВитратНаКурсиТаВідрядження[[#Headers],[Гру]]),1),INDEX(ЗапланованіВитратиНаКурсиТаВідрядження[],,1),0),MATCH(РізницяВитратНаКурсиТаВідрядження[[#Headers],[Гру]],ФактичніВитратиНаКурсиТаВідрядження[#Headers],0))","v":{"v":2000,"d":"2,000.00₴"}},{"$f":"SUM(РізницяВитратНаКурсиТаВідрядження[[#This Row],[Січ]:[Гру]])","v":{"v":13000,"d":"13,000.00₴"}}]
[null,"Витрати на відрядження, пов’язані з курсами",{"$f":"INDEX(ЗапланованіВитратиНаКурсиТаВідрядження[],MATCH(INDEX(РізницяВитратНаКурсиТаВідрядження[],ROW()-ROW(РізницяВитратНаКурсиТаВідрядження[[#Headers],[Січ]]),1),INDEX(ЗапланованіВитратиНаКурсиТаВідрядження[],,1),0),MATCH(РізницяВитратНаКурсиТаВідрядження[[#Headers],[Січ]],ЗапланованіВитратиНаКурсиТаВідрядження[#Headers],0))-INDEX(ФактичніВитратиНаКурсиТаВідрядження[],MATCH(INDEX(РізницяВитратНаКурсиТаВідрядження[],ROW()-ROW(РізницяВитратНаКурсиТаВідрядження[[#Headers],[Січ]]),1),INDEX(ЗапланованіВитратиНаКурсиТаВідрядження[],,1),0),MATCH(РізницяВитратНаКурсиТаВідрядження[[#Headers],[Січ]],ФактичніВитратиНаКурсиТаВідрядження[#Headers],0))","v":{"v":800,"d":"800.00₴"}},{"$f":"INDEX(ЗапланованіВитратиНаКурсиТаВідрядження[],MATCH(INDEX(РізницяВитратНаКурсиТаВідрядження[],ROW()-ROW(РізницяВитратНаКурсиТаВідрядження[[#Headers],[Лют]]),1),INDEX(ЗапланованіВитратиНаКурсиТаВідрядження[],,1),0),MATCH(РізницяВитратНаКурсиТаВідрядження[[#Headers],[Лют]],ЗапланованіВитратиНаКурсиТаВідрядження[#Headers],0))-INDEX(ФактичніВитратиНаКурсиТаВідрядження[],MATCH(INDEX(РізницяВитратНаКурсиТаВідрядження[],ROW()-ROW(РізницяВитратНаКурсиТаВідрядження[[#Headers],[Лют]]),1),INDEX(ЗапланованіВитратиНаКурсиТаВідрядження[],,1),0),MATCH(РізницяВитратНаКурсиТаВідрядження[[#Headers],[Лют]],ФактичніВитратиНаКурсиТаВідрядження[#Headers],0))","v":{"v":-200,"d":"-200.00₴"}},{"$f":"INDEX(ЗапланованіВитратиНаКурсиТаВідрядження[],MATCH(INDEX(РізницяВитратНаКурсиТаВідрядження[],ROW()-ROW(РізницяВитратНаКурсиТаВідрядження[[#Headers],[Бер]]),1),INDEX(ЗапланованіВитратиНаКурсиТаВідрядження[],,1),0),MATCH(РізницяВитратНаКурсиТаВідрядження[[#Headers],[Бер]],ЗапланованіВитратиНаКурсиТаВідрядження[#Headers],0))-INDEX(ФактичніВитратиНаКурсиТаВідрядження[],MATCH(INDEX(РізницяВитратНаКурсиТаВідрядження[],ROW()-ROW(РізницяВитратНаКурсиТаВідрядження[[#Headers],[Бер]]),1),INDEX(ЗапланованіВитратиНаКурсиТаВідрядження[],,1),0),MATCH(РізницяВитратНаКурсиТаВідрядження[[#Headers],[Бер]],ФактичніВитратиНаКурсиТаВідрядження[#Headers],0))","v":{"v":600,"d":"600.00₴"}},{"$f":"INDEX(ЗапланованіВитратиНаКурсиТаВідрядження[],MATCH(INDEX(РізницяВитратНаКурсиТаВідрядження[],ROW()-ROW(РізницяВитратНаКурсиТаВідрядження[[#Headers],[Кві]]),1),INDEX(ЗапланованіВитратиНаКурсиТаВідрядження[],,1),0),MATCH(РізницяВитратНаКурсиТаВідрядження[[#Headers],[Кві]],ЗапланованіВитратиНаКурсиТаВідрядження[#Headers],0))-INDEX(ФактичніВитратиНаКурсиТаВідрядження[],MATCH(INDEX(РізницяВитратНаКурсиТаВідрядження[],ROW()-ROW(РізницяВитратНаКурсиТаВідрядження[[#Headers],[Кві]]),1),INDEX(ЗапланованіВитратиНаКурсиТаВідрядження[],,1),0),MATCH(РізницяВитратНаКурсиТаВідрядження[[#Headers],[Кві]],ФактичніВитратиНаКурсиТаВідрядження[#Headers],0))","v":{"v":800,"d":"800.00₴"}},{"$f":"INDEX(ЗапланованіВитратиНаКурсиТаВідрядження[],MATCH(INDEX(РізницяВитратНаКурсиТаВідрядження[],ROW()-ROW(РізницяВитратНаКурсиТаВідрядження[[#Headers],[Тра]]),1),INDEX(ЗапланованіВитратиНаКурсиТаВідрядження[],,1),0),MATCH(РізницяВитратНаКурсиТаВідрядження[[#Headers],[Тра]],ЗапланованіВитратиНаКурсиТаВідрядження[#Headers],0))-INDEX(ФактичніВитратиНаКурсиТаВідрядження[],MATCH(INDEX(РізницяВитратНаКурсиТаВідрядження[],ROW()-ROW(РізницяВитратНаКурсиТаВідрядження[[#Headers],[Тра]]),1),INDEX(ЗапланованіВитратиНаКурсиТаВідрядження[],,1),0),MATCH(РізницяВитратНаКурсиТаВідрядження[[#Headers],[Тра]],ФактичніВитратиНаКурсиТаВідрядження[#Headers],0))","v":{"v":1200,"d":"1,200.00₴"}},{"$f":"INDEX(ЗапланованіВитратиНаКурсиТаВідрядження[],MATCH(INDEX(РізницяВитратНаКурсиТаВідрядження[],ROW()-ROW(РізницяВитратНаКурсиТаВідрядження[[#Headers],[Чер]]),1),INDEX(ЗапланованіВитратиНаКурсиТаВідрядження[],,1),0),MATCH(РізницяВитратНаКурсиТаВідрядження[[#Headers],[Чер]],ЗапланованіВитратиНаКурсиТаВідрядження[#Headers],0))-INDEX(ФактичніВитратиНаКурсиТаВідрядження[],MATCH(INDEX(РізницяВитратНаКурсиТаВідрядження[],ROW()-ROW(РізницяВитратНаКурсиТаВідрядження[[#Headers],[Чер]]),1),INDEX(ЗапланованіВитратиНаКурсиТаВідрядження[],,1),0),MATCH(РізницяВитратНаКурсиТаВідрядження[[#Headers],[Чер]],ФактичніВитратиНаКурсиТаВідрядження[#Headers],0))","v":{"v":-1500,"d":"-1,500.00₴"}},{"$f":"INDEX(ЗапланованіВитратиНаКурсиТаВідрядження[],MATCH(INDEX(РізницяВитратНаКурсиТаВідрядження[],ROW()-ROW(РізницяВитратНаКурсиТаВідрядження[[#Headers],[Лип]]),1),INDEX(ЗапланованіВитратиНаКурсиТаВідрядження[],,1),0),MATCH(РізницяВитратНаКурсиТаВідрядження[[#Headers],[Лип]],ЗапланованіВитратиНаКурсиТаВідрядження[#Headers],0))-INDEX(ФактичніВитратиНаКурсиТаВідрядження[],MATCH(INDEX(РізницяВитратНаКурсиТаВідрядження[],ROW()-ROW(РізницяВитратНаКурсиТаВідрядження[[#Headers],[Лип]]),1),INDEX(ЗапланованіВитратиНаКурсиТаВідрядження[],,1),0),MATCH(РізницяВитратНаКурсиТаВідрядження[[#Headers],[Лип]],ФактичніВитратиНаКурсиТаВідрядження[#Headers],0))","v":{"v":2000,"d":"2,000.00₴"}},{"$f":"INDEX(ЗапланованіВитратиНаКурсиТаВідрядження[],MATCH(INDEX(РізницяВитратНаКурсиТаВідрядження[],ROW()-ROW(РізницяВитратНаКурсиТаВідрядження[[#Headers],[Cер]]),1),INDEX(ЗапланованіВитратиНаКурсиТаВідрядження[],,1),0),MATCH(РізницяВитратНаКурсиТаВідрядження[[#Headers],[Cер]],ЗапланованіВитратиНаКурсиТаВідрядження[#Headers],0))-INDEX(ФактичніВитратиНаКурсиТаВідрядження[],MATCH(INDEX(РізницяВитратНаКурсиТаВідрядження[],ROW()-ROW(РізницяВитратНаКурсиТаВідрядження[[#Headers],[Cер]]),1),INDEX(ЗапланованіВитратиНаКурсиТаВідрядження[],,1),0),MATCH(РізницяВитратНаКурсиТаВідрядження[[#Headers],[Cер]],ФактичніВитратиНаКурсиТаВідрядження[#Headers],0))","v":{"v":2000,"d":"2,000.00₴"}},{"$f":"INDEX(ЗапланованіВитратиНаКурсиТаВідрядження[],MATCH(INDEX(РізницяВитратНаКурсиТаВідрядження[],ROW()-ROW(РізницяВитратНаКурсиТаВідрядження[[#Headers],[Вер]]),1),INDEX(ЗапланованіВитратиНаКурсиТаВідрядження[],,1),0),MATCH(РізницяВитратНаКурсиТаВідрядження[[#Headers],[Вер]],ЗапланованіВитратиНаКурсиТаВідрядження[#Headers],0))-INDEX(ФактичніВитратиНаКурсиТаВідрядження[],MATCH(INDEX(РізницяВитратНаКурсиТаВідрядження[],ROW()-ROW(РізницяВитратНаКурсиТаВідрядження[[#Headers],[Вер]]),1),INDEX(ЗапланованіВитратиНаКурсиТаВідрядження[],,1),0),MATCH(РізницяВитратНаКурсиТаВідрядження[[#Headers],[Вер]],ФактичніВитратиНаКурсиТаВідрядження[#Headers],0))","v":{"v":2000,"d":"2,000.00₴"}},{"$f":"INDEX(ЗапланованіВитратиНаКурсиТаВідрядження[],MATCH(INDEX(РізницяВитратНаКурсиТаВідрядження[],ROW()-ROW(РізницяВитратНаКурсиТаВідрядження[[#Headers],[Жов]]),1),INDEX(ЗапланованіВитратиНаКурсиТаВідрядження[],,1),0),MATCH(РізницяВитратНаКурсиТаВідрядження[[#Headers],[Жов]],ЗапланованіВитратиНаКурсиТаВідрядження[#Headers],0))-INDEX(ФактичніВитратиНаКурсиТаВідрядження[],MATCH(INDEX(РізницяВитратНаКурсиТаВідрядження[],ROW()-ROW(РізницяВитратНаКурсиТаВідрядження[[#Headers],[Жов]]),1),INDEX(ЗапланованіВитратиНаКурсиТаВідрядження[],,1),0),MATCH(РізницяВитратНаКурсиТаВідрядження[[#Headers],[Жов]],ФактичніВитратиНаКурсиТаВідрядження[#Headers],0))","v":{"v":2000,"d":"2,000.00₴"}},{"$f":"INDEX(ЗапланованіВитратиНаКурсиТаВідрядження[],MATCH(INDEX(РізницяВитратНаКурсиТаВідрядження[],ROW()-ROW(РізницяВитратНаКурсиТаВідрядження[[#Headers],[Лис]]),1),INDEX(ЗапланованіВитратиНаКурсиТаВідрядження[],,1),0),MATCH(РізницяВитратНаКурсиТаВідрядження[[#Headers],[Лис]],ЗапланованіВитратиНаКурсиТаВідрядження[#Headers],0))-INDEX(ФактичніВитратиНаКурсиТаВідрядження[],MATCH(INDEX(РізницяВитратНаКурсиТаВідрядження[],ROW()-ROW(РізницяВитратНаКурсиТаВідрядження[[#Headers],[Лис]]),1),INDEX(ЗапланованіВитратиНаКурсиТаВідрядження[],,1),0),MATCH(РізницяВитратНаКурсиТаВідрядження[[#Headers],[Лис]],ФактичніВитратиНаКурсиТаВідрядження[#Headers],0))","v":{"v":2000,"d":"2,000.00₴"}},{"$f":"INDEX(ЗапланованіВитратиНаКурсиТаВідрядження[],MATCH(INDEX(РізницяВитратНаКурсиТаВідрядження[],ROW()-ROW(РізницяВитратНаКурсиТаВідрядження[[#Headers],[Гру]]),1),INDEX(ЗапланованіВитратиНаКурсиТаВідрядження[],,1),0),MATCH(РізницяВитратНаКурсиТаВідрядження[[#Headers],[Гру]],ЗапланованіВитратиНаКурсиТаВідрядження[#Headers],0))-INDEX(ФактичніВитратиНаКурсиТаВідрядження[],MATCH(INDEX(РізницяВитратНаКурсиТаВідрядження[],ROW()-ROW(РізницяВитратНаКурсиТаВідрядження[[#Headers],[Гру]]),1),INDEX(ЗапланованіВитратиНаКурсиТаВідрядження[],,1),0),MATCH(РізницяВитратНаКурсиТаВідрядження[[#Headers],[Гру]],ФактичніВитратиНаКурсиТаВідрядження[#Headers],0))","v":{"v":2000,"d":"2,000.00₴"}},{"$f":"SUM(РізницяВитратНаКурсиТаВідрядження[[#This Row],[Січ]:[Гру]])","v":{"v":13700,"d":"13,700.00₴"}}]
[null,"Проміжний підсумок",{"$f":"SUBTOTAL(109,РізницяВитратНаКурсиТаВідрядження[Січ])","v":{"v":1200,"d":"1,200.00₴"}},{"$f":"SUBTOTAL(109,РізницяВитратНаКурсиТаВідрядження[Лют])","v":{"v":-600,"d":"-600.00₴"}},{"$f":"SUBTOTAL(109,РізницяВитратНаКурсиТаВідрядження[Бер])","v":{"v":1200,"d":"1,200.00₴"}},{"$f":"SUBTOTAL(109,РізницяВитратНаКурсиТаВідрядження[Кві])","v":{"v":1200,"d":"1,200.00₴"}},{"$f":"SUBTOTAL(109,РізницяВитратНаКурсиТаВідрядження[Тра])","v":{"v":2000,"d":"2,000.00₴"}},{"$f":"SUBTOTAL(109,РізницяВитратНаКурсиТаВідрядження[Чер])","v":{"v":-2300,"d":"-2,300.00₴"}},{"$f":"SUBTOTAL(109,РізницяВитратНаКурсиТаВідрядження[Лип])","v":{"v":4000,"d":"4,000.00₴"}},{"$f":"SUBTOTAL(109,РізницяВитратНаКурсиТаВідрядження[Cер])","v":{"v":4000,"d":"4,000.00₴"}},{"$f":"SUBTOTAL(109,РізницяВитратНаКурсиТаВідрядження[Вер])","v":{"v":4000,"d":"4,000.00₴"}},{"$f":"SUBTOTAL(109,РізницяВитратНаКурсиТаВідрядження[Жов])","v":{"v":4000,"d":"4,000.00₴"}},{"$f":"SUBTOTAL(109,РізницяВитратНаКурсиТаВідрядження[Лис])","v":{"v":4000,"d":"4,000.00₴"}},{"$f":"SUBTOTAL(109,РізницяВитратНаКурсиТаВідрядження[Гру])","v":{"v":4000,"d":"4,000.00₴"}},{"$f":"SUBTOTAL(109,РізницяВитратНаКурсиТаВідрядження[РІК])","v":{"v":26700,"d":"26,700.00₴"}}]
[]
["Різниця витрат автоматично обчислюється в таблиці, починаючи з клітинки праворуч.","УСЬОГО","Січ","Лют","Бер","Кві","Тра","Чер","Лип","Cер","Вер","Жов","Лис","Гру","Рік"]
[null,"Щомісячні фактичні витрати",{"$f":"РізницяВитратНаКурсиТаВідрядження[[#Totals],[Січ]]+РізницяВитратНаМаркетинг[[#Totals],[Січ]]+РізницяВитратНаОфіс[[#Totals],[Січ]]+РізницяВитратНаПрацівників[[#Totals],[Січ]]","v":{"v":1738,"d":"1,738.00₴"}},{"$f":"РізницяВитратНаКурсиТаВідрядження[[#Totals],[Лют]]+РізницяВитратНаМаркетинг[[#Totals],[Лют]]+РізницяВитратНаОфіс[[#Totals],[Лют]]+РізницяВитратНаПрацівників[[#Totals],[Лют]]","v":{"v":-984,"d":"-984.00₴"}},{"$f":"РізницяВитратНаКурсиТаВідрядження[[#Totals],[Бер]]+РізницяВитратНаМаркетинг[[#Totals],[Бер]]+РізницяВитратНаОфіс[[#Totals],[Бер]]+РізницяВитратНаПрацівників[[#Totals],[Бер]]","v":{"v":1255,"d":"1,255.00₴"}},{"$f":"РізницяВитратНаКурсиТаВідрядження[[#Totals],[Кві]]+РізницяВитратНаМаркетинг[[#Totals],[Кві]]+РізницяВитратНаОфіс[[#Totals],[Кві]]+РізницяВитратНаПрацівників[[#Totals],[Кві]]","v":{"v":301,"d":"301.00₴"}},{"$f":"РізницяВитратНаКурсиТаВідрядження[[#Totals],[Тра]]+РізницяВитратНаМаркетинг[[#Totals],[Тра]]+РізницяВитратНаОфіс[[#Totals],[Тра]]+РізницяВитратНаПрацівників[[#Totals],[Тра]]","v":{"v":1440,"d":"1,440.00₴"}},{"$f":"РізницяВитратНаКурсиТаВідрядження[[#Totals],[Чер]]+РізницяВитратНаМаркетинг[[#Totals],[Чер]]+РізницяВитратНаОфіс[[#Totals],[Чер]]+РізницяВитратНаПрацівників[[#Totals],[Чер]]","v":{"v":-3744,"d":"-3,744.00₴"}},{"$f":"РізницяВитратНаКурсиТаВідрядження[[#Totals],[Лип]]+РізницяВитратНаМаркетинг[[#Totals],[Лип]]+РізницяВитратНаОфіс[[#Totals],[Лип]]+РізницяВитратНаПрацівників[[#Totals],[Лип]]","v":{"v":134695,"d":"134,695.00₴"}},{"$f":"РізницяВитратНаКурсиТаВідрядження[[#Totals],[Cер]]+РізницяВитратНаМаркетинг[[#Totals],[Cер]]+РізницяВитратНаОфіс[[#Totals],[Cер]]+РізницяВитратНаПрацівників[[#Totals],[Cер]]","v":{"v":138918,"d":"138,918.00₴"}},{"$f":"РізницяВитратНаКурсиТаВідрядження[[#Totals],[Вер]]+РізницяВитратНаМаркетинг[[#Totals],[Вер]]+РізницяВитратНаОфіс[[#Totals],[Вер]]+РізницяВитратНаПрацівників[[#Totals],[Вер]]","v":{"v":135918,"d":"135,918.00₴"}},{"$f":"РізницяВитратНаКурсиТаВідрядження[[#Totals],[Жов]]+РізницяВитратНаМаркетинг[[#Totals],[Жов]]+РізницяВитратНаОфіс[[#Totals],[Жов]]+РізницяВитратНаПрацівників[[#Totals],[Жов]]","v":{"v":140918,"d":"140,918.00₴"}},{"$f":"РізницяВитратНаКурсиТаВідрядження[[#Totals],[Лис]]+РізницяВитратНаМаркетинг[[#Totals],[Лис]]+РізницяВитратНаОфіс[[#Totals],[Лис]]+РізницяВитратНаПрацівників[[#Totals],[Лис]]","v":{"v":136218,"d":"136,218.00₴"}},{"$f":"РізницяВитратНаКурсиТаВідрядження[[#Totals],[Гру]]+РізницяВитратНаМаркетинг[[#Totals],[Гру]]+РізницяВитратНаОфіс[[#Totals],[Гру]]+РізницяВитратНаПрацівників[[#Totals],[Гру]]","v":{"v":140018,"d":"140,018.00₴"}},{"$f":"РізницяВитратНаКурсиТаВідрядження[[#Totals],[РІК]]+РізницяВитратНаМаркетинг[[#Totals],[РІК]]+РізницяВитратНаОфіс[[#Totals],[РІК]]+РізницяВитратНаПрацівників[[#Totals],[РІК]]","v":{"v":826691,"d":"826,691.00₴"}}]
[null,"Загальні фактичні витрати",{"$f":"SUM($C$36:C36)","v":{"v":1738,"d":"1,738.00₴"}},{"$f":"SUM($C$36:D36)","v":{"v":754,"d":"754.00₴"}},{"$f":"SUM($C$36:E36)","v":{"v":2009,"d":"2,009.00₴"}},{"$f":"SUM($C$36:F36)","v":{"v":2310,"d":"2,310.00₴"}},{"$f":"SUM($C$36:G36)","v":{"v":3750,"d":"3,750.00₴"}},{"$f":"SUM($C$36:H36)","v":{"v":6,"d":"6.00₴"}},{"$f":"SUM($C$36:I36)","v":{"v":134701,"d":"134,701.00₴"}},{"$f":"SUM($C$36:J36)","v":{"v":273619,"d":"273,619.00₴"}},{"$f":"SUM($C$36:K36)","v":{"v":409537,"d":"409,537.00₴"}},{"$f":"SUM($C$36:L36)","v":{"v":550455,"d":"550,455.00₴"}},{"$f":"SUM($C$36:M36)","v":{"v":686673,"d":"686,673.00₴"}},{"$f":"SUM($C$36:N36)","v":{"v":826691,"d":"826,691.00₴"}}]

{"sheet":"АНАЛІЗ ВИТРАТ","index":4,"n_rows":14,"n_cols":16,"rows_kept":14,"merged":[[1,1,2,3],[1,5,1,6],[2,4,2,6],[11,1,11,2],[11,3,11,5],[13,1,36,5]]}
["Щорічні заплановані та фактичні витрати на кожну категорію, різниця та його відсоток автоматично оновлюється на цьому аркуші. Корисні вказівки щодо роботи з цим аркушем наведено в клітинках у цьому стовпці. Клацніть стрілку вниз, щоб почати. ",{"$nulls":5}," ",{"$nulls":8}," "]
["Назва компанії автоматично оновлюється в клітинці праворуч. Додайте емблему до клітинки F2.",{"$f":"'ЗАПЛАНОВАНІ ВИТРАТИ'!B2:D3","v":"Назва компанії"},{"$nulls":3},"Заповнювач для емблеми наведено в цій клітинці."]
["Заголовок цього аркуша наведено в клітинці E3. Подальші вказівки наведено в клітинці A5.",{"$nulls":3},{"$f":"заголовок_аркуша","v":"Докладна оцінка витрат"}]
[]
["Заплановані й фактичні витрати, різниця та його відсоток автоматично обчислюються в таблиці аналізу, починаючи з клітинки праворуч. Подальші вказівки наведено в клітинці A12.","Категорія витрат","Заплановані витрати","Фактичні витрати","Різниця витрат","Відсоток різниці"]
[null,"Витрати на працівників",{"$f":"ЗапланованіВитратиНаПрацівників[[#Totals],[РІК]]","v":{"v":1355090,"d":"1,355,090.00₴"}},{"$f":"ФактичніВитратиНаПрацівників[[#Totals],[РІК]]","v":{"v":659130,"d":"659,130.00₴"}},{"$f":"C6-D6","v":{"v":695960,"d":"695,960.00₴"}},{"$f":"E6/C6","v":{"v":0.5135895032802249,"d":"51%"}}]
[null,{"$f":"'ЗАПЛАНОВАНІ ВИТРАТИ'!B10","v":"Витрати на офіс"},{"$f":"ЗапланованіВитратиНаОфіс[[#Totals],[РІК]]","v":{"v":138740,"d":"138,740.00₴"}},{"$f":"ФактичніВитратиНаОфіс[[#Totals],[РІК]]","v":{"v":69350,"d":"69,350.00₴"}},{"$f":"C7-D7","v":{"v":69390,"d":"69,390.00₴"}},{"$f":"E7/C7","v":{"v":0.5001441545336601,"d":"50%"}}]
[null,{"$f":"'ЗАПЛАНОВАНІ ВИТРАТИ'!B21","v":"Витрати на маркетинг"},{"$f":"ЗапланованіВитратиНаМаркетинг[[#Totals],[РІК]]","v":{"v":67800,"d":"67,800.00₴"}},{"$f":"ФактичніВитратиНаМаркетинг[[#Totals],[РІК]]","v":{"v":33159,"d":"33,159.00₴"}},{"$f":"C8-D8","v":{"v":34641,"d":"34,641.00₴"}},{"$f":"E8/C8","v":{"v":0.510929203539823,"d":"51%"}}]
[null,{"$f":"'ЗАПЛАНОВАНІ ВИТРАТИ'!B30","v":"Курси та відрядження"},{"$f":"ЗапланованіВитратиНаКурсиТаВідрядження[[#Totals],[РІК]]","v":{"v":48000,"d":"48,000.00₴"}},{"$f":"ФактичніВитратиНаКурсиТаВідрядження[[#Totals],[РІК]]","v":{"v":21300,"d":"21,300.00₴"}},{"$f":"C9-D9","v":{"v":26700,"d":"26,700.00₴"}},{"$f":"E9/C9","v":{"v":0.55625,"d":"56%"}}]
[null,{"$f":"'ЗАПЛАНОВАНІ ВИТРАТИ'!B35","v":"УСЬОГО"},{"$f":"'ЗАПЛАНОВАНІ ВИТРАТИ'!O36","v":{"v":1609630,"d":"1,609,630.00₴"}},{"$f":"'ФАКТИЧНІ ВИТРАТИ'!O36","v":{"v":782939,"d":"782,939.00₴"}},{"$f":"C10-D10","v":{"v":826691,"d":"826,691.00₴"}},{"$f":"E10/C10","v":{"v":0.5135907009685455,"d":"51%"}}]
[]
["Секторну діаграму заплановані витрати наведено в клітинці праворуч, а фактичних – у клітинці D12. Подальші вказівки наведено в клітинці A14.","Секторну діаграму запланованих витрат на різні категорії наведено в цій клітинці.",null,"Секторну діаграму фактичних витрат на різні категорії наведено в цій клітинці."]
[]
["Діаграму запланованих і фактичних витрат за місяць із різницею наведено в клітинці праворуч."]